Workbook

Sheet Approved LG IPFs
A1: Vote | B1: Local Government | C1: IFMS Recurrent Costs | D1: IPPS Recurrent Costs | E1: District Unconditional Grant | F1: Urban Unconditional Grant | G1: Urban Unconditional Grant - Wage | H1: District Unconditional Grant - Wage | I1: Urban Equalization Grant | J1: District Equalisation grant | K1: Tertiary Salary | L1: Primary Teachers Salary | M1: Secondary Teachers Salary | N1: PHC Wage | O1: Agricultural Extension Workers Salary | P1: DSC Chairperson's Salary | Q1: UPE | R1: PHC Non-Wage | S1: District Hospitals | T1: PHC NGO Hospitals (Nwage) | U1: Secondary Capitation Grant | V1: Functional Adult Literacy | W1: Boards and Commissions including PRDP Component | Z1: Urban Water Operation and Maintenance Grant | AA1: PAF Monitoring and Accoutability Grant incl. PRDP | AE1: Public Libraries Board | AF1: Health Training Institutions | AG1: Comm Development Workers- Nwage | AH1: Start up Costs | AI1: Environment and Natural Resources incl. PRDP | AL1: Women, Youth and Disability Councls | AM1: DSC Operational Costs | AN1: Salary and Gratuity for LG Elected Political Leaders | AO1: LLGs Ex-Gratia and District Monthly Councillor's Allowances | AP1: Special Grant for PWDs | AQ1: School Inspection Grant | AT1: Production and Marketing Grant (PMG) incl. PRDP | AY1: Sanitation and Hygiene Grant - Water Component | AZ1: Hard to Reach Allowances | BA1: Community Polytechnics (Non- Wage) | BB1: Technical and Farm Schools (Non-wage) | BC1: Technical Institutes (Non-Wage) | BD1: Primary Teacher's Colleges (PTCs) | BE1: NAADs (Districts) - Wage | BF1: TOTAL RECURRENT | BG1: Local Govt Management and Service Delivery (LGMSD) incl. PRDP | BJ1: Rural Water and Sanitation incl. PRDP | BM1: Construction of Secondary Schools | BN1: NAADS | BO1: Municipal Infrastructure Development | BR1: PHC Development incl. PRDP | BU1: Sanitation and Hygiene Grant - Health Component | BV1: General Hospitals Rehabilitation | BW1: School Facilities Grant (SFG) incl. PRDP | CC1: Rural Transport Infrastructure (RTI) incl. PRDP | CF1: GRAND TOTAL | CG1: Wage Recurrent | CH1: Non-wage Recurrent | CI1: GoU Development | CJ1: External Financing | CK1: TOTAL DEVELOPMENT BUDGET
W2: Normal | X2: PRDP | Y2: Total | AA2: Normal Monitoring | AB2: Payroll Printing | AC2: PRDP | AD2: Total | AI2: Normal | AJ2: PRDP | AK2: Total | AQ2: DEOs Facilitation Component | AR2: School Inspection Grant Component | AS2: Total | AT2: Normal | AU2: DATICs | AV2: Trade and Commercial Services | AW2: PRDP | AX2: Total | BG2: Normal | BH2: PRDP | BI2: Total | BJ2: Normal | BK2: PRDP | BL2: Total | BO2: Capacity Building Grants | BP2: Municipal Development Grants | BQ2: Total | BR2: Normal | BS2: PRDP | BT2: Total | BW2: Normal | BX2: Teacher's Houses | BY2: Shortfall on Presidential Pledges for FY 2012/13 | BZ2: New Presidential Pledges for FY 2014/15 | CA2: PRDP | CB2: Total | CC2: Normal | CD2: PRDP | CE2: Total
B3: Budget Line Item | C3: 221016 | D3: 221020 | E3: 321401 | F3: 321402 | G3: 321450 | H3: 321451 | I3: 321463 | J3: 321403 | K3: 321404 | L3: 321405 | M3: 321406 | N3: 321407 | O3: 321408 | P3: 321410 | Q3: 321411 | R3: 321413 | S3: 321417 | T3: 321418 | U3: 321419 | V3: 321420 | W3: 321422 | Z3: 321424 | AA3: 321427 | AE3: 321430 | AF3: 321432 | AG3: 321434 | AH3: 321435 | AI3: 321436 | AL3: 321437 | AM3: 321439 | AN3: 321444 | AO3: 321445 | AP3: 321446 | AQ3: 321447 | AT3: 321448 | AY3: 321449 | AZ3: 321453 | BA3: 321455 | BB3: 321457 | BC3: 321461 | BD3: 321462 | BE3: 321464 | BG3: 321426 | BJ3: 321428 | BM3: 321452 | BN3: 321429 | BO3: 321465 | BR3: 321431 | BU3: 321449 | BV3: 321417 | BW3: 321433 | CC3: 321412
A4: 501 | B4: Adjumani District | C4: 30000 | D4: 0 | E4: 618374.5954 | F4: 132049.8054 | G4: 125193.6042 | H4: 1347581.287 | I4: 0 | J4: 122941.2654 | K4: 0 | L4: 4377393.149 | M4: 886758.6641 | N4: 3325057.959 | O4: 54769.79447 | P4: 24523.2 | Q4: 332575.1069 | R4: 159858.2328 | S4: 131634.0032 | T4: 148282.5846 | U4: 417159.9414 | V4: 14363.35635 | W4: 28120.48592 | X4: 67859.06711 | Y4: =SUM(W4:X4) -> 95979.55304 | Z4: 0 | AA4: 30469.34172 | AB4: 8230.460659 | AC4: 37821.00072 | AD4: =SUM(AA4:AC4) -> 76520.8031 | AE4: 0 | AF4: 0 | AG4: 3638.509884 | AH4: 0 | AI4: 7943.056653 | AJ4: 39149.46176 | AK4: =SUM(AI4:AJ4) -> 47092.51842 | AL4: 13101.63555 | AM4: 26274.57485 | AN4: 131414.4 | AO4: 52200 | AP4: 27353.3781 | AQ4: 13010.6383 | AR4: 11175 | AS4: =SUM(AQ4:AR4) -> 24185.6383 | AT4: 156442.4295 | AU4: 0 | AV4: 0 | AW4: 57049.02149 | AX4: =SUM(AT4:AW4) -> 213491.451 | AY4: 22000 | AZ4: 1429454.348 | BA4: 0 | BB4: 0 | BC4: 0 | BD4: 0 | BE4: 155345 | BF4: =SUM(C4:V4,Y4,Z4,AD4,AE4:AH4,AK4,AL4:AP4,AS4,AX4,AY4:BE4) -> 14566568.36 | BG4: 790622.5019 | BH4: 219758.979 | BI4: =SUM(BG4:BH4) -> 1010381.481 | BJ4: 428692.2449 | BK4: 107008.5289 | BL4: =SUM(BJ4:BK4) -> 535700.7737 | BM4: 0 | BN4: 211876.319 | BQ4: =SUM(BO4:BP4) -> 0 | BR4: 51327.5811 | BS4: 325201.5292 | BT4: =SUM(BR4:BS4) -> 376529.1103 | BV4: 900000 | BW4: 105325.9498 | BX4: 0 | BY4: 0 | BZ4: 0 | CA4: 322072.2357 | CB4: =SUM(BW4:CA4) -> 427398.1855 | CC4: 0 | CD4: 715130.2123 | CE4: =SUM(CC4:CD4) -> 715130.2123 | CF4: =BF4+CK4 -> 18743584.44 | CG4: =SUM(G4,H4,K4:P4,AN4,BE4) -> 10428037.06 | CH4: =SUM(C4:F4,I4:J4,Q4:V4,Y4,Z4,AD4,AE4:AH4,AK4,AL4:AM4,AO4:AP4,AS4,AX4,AY4:BD4) -> 4138531.302 | CI4: =SUM(BI4,BL4,BM4,BN4,BT4,BV4,CB4,CE4) -> 4177016.082 | CJ4: =BQ4+BU4 -> 0 | CK4: =SUM(CI4:CJ4) -> 4177016.082
A5: 502 | B5: Apac District | C5: 30000 | D5: 0 | E5: 619431.1145 | F5: 135668.6407 | G5: 250387.2084 | H5: 2190008.554 | I5: 14965.51724 | J5: 98975.41848 | K5: 444243.648 | L5: 9128721.658 | M5: 1303459.361 | N5: 3374901.416 | O5: 25852.80312 | P5: 24523.2 | Q5: 854472.2823 | R5: 158296.0535 | S5: 131633.602 | T5: 30370.2786 | U5: 737084.9769 | V5: 14394.0002 | W5: 28120.48592 | X5: 23608.25234 | Y5: =SUM(W5:X5) -> 51728.73826 | Z5: 0 | AA5: 42108.29141 | AB5: 16807.25258 | AC5: 25251.6698 | AD5: =SUM(AA5:AC5) -> 84167.21379 | AE5: 0 | AF5: 0 | AG5: 3646.272552 | AH5: 0 | AI5: 7598.150683 | AJ5: 23608.25234 | AK5: =SUM(AI5:AJ5) -> 31206.40302 | AL5: 13129.58756 | AM5: 47033.29997 | AN5: 136281.6 | AO5: 115492.9073 | AP5: 27411.73584 | AQ5: 19973.88781 | AR5: 20215 | AS5: =SUM(AQ5:AR5) -> 40188.88781 | AT5: 112837.6814 | AU5: 0 | AV5: 0 | AW5: 78694.17446 | AX5: =SUM(AT5:AW5) -> 191531.8559 | AY5: 0 | AZ5: 0 | BA5: 0 | BB5: 160983.9252 | BC5: 0 | BD5: 0 | BE5: 169595 | BF5: =SUM(C5:V5,Y5,Z5,AD5,AE5:AH5,AK5,AL5:AP5,AS5,AX5,AY5:BE5) -> 20639787.16 | BG5: 557127.912 | BH5: 112004.6316 | BI5: =SUM(BG5:BH5) -> 669132.5436 | BJ5: 662410.328 | BK5: 94433.00936 | BL5: =SUM(BJ5:BK5) -> 756843.3374 | BM5: 26723 | BN5: 215788.6663 | BQ5: =SUM(BO5:BP5) -> 0 | BR5: 65377.56225 | BS5: 314776.6979 | BT5: =SUM(BR5:BS5) -> 380154.2601 | BU5: 205745.3636 | BV5: 0 | BW5: 175542.8612 | BX5: 0 | BY5: 135328.071 | BZ5: 0 | CA5: 393470.8723 | CB5: =SUM(BW5:CA5) -> 704341.8045 | CC5: 512002.2805 | CD5: 196735.9304 | CE5: =SUM(CC5:CD5) -> 708738.2109 | CF5: 24307254.35 | CG5: =SUM(G5,H5,K5:P5,AN5,BE5) -> 17047974.45 | CH5: =SUM(C5:F5,I5:J5,Q5:V5,Y5,Z5,AD5,AE5:AH5,AK5,AL5:AM5,AO5:AP5,AS5,AX5,AY5:BD5) -> 3591812.712 | CI5: =SUM(BI5,BL5,BM5,BN5,BT5,BV5,CB5,CE5) -> 3461721.823 | CJ5: =BQ5+BU5 -> 205745.3636 | CK5: =SUM(CI5:CJ5) -> 3667467.186
A6: 503 | B6: Arua District | C6: 30000 | D6: 0 | E6: 1465572.333 | F6: 0 | G6: 0 | H6: 1896058.711 | I6: 0 | J6: 244406.7222 | K6: 1810764.79 | L6: 21785214.97 | M6: 4359532.613 | N6: 4282781.679 | O6: 26603.42712 | P6: 24523.2 | Q6: 1980747.54 | R6: 306208.0082 | S6: 0 | T6: 568325.3135 | U6: 1645866.745 | V6: 32835.24063 | W6: 28120.48592 | X6: 60418.13315 | Y6: 88538.61907 | Z6: 0 | AA6: 75187.05746 | AB6: 33607.71436 | AC6: 40278.75541 | AD6: 149073.5272 | AE6: 0 | AF6: 723726.6794 | AG6: 37136.23142 | AH6: 0 | AI6: 9183.782544 | AJ6: 60418.13315 | AK6: 69601.91569 | AL6: 29950.89348 | AM6: 102368.3922 | AN6: 204422.4 | AO6: 174000 | AP6: 62530.98024 | AQ6: 36221.47002 | AR6: 39426 | AS6: 75647.47002 | AT6: 258453.5858 | AU6: 0 | AV6: 7200 | AW6: 201393.7764 | AX6: 467047.3621 | AY6: 22000 | AZ6: 0 | BA6: 0 | BB6: 321968 | BC6: 204508.0014 | BD6: 559918.9967 | BE6: 397595 | BF6: 44149475.76 | BG6: 1228616.839 | BH6: 201393.7764 | BI6: 1430010.615 | BJ6: 587269.0619 | BK6: 201393.7764 | BL6: 788662.8383 | BM6: 0 | BN6: 473183.2142 | BQ6: 0 | BR6: 170646.3671 | BS6: 302090.6657 | BT6: 472737.0329 | BU6: 499512.6561 | BV6: 0 | BW6: 210651.8997 | BX6: 0 | BY6: 0 | BZ6: 0 | CA6: 342369.4212 | CB6: 553021.3209 | CC6: 0 | CD6: 604181.3331 | CE6: 604181.3331 | CF6: 48970784.77 | CG6: 34787496.79 | CH6: 9361978.971 | CI6: 4321796.354 | CJ6: 499512.6561 | CK6: 4821309.01
A7: 504 | B7: Bugiri District | C7: 30000 | D7: 0 | E7: 687637.8217 | F7: 111353.5258 | G7: 125193.6042 | H7: 1476887.045 | I7: 0 | J7: 140715.1331 | K7: 279548.8245 | L7: 8100825.447 | M7: 1140679.545 | N7: 2229172.1 | O7: 33347.57184 | P7: 24523.2 | Q7: 881605.4965 | R7: 185668.5224 | S7: 151840.0289 | T7: 63035.66678 | U7: 1621317.259 | V7: 19600.43778 | W7: 28120.48592 | X7: 0 | Y7: 28120.48592 | Z7: 0 | AA7: 34776.91082 | AB7: 14532.33153 | AC7: 0 | AD7: 49309.24234 | AE7: 0 | AF7: 0 | AG7: 4965.161684 | AH7: 0 | AI7: 7209.240718 | AJ7: 0 | AK7: 7209.240718 | AL7: 17878.67586 | AM7: 39733.15714 | AN7: 136281.6 | AO7: 72720 | AP7: 37326.80389 | AQ7: 23197.61444 | AR7: 27749 | AS7: 50946.61444 | AT7: 130193.1355 | AU7: 0 | AV7: 0 | AW7: 0 | AX7: 130193.1355 | AY7: 22000 | AZ7: 16683.26816 | BA7: 0 | BB7: 160984 | BC7: 0 | BD7: 0 | BE7: 169595 | BF7: 18246897.62 | BG7: 728060.5337 | BH7: 0 | BI7: 728060.5337 | BJ7: 674702.9155 | BK7: 0 | BL7: 674702.9155 | BM7: 0 | BN7: 225808.1482 | BQ7: 0 | BR7: 165890.3952 | BS7: 0 | BT7: 165890.3952 | BU7: 0 | BV7: 0 | BW7: 351085.8056 | BX7: 0 | BY7: 0 | BZ7: 0 | CA7: 0 | CB7: 351085.8056 | CC7: 0 | CD7: 0 | CE7: 0 | CF7: 20392445.41 | CG7: 13716053.94 | CH7: 4530843.677 | CI7: 2145547.798 | CJ7: 0 | CK7: 2145547.798
A8: 505 | B8: Bundibugyo District | C8: 30000 | D8: 0 | E8: 405557.705 | F8: 143959.9325 | G8: 250387.2084 | H8: 1272420.619 | I8: 0 | J8: 81329.88196 | K8: 329367.0536 | L8: 7635959.422 | M8: 762590.1776 | N8: 2091438.737 | O8: 28001.89683 | P8: 24523.2 | Q8: 450892.0965 | R8: 134863.2323 | S8: 142628.2751 | T8: 21337.40638 | U8: 656545.9686 | V8: 14184.90593 | W8: 28120.48592 | X8: 0 | Y8: 28120.48592 | Z8: 0 | AA8: 27801.61919 | AB8: 11415.35014 | AC8: 0 | AD8: 39216.96933 | AE8: 0 | AF8: 0 | AG8: 3593.305017 | AH8: 0 | AI8: 7032.711733 | AJ8: 0 | AK8: 7032.711733 | AL8: 12938.86076 | AM8: 31321.83381 | AN8: 155750.4 | AO8: 101880 | AP8: 27013.53958 | AQ8: 18297.54997 | AR8: 18332 | AS8: 36629.54997 | AT8: 75938.70827 | AU8: 0 | AV8: 0 | AW8: 0 | AX8: 75938.70827 | AY8: 22000 | AZ8: 1645300.388 | BA8: 125561.6667 | BB8: 0 | BC8: 0 | BD8: 201979.1818 | BE8: 226595 | BF8: 17216860.32 | BG8: 357045.6407 | BH8: 0 | BI8: 357045.6407 | BJ8: 353098.6199 | BK8: 0 | BL8: 353098.6199 | BM8: 24012.49989 | BN8: 219492.9455 | BQ8: 0 | BR8: 163507.914 | BS8: 0 | BT8: 163507.914 | BU8: 0 | BV8: 800000 | BW8: 210651.8997 | BX8: 0 | BY8: 0 | BZ8: 0 | CA8: 0 | CB8: 210651.8997 | CC8: 0 | CD8: 0 | CE8: 0 | CF8: 19344669.84 | CG8: 12777033.71 | CH8: 4439826.605 | CI8: 2127809.52 | CJ8: 0 | CK8: 2127809.52
A9: 506 | B9: Bushenyi District | C9: 47143 | D9: 25000 | E9: 807984.7679 | F9: 0 | G9: 0 | H9: 1764917.312 | I9: 0 | J9: 0 | K9: 666154.5355 | L9: 7269197.777 | M9: 1559349.076 | N9: 1811711.611 | O9: 42391.58136 | P9: 24523.2 | Q9: 476969.4639 | R9: 106364.6388 | S9: 0 | T9: 728888.4574 | U9: 1104923.222 | V9: 10126.82817 | W9: 28120.48592 | X9: 0 | Y9: 28120.48592 | Z9: 0 | AA9: 31282.68995 | AB9: 11551.16632 | AC9: 0 | AD9: 42833.85627 | AE9: 0 | AF9: 0 | AG9: 12939.95692 | AH9: 0 | AI9: 8182.393632 | AJ9: 0 | AK9: 8182.393632 | AL9: 9237.256861 | AM9: 49395.4584 | AN9: 126547.2 | AO9: 79440 | AP9: 19285.39216 | AQ9: 20876.53127 | AR9: 23103 | AS9: 43979.53127 | AT9: 59908.63638 | AU9: 0 | AV9: 7200 | AW9: 0 | AX9: 67108.63638 | AY9: 0 | AZ9: 0 | BA9: 0 | BB9: 0 | BC9: 356977.3358 | BD9: 445303.2812 | BE9: 183845 | BF9: 17918841.26 | BG9: 250132.2215 | BH9: 0 | BI9: 250132.2215 | BJ9: 356129.1629 | BK9: 0 | BL9: 356129.1629 | BM9: 0 | BN9: 186217.9645 | BQ9: 0 | BR9: 170339.3054 | BS9: 0 | BT9: 170339.3054 | BU9: 35931.8433 | BV9: 0 | BW9: 140433.9059 | BX9: 272000 | BY9: 0 | BZ9: 0 | CA9: 0 | CB9: 412433.9059 | CC9: 0 | CD9: 0 | CE9: 0 | CF9: 19330025.66 | CG9: 13448637.29 | CH9: 4470203.963 | CI9: 1375252.56 | CJ9: 35931.8433 | CK9: 1411184.404
A10: 507 | B10: Busia District | C10: 30000 | D10: 0 | E10: 484729.4134 | F10: 0 | G10: 0 | H10: 1088683.736 | I10: 0 | J10: 0 | K10: 492618.9326 | L10: 7484792.338 | M10: 1731133.069 | N10: 1451405.744 | O10: 71560.04687 | P10: 24523.2 | Q10: 750678.3687 | R10: 140858.7254 | S10: 109334.6134 | T10: 92177.80958 | U10: 1342411.227 | V10: 13484.81305 | W10: 28120.48592 | X10: 0 | Y10: 28120.48592 | Z10: 0 | AA10: 28765.52838 | AB10: 12963.65462 | AC10: 19230.43835 | AD10: 60959.62135 | AE10: 0 | AF10: 0 | AG10: 20707.02453 | AH10: 0 | AI10: 4933.400918 | AJ10: 15738.83489 | AK10: 20672.23581 | AL10: 12300.26616 | AM10: 41219.66021 | AN10: 150883.2 | AO10: 97741.74191 | AP10: 25680.29234 | AQ10: 19587.04062 | AR10: 18332 | AS10: 37919.04062 | AT10: 81941.24416 | AU10: 0 | AV10: 7200 | AW10: 95377.33945 | AX10: 184518.5836 | AY10: 22000 | AZ10: 0 | BA10: 102852.3333 | BB10: 0 | BC10: 133186.6676 | BD10: 201979.1818 | BE10: 240845 | BF10: 16689977.37 | BG10: 355069.826 | BH10: 118040.8265 | BI10: 473110.6525 | BJ10: 362440.6267 | BK10: 74368.35569 | BL10: 436808.9824 | BM10: 0 | BN10: 198110.9619 | BQ10: 0 | BR10: 144846.6515 | BS10: 127235.889 | BT10: 272082.5405 | BU10: 0 | BV10: 0 | BW10: 140433.9059 | BX10: 0 | BY10: 0 | BZ10: 0 | CA10: 242701.4904 | CB10: 383135.3963 | CC10: 0 | CD10: 268828.7433 | CE10: 268828.7433 | CF10: 18722054.65 | CG10: 12736445.27 | CH10: 3953532.106 | CI10: 2032077.277 | CJ10: 0 | CK10: 2032077.277
A11: 508 | B11: Gulu District | C11: 30000 | D11: 0 | E11: 636657.6933 | F11: 0 | G11: 0 | H11: 1679949.506 | I11: 0 | J11: 80527.81212 | K11: 1180299.303 | L11: 7600706.653 | M11: 1996591.847 | N11: 2367098.38 | O11: 39907.98864 | P11: 24523.2 | Q11: 693842.7944 | R11: 165411.1981 | S11: 0 | T11: 781662.1883 | U11: 738141.1886 | V11: 14508.60991 | W11: 28120.48592 | X11: 38005.62069 | Y11: 66126.10662 | Z11: 0 | AA11: 57047.20547 | AB11: 17269.0276 | AC11: 38005.6192 | AD11: 112321.8523 | AE11: 0 | AF11: 341424.006 | AG11: 16355.42063 | AH11: 0 | AI11: 11968.6173 | AJ11: 76011.23824 | AK11: 87979.85553 | AL11: 13234.1296 | AM11: 65940.43954 | AN11: 141148.8 | AO11: 68013.49632 | AP11: 27629.99699 | AQ11: 20360.73501 | AR11: 20215 | AS11: 40575.73501 | AT11: 156079.2269 | AU11: 0 | AV11: 7200 | AW11: 76011.23824 | AX11: 239290.4651 | AY11: 22000 | AZ11: 3529090.327 | BA11: 143698.3333 | BB11: 0 | BC11: 0 | BD11: 584512.1972 | BE11: 240845 | BF11: 23770014.52 | BG11: 526169.3131 | BH11: 114016.8574 | BI11: 640186.1704 | BJ11: 371088.9721 | BK11: 380056.192 | BL11: 751145.164 | BM11: 213782 | BN11: 249903.5124 | BQ11: 0 | BR11: 88921.68378 | BS11: 380056.192 | BT11: 468977.8757 | BU11: 0 | BV11: 0 | BW11: 140433.9059 | BX11: 0 | BY11: 0 | BZ11: 0 | CA11: 418061.8111 | CB11: 558495.717 | CC11: 512002.2805 | CD11: 380056.192 | CE11: 892058.4725 | CF11: 27544563.43 | CG11: 15271070.68 | CH11: 8498943.846 | CI11: 3774548.912 | CJ11: 0 | CK11: 3774548.912
A12: 509 | B12: Hoima District | C12: 0 | D12: 0 | E12: 870551.1065 | F12: 56198.74299 | G12: 125193.6042 | H12: 1354004.338 | I12: 0 | J12: 0 | K12: 0 | L12: 7470883.259 | M12: 1138681.421 | N12: 2698786.259 | O12: 44734.50384 | P12: 24523.2 | Q12: 702974.8385 | R12: 196298.8575 | S12: 0 | T12: 32972.8839 | U12: 1015378.474 | V12: 19849.45997 | W12: 28120.48592 | X12: 0 | Y12: 28120.48592 | Z12: 0 | AA12: 44741.76836 | AB12: 12698.81306 | AC12: 0 | AD12: 57440.58142 | AE12: 9790.476725 | AF12: 0 | AG12: 17708.35899 | AH12: 0 | AI12: 8462.243608 | AJ12: 0 | AK12: 8462.243608 | AL12: 18105.82319 | AM12: 48646.42591 | AN12: 136281.6 | AO12: 100806.9176 | AP12: 37801.03832 | AQ12: 17908.12379 | AR12: 31121 | AS12: 49029.12379 | AT12: 176863.7649 | AU12: 0 | AV12: 0 | AW12: 0 | AX12: 176863.7649 | AY12: 22000 | AZ12: 0 | BA12: 0 | BB12: 0 | BC12: 0 | BD12: 529650.7666 | BE12: 226595 | BF12: 17218333.56 | BG12: 784521.9617 | BH12: 0 | BI12: 784521.9617 | BJ12: 383567.3172 | BK12: 0 | BL12: 383567.3172 | BM12: 97983 | BN12: 263082.9671 | BQ12: 0 | BR12: 156171.1123 | BS12: 0 | BT12: 156171.1123 | BU12: 0 | BV12: 0 | BW12: 280868.811 | BX12: 0 | BY12: 0 | BZ12: 0 | CA12: 0 | CB12: 280868.811 | CC12: 0 | CD12: 0 | CE12: 0 | CF12: 19184528.72 | CG12: 13219683.18 | CH12: 3998650.371 | CI12: 1966195.169 | CJ12: 0 | CK12: 1966195.169
A13: 510 | B13: Iganga District | C13: 30000 | D13: 0 | E13: 681453.6866 | F13: 70515.687 | G13: 125193.6042 | H13: 1676187.093 | I13: 0 | J13: 0 | K13: 764192.5893 | L13: 16950328.98 | M13: 2823430.79 | N13: 6051666.005 | O13: 97853.88443 | P13: 24523.2 | Q13: 940658.5854 | R13: 171676.3287 | S13: 167292.0024 | T13: 107425.5926 | U13: 3163562.123 | V13: 17824.78025 | W13: 28120.48592 | X13: 0 | Y13: 28120.48592 | Z13: 0 | AA13: 54772.77649 | AB13: 23367.1742 | AC13: 0 | AD13: 78139.95069 | AE13: 0 | AF13: 0 | AG13: 4515.35404 | AH13: 0 | AI13: 9396.162525 | AJ13: 0 | AK13: 9396.162525 | AL13: 16258.99748 | AM13: 77920.39413 | AN13: 111945.6 | AO13: 74059.13599 | AP13: 33945.26613 | AQ13: 24229.20696 | AR13: 35157 | AS13: 59386.20696 | AT13: 140005.8101 | AU13: 0 | AV13: 0 | AW13: 0 | AX13: 140005.8101 | AY13: 22000 | AZ13: 0 | BA13: 125600 | BB13: 0 | BC13: 223788.0015 | BD13: 790648.451 | BE13: 240845 | BF13: 35900359.75 | BG13: 616235.9113 | BH13: 0 | BI13: 616235.9113 | BJ13: 674702.9155 | BK13: 0 | BL13: 674702.9155 | BM13: 254756 | BN13: 255511.7036 | BQ13: 0 | BR13: 154922.8208 | BS13: 0 | BT13: 154922.8208 | BU13: 0 | BV13: 0 | BW13: 351085.8056 | BX13: 0 | BY13: 0 | BZ13: 0 | CA13: 0 | CB13: 351085.8056 | CC13: 0 | CD13: 0 | CE13: 0 | CF13: 38207574.91 | CG13: 28866166.75 | CH13: 7034193.003 | CI13: 2307215.157 | CJ13: 0 | CK13: 2307215.157
A14: 511 | B14: Jinja District | C14: 47143 | D14: 25000 | E14: 791185.4971 | F14: 391409.1828 | G14: 375580.8126 | H14: 1211704.184 | I14: 0 | J14: 0 | K14: 967783.2812 | L14: 8452621.62 | M14: 4594132.652 | N14: 5612917.974 | O14: 14654.4624 | P14: 24523.2 | Q14: 542833.1129 | R14: 215472.6655 | S14: 0 | T14: 177733.0956 | U14: 1972552.884 | V14: 15864.06638 | W14: 28120.48592 | X14: 0 | Y14: 28120.48592 | Z14: 0 | AA14: 42087.02511 | AB14: 17350.51731 | AC14: 0 | AD14: 59437.54243 | AE14: 0 | AF14: 1403005.23 | AG14: 4018.668124 | AH14: 0 | AI14: 11177.65137 | AJ14: 0 | AK14: 11177.65137 | AL14: 14470.51866 | AM14: 71665.8863 | AN14: 126547.2 | AO14: 72718.23309 | AP14: 30211.30962 | AQ14: 15718.56867 | AR14: 23857 | AS14: 39575.56867 | AT14: 109550.6252 | AU14: 0 | AV14: 0 | AW14: 0 | AX14: 109550.6252 | AY14: 22000 | AZ14: 0 | BA14: 33864 | BB14: 0 | BC14: 235124.0016 | BD14: 214771.1933 | BE14: 183845 | BF14: 28093214.81 | BG14: 687030.1325 | BH14: 0 | BI14: 687030.1325 | BJ14: 676875.5891 | BK14: 0 | BL14: 676875.5891 | BM14: 0 | BN14: 205183.0906 | BQ14: 0 | BR14: 162374.5717 | BS14: 0 | BT14: 162374.5717 | BU14: 0 | BV14: 0 | BW14: 280868.811 | BX14: 272000 | BY14: 0 | BZ14: 0 | CA14: 0 | CB14: 552868.811 | CC14: 0 | CD14: 0 | CE14: 0 | CF14: 30377547 | CG14: 21564310.39 | CH14: 6528904.419 | CI14: 2284332.195 | CJ14: 0 | CK14: 2284332.195
A15: 512 | B15: Kabale District | C15: 30000 | D15: 0 | E15: 1035530.885 | F15: 271902.1401 | G15: 375580.8126 | H15: 2606236.016 | I15: 0 | J15: 0 | K15: 843880.0097 | L15: 17763068.99 | M15: 3979632.715 | N15: 4565919.413 | O15: 66919.41959 | P15: 24523.2 | Q15: 1320010.571 | R15: 293939.9643 | S15: 0 | T15: 494249.1468 | U15: 2069550.191 | V15: 20781.7261 | W15: 28120.48592 | X15: 0 | Y15: 28120.48592 | Z15: 350000 | AA15: 65918.51047 | AB15: 32826.77131 | AC15: 0 | AD15: 98745.28178 | AE15: 0 | AF15: 653805.3448 | AG15: 5264.404362 | AH15: 0 | AI15: 7924.085655 | AJ15: 0 | AK15: 7924.085655 | AL15: 18956.19623 | AM15: 103984.9579 | AN15: 189820.8 | AO15: 205305.6647 | AP15: 39576.4331 | AQ15: 42411.02515 | AR15: 43947 | AS15: 86358.02515 | AT15: 116515.2959 | AU15: 0 | AV15: 0 | AW15: 0 | AX15: 116515.2959 | AY15: 22000 | AZ15: 0 | BA15: 88789 | BB15: 160984 | BC15: 0 | BD15: 480892.6754 | BE15: 369095 | BF15: 38787862.85 | BG15: 677606.9848 | BH15: 0 | BI15: 677606.9848 | BJ15: 356129.1629 | BK15: 0 | BL15: 356129.1629 | BM15: 327697.9994 | BN15: 366013.7398 | BQ15: 0 | BR15: 197761.8109 | BS15: 0 | BT15: 197761.8109 | BU15: 0 | BV15: 0 | BW15: 210651.8997 | BX15: 0 | BY15: 0 | BZ15: 0 | CA15: 0 | CB15: 210651.8997 | CC15: 0 | CD15: 0 | CE15: 0 | CF15: 40923724.45 | CG15: 30784676.37 | CH15: 8003186.476 | CI15: 2135861.597 | CJ15: 0 | CK15: 2135861.597
A16: 513 | B16: Kabarole District | C16: 0 | D16: 0 | E16: 811370.4719 | F16: 384624.2573 | G16: 626760.7173 | H16: 2834400.506 | I16: 0 | J16: 0 | K16: 528245.2824 | L16: 8343937.782 | M16: 2095691.462 | N16: 3441570.604 | O16: 54200.72447 | P16: 24523.2 | Q16: 764418.2384 | R16: 196255.074 | S16: 0 | T16: 449161.4195 | U16: 1664169.137 | V16: 19885.77285 | W16: 28120.48592 | X16: 0 | Y16: 28120.48592 | Z16: 0 | AA16: 42650.23661 | AB16: 16134.96248 | AC16: 0 | AD16: 58785.19909 | AE16: 0 | AF16: 471628.0083 | AG16: 5037.442455 | AH16: 0 | AI16: 8272.954624 | AJ16: 0 | AK16: 8272.954624 | AL16: 18138.94623 | AM16: 61373.2625 | AN16: 184953.6 | AO16: 129398.722 | AP16: 37870.19206 | AQ16: 20489.68407 | AR16: 23229 | AS16: 43718.68407 | AT16: 107559.8851 | AU16: 8200 | AV16: 7200 | AW16: 0 | AX16: 122959.8851 | AY16: 22000 | AZ16: 0 | BA16: 0 | BB16: 0 | BC16: 0 | BD16: 491414.344 | BE16: 354845 | BF16: 24277731.38 | BG16: 618673.3959 | BH16: 0 | BI16: 618673.3959 | BJ16: 467252.7183 | BK16: 0 | BL16: 467252.7183 | BM16: 0 | BN16: 275587.0555 | BQ16: 0 | BR16: 179920.7025 | BS16: 0 | BT16: 179920.7025 | BU16: 0 | BV16: 0 | BW16: 280868.811 | BX16: 272000 | BY16: 116022.6693 | BZ16: 169136.4106 | CA16: 0 | CB16: 838027.8909 | CC16: 0 | CD16: 0 | CE16: 0 | CF16: 26657193.14 | CG16: 18489128.88 | CH16: 5788602.497 | CI16: 2379461.763 | CJ16: 0 | CK16: 2379461.763
A17: 514 | B17: Kaberamaido District | C17: 0 | D17: 0 | E17: 384608.2718 | F17: 36926.43062 | G17: 125193.6042 | H17: 1085239.662 | I17: 0 | J17: 0 | K17: 237527.5651 | L17: 5177965.613 | M17: 1104562.449 | N17: 1462079.151 | O17: 15138.0342 | P17: 24523.2 | Q17: 585555.1418 | R17: 120199.2938 | S17: 0 | T17: 212942.2655 | U17: 811624.4785 | V17: 10385.16865 | W17: 28120.48592 | X17: 3934.708723 | Y17: 32055.19465 | Z17: 0 | AA17: 24808.15176 | AB17: 8780.516199 | AC17: 21875.17567 | AD17: 55463.84363 | AE17: 0 | AF17: 0 | AG17: 2630.759681 | AH17: 0 | AI17: 6725.92976 | AJ17: 4721.650468 | AK17: 11447.58023 | AL17: 9472.903926 | AM17: 24926.92798 | AN17: 141148.8 | AO17: 80047.01764 | AP17: 19777.37221 | AQ17: 16363.31399 | AR17: 15444 | AS17: 31807.31399 | AT17: 74298.95237 | AU17: 0 | AV17: 0 | AW17: 196735.4362 | AX17: 271034.3885 | AY17: 0 | AZ17: 0 | BA17: 0 | BB17: 0 | BC17: 237677.335 | BD17: 0 | BE17: 183845 | BF17: 12495804.77 | BG17: 370785.6805 | BH17: 164425.581 | BI17: 535211.2615 | BJ17: 351026.5263 | BK17: 0 | BL17: 351026.5263 | BM17: 197748 | BN17: 152760.082 | BQ17: 0 | BR17: 123555.3431 | BS17: 177953.2552 | BT17: 301508.5983 | BU17: 141073.3476 | BV17: 0 | BW17: 175542.8612 | BX17: 0 | BY17: 0 | BZ17: 0 | CA17: 327377.5404 | CB17: 502920.4015 | CC17: 512002.2805 | CD17: 196735.4362 | CE17: 708737.7167 | CF17: 15386790.7 | CG17: 9557223.08 | CH17: 2938581.688 | CI17: 2749912.586 | CJ17: 141073.3476 | CK17: 2890985.934
A18: 515 | B18: Kalangala District | C18: 30000 | D18: 0 | E18: 405353.9109 | F18: 46977.4536 | G18: 125193.6042 | H18: 808542.0235 | I18: 0 | J18: 0 | K18: 137305.0427 | L18: 983776.8601 | M18: 470059.686 | N18: 1724683.909 | O18: 30816.82152 | P18: 26023.2 | Q18: 59651.97013 | R18: 73144.8196 | S18: 0 | T18: 7641.550895 | U18: 80608.28505 | V18: 8620.659818 | W18: 28120.48592 | X18: 0 | Y18: 28120.48592 | Z18: 16000 | AA18: 33806.0804 | AB18: 2933.629542 | AC18: 0 | AD18: 36739.70994 | AE18: 0 | AF18: 0 | AG18: 2183.776214 | AH18: 0 | AI18: 3862.816012 | AJ18: 0 | AK18: 3862.816012 | AL18: 7863.394906 | AM18: 11807.19389 | AN18: 116812.8 | AO18: 30120 | AP18: 16417.06588 | AQ18: 7465.828498 | AR18: 16227 | AS18: 23692.8285 | AT18: 85391.31703 | AU18: 0 | AV18: 0 | AW18: 0 | AX18: 85391.31703 | AY18: 22000 | AZ18: 361656.1798 | BA18: 0 | BB18: 0 | BC18: 261944.0018 | BD18: 0 | BE18: 112595 | BF18: 6155606.367 | BG18: 389585.4192 | BH18: 0 | BI18: 389585.4192 | BJ18: 375059.9735 | BK18: 0 | BL18: 375059.9735 | BM18: 0 | BN18: 128427.6687 | BQ18: 0 | BR18: 277024.9592 | BS18: 0 | BT18: 277024.9592 | BU18: 0 | BV18: 0 | BW18: 140433.9059 | BX18: 272000 | BY18: 188678.7224 | BZ18: 0 | CA18: 0 | CB18: 601112.6283 | CC18: 0 | CD18: 0 | CE18: 0 | CF18: 7926817.015 | CG18: 4535808.947 | CH18: 1619797.42 | CI18: 1771210.649 | CJ18: 0 | CK18: 1771210.649
A19: 517 | B19: Kamuli District | C19: 0 | D19: 0 | E19: 843293.5972 | F19: 92866.6549 | G19: 125193.6042 | H19: 2087848.712 | I19: 0 | J19: 0 | K19: 0 | L19: 13234295 | M19: 2368645.432 | N19: 3420980.237 | O19: 43063.59264 | P19: 24523.2 | Q19: 1085807.975 | R19: 197403.7497 | S19: 131633.602 | T19: 581826.8841 | U19: 2897102.937 | V19: 20525.93553 | W19: 28120.48592 | X19: 0 | Y19: 28120.48592 | Z19: 14000 | AA19: 49125.439 | AB19: 20005.72368 | AC19: 0 | AD19: 69131.16268 | AE19: 0 | AF19: 0 | AG19: 5199.607771 | AH19: 0 | AI19: 7352.716705 | AJ19: 0 | AK19: 7352.716705 | AL19: 18722.87508 | AM19: 58595.4074 | AN19: 146016 | AO19: 120797.5441 | AP19: 39089.30905 | AQ19: 28226.62798 | AR19: 34781 | AS19: 63007.62798 | AT19: 148550.7015 | AU19: 0 | AV19: 0 | AW19: 0 | AX19: 148550.7015 | AY19: 22000 | AZ19: 0 | BA19: 37600 | BB19: 0 | BC19: 0 | BD19: 0 | BE19: 198095 | BF19: 28131289.55 | BG19: 722538.1801 | BH19: 0 | BI19: 722538.1801 | BJ19: 665723.6855 | BK19: 0 | BL19: 665723.6855 | BM19: 52968.74976 | BN19: 250673.8699 | BQ19: 0 | BR19: 105508.7543 | BS19: 0 | BT19: 105508.7543 | BU19: 0 | BV19: 0 | BW19: 280868.811 | BX19: 0 | BY19: 0 | BZ19: 200000 | CA19: 0 | CB19: 480868.811 | CC19: 0 | CD19: 0 | CE19: 0 | CF19: 30409571.6 | CG19: 21648660.77 | CH19: 6482628.773 | CI19: 2278282.051 | CJ19: 0 | CK19: 2278282.051
A20: 518 | B20: Kamwenge District | C20: 0 | D20: 0 | E20: 762125.2967 | F20: 79465.1009 | G20: 125193.6042 | H20: 1316721.204 | I20: 0 | J20: 0 | K20: 603601.0567 | L20: 7321054.873 | M20: 1397462.63 | N20: 1351352.792 | O20: 45379.22316 | P20: 24523.2 | Q20: 692794.9298 | R20: 187496.2145 | S20: 0 | T20: 54540.46325 | U20: 1098566.514 | V20: 15511.86074 | W20: 28120.48592 | X20: 0 | Y20: 28120.48592 | Z20: 12000 | AA20: 34906.23518 | AB20: 13364.31236 | AC20: 0 | AD20: 48270.54753 | AE20: 0 | AF20: 0 | AG20: 3929.447773 | AH20: 0 | AI20: 7231.638716 | AJ20: 0 | AK20: 7231.638716 | AL20: 14149.25183 | AM20: 36897.24143 | AN20: 155750.4 | AO20: 107077.0051 | AP20: 29540.57405 | AQ20: 23455.51257 | AR20: 28754 | AS20: 52209.51257 | AT20: 97028.68646 | AU20: 0 | AV20: 0 | AW20: 0 | AX20: 97028.68646 | AY20: 22000 | AZ20: 0 | BA20: 0 | BB20: 160984 | BC20: 201109.3347 | BD20: 0 | BE20: 226595 | BF20: 16278682.09 | BG20: 558614.0998 | BH20: 0 | BI20: 558614.0998 | BJ20: 372291.1194 | BK20: 0 | BL20: 372291.1194 | BM20: 0 | BN20: 231945.1062 | BQ20: 0 | BR20: 187443.3591 | BS20: 0 | BT20: 187443.3591 | BU20: 0 | BV20: 0 | BW20: 210651.8997 | BX20: 0 | BY20: 78291.711 | BZ20: 0 | CA20: 0 | CB20: 288943.6107 | CC20: 0 | CD20: 0 | CE20: 0 | CF20: 17917919.38 | CG20: 12567633.98 | CH20: 3711048.107 | CI20: 1639237.295 | CJ20: 0 | CK20: 1639237.295
A21: 519 | B21: Kanungu District | C21: 0 | D21: 0 | E21: 466434.4795 | F21: 226986.9174 | G21: 500774.4168 | H21: 1183686.157 | I21: 0 | J21: 0 | K21: 431447.5869 | L21: 7438235.308 | M21: 1951330.992 | N21: 2216598.423 | O21: 86950.55399 | P21: 24523.2 | Q21: 541467.3407 | R21: 159296.9703 | S21: 137576.6687 | T21: 198621.7931 | U21: 1481177.165 | V21: 11587.37919 | W21: 28120.48592 | X21: 0 | Y21: 28120.48592 | Z21: 16000 | AA21: 36110.2244 | AB21: 13635.94472 | AC21: 0 | AD21: 49746.16912 | AE21: 0 | AF21: 0 | AG21: 15615.41763 | AH21: 0 | AI21: 4450.42496 | AJ21: 0 | AK21: 4450.42496 | AL21: 10569.50864 | AM21: 39484.65793 | AN21: 170352 | AO21: 86034.64926 | AP21: 22066.84541 | AQ21: 21779.17473 | AR21: 26242 | AS21: 48021.17473 | AT21: 57525.50307 | AU21: 0 | AV21: 7200 | AW21: 0 | AX21: 64725.50307 | AY21: 22000 | AZ21: 2354410.997 | BA21: 143335.6667 | BB21: 160984 | BC21: 354985.3358 | BD21: 0 | BE21: 255095 | BF21: 20902693.19 | BG21: 350146.1145 | BH21: 0 | BI21: 350146.1145 | BJ21: 356129.1629 | BK21: 0 | BL21: 356129.1629 | BM21: 0 | BN21: 208018.6594 | BQ21: 0 | BR21: 168081.6 | BS21: 0 | BT21: 168081.6 | BU21: 0 | BV21: 0 | BW21: 210651.8997 | BX21: 0 | BY21: 0 | BZ21: 203044.85 | CA21: 0 | CB21: 413696.7497 | CC21: 0 | CD21: 0 | CE21: 0 | CF21: 22398765.47 | CG21: 14258993.64 | CH21: 6643699.55 | CI21: 1496072.286 | CJ21: 0 | CK21: 1496072.286
A22: 520 | B22: Kapchorwa District | C22: 30000 | D22: 0 | E22: 280174.08 | F22: 66912.63213 | G22: 125193.6042 | H22: 1335062.569 | I22: 0 | J22: 0 | K22: 471394.2102 | L22: 3253553.726 | M22: 1374303.114 | N22: 2412599.746 | O22: 31670.9818 | P22: 24523.2 | Q22: 233061.7233 | R22: 54739.10342 | S22: 137576.6687 | T22: 4587.725678 | U22: 643878.6771 | V22: 7097.824591 | W22: 28120.48592 | X22: 53512.03864 | Y22: 81632.52456 | Z22: 0 | AA22: 20117.24482 | AB22: 8352.695224 | AC22: 14204.03155 | AD22: 42673.9716 | AE22: 0 | AF22: 0 | AG22: 1798.013243 | AH22: 0 | AI22: 5254.945889 | AJ22: 6295.533957 | AK22: 11550.47985 | AL22: 6474.330146 | AM22: 25055.90118 | AN22: 155750.4 | AO22: 106635.7772 | AP22: 13516.99944 | AQ22: 9657.962605 | AR22: 10547 | AS22: 20204.9626 | AT22: 29581.39584 | AU22: 0 | AV22: 0 | AW22: 35412.37851 | AX22: 64993.77435 | AY22: 22000 | AZ22: 0 | BA22: 0 | BB22: 160984 | BC22: 0 | BD22: 201979.1818 | BE22: 226595 | BF22: 11628174.9 | BG22: 170744.6278 | BH22: 130081.4704 | BI22: 300826.0982 | BJ22: 373432.0176 | BK22: 88242.43612 | BL22: 461674.4537 | BM22: 0 | BN22: 208487.8192 | BQ22: 0 | BR22: 98255.89977 | BS22: 161323.0577 | BT22: 259578.9574 | BU22: 0 | BV22: 800000 | BW22: 105325.9498 | BX22: 0 | BY22: 39606.413 | BZ22: 0 | CA22: 138501.7471 | CB22: 283434.1099 | CC22: 0 | CD22: 82628.88319 | CE22: 82628.88319 | CF22: 14024805.22 | CG22: 9410646.551 | CH22: 2217528.351 | CI22: 2396630.322 | CJ22: 0 | CK22: 2396630.322
A23: 521 | B23: Kasese District | C23: 0 | D23: 0 | E23: 1070085.735 | F23: 247899.5572 | G23: 375580.8126 | H23: 2526091.056 | I23: 0 | J23: 0 | K23: 272589.5615 | L23: 16939918.93 | M23: 2683638.231 | N23: 6468008.191 | O23: 49383.43612 | P23: 24523.2 | Q23: 1243172.525 | R23: 284198.1926 | S23: 137576.6687 | T23: 812806.6585 | U23: 2876419.857 | V23: 29862.7777 | W23: 28120.48592 | X23: 0 | Y23: 28120.48592 | Z23: 0 | AA23: 68877.85712 | AB23: 28786.23988 | AC23: 0 | AD23: 97664.097 | AE23: 0 | AF23: 0 | AG23: 35230.51258 | AH23: 0 | AI23: 9213.328542 | AJ23: 0 | AK23: 9213.328542 | AL23: 27239.54071 | AM23: 95215.55649 | AN23: 209289.6 | AO23: 152332.9073 | AP23: 56870.26275 | AQ23: 34545.13217 | AR23: 47211 | AS23: 81756.13217 | AT23: 230748.4012 | AU23: 0 | AV23: 7200 | AW23: 0 | AX23: 237948.4012 | AY23: 22000 | AZ23: 0 | BA23: 0 | BB23: 0 | BC23: 237642.6683 | BD23: 201979.1818 | BE23: 426095 | BF23: 37960353.07 | BG23: 1097620.024 | BH23: 0 | BI23: 1097620.024 | BJ23: 551546.9968 | BK23: 0 | BL23: 551546.9968 | BM23: 52968.74976 | BN23: 461280.9368 | BQ23: 0 | BR23: 183883.931 | BS23: 0 | BT23: 183883.931 | BU23: 0 | BV23: 0 | BW23: 280868.811 | BX23: 0 | BY23: 0 | BZ23: 0 | CA23: 0 | CB23: 280868.811 | CC23: 0 | CD23: 0 | CE23: 0 | CF23: 40588522.52 | CG23: 29975118.02 | CH23: 7985235.046 | CI23: 2628169.449 | CJ23: 0 | CK23: 2628169.449
A24: 522 | B24: Katakwi District | C24: 0 | D24: 0 | E24: 387328.156 | F24: 52546.62839 | G24: 125193.6042 | H24: 1248482.846 | I24: 0 | J24: 58262.35331 | K24: 235638.5194 | L24: 3769520.693 | M24: 671287.2935 | N24: 1328236.209 | O24: 29616.56208 | P24: 24523.2 | Q24: 443961.0902 | R24: 117853.5664 | S24: 109249.995 | T24: 42479.14132 | U24: 535635.0221 | V24: 10593.59247 | W24: 28120.48592 | X24: 0 | Y24: 28120.48592 | Z24: 0 | AA24: 25994.68452 | AB24: 8481.720597 | AC24: 21320.09352 | AD24: 55796.49864 | AE24: 0 | AF24: 0 | AG24: 2683.557379 | AH24: 0 | AI24: 7258.488713 | AJ24: 75152.93661 | AK24: 82411.42533 | AL24: 9663.019171 | AM24: 23483.24844 | AN24: 131414.4 | AO24: 68779.38603 | AP24: 20174.29167 | AQ24: 14042.23082 | AR24: 11175 | AS24: 25217.23082 | AT24: 73830.79856 | AU24: 0 | AV24: 0 | AW24: 110171.8442 | AX24: 184002.6428 | AY24: 0 | AZ24: 0 | BA24: 0 | BB24: 160984 | BC24: 0 | BD24: 0 | BE24: 155345 | BF24: 10138483.66 | BG24: 329072.0582 | BH24: 251053.8335 | BI24: 580125.8918 | BJ24: 468769.3833 | BK24: 62955.33957 | BL24: 531724.7229 | BM24: 482931.4993 | BN24: 177780.1321 | BQ24: 0 | BR24: 96950.62723 | BS24: 141649.514 | BT24: 238600.1413 | BU24: 101859.765 | BV24: 0 | BW24: 175542.8612 | BX24: 0 | BY24: 0 | BZ24: 150000 | CA24: 262051.601 | CB24: 587594.4621 | CC24: 512002.2805 | CD24: 141649.514 | CE24: 653651.7946 | CF24: 13492752.07 | CG24: 7719258.326 | CH24: 2419225.331 | CI24: 3252408.644 | CJ24: 101859.765 | CK24: 3354268.409
A25: 523 | B25: Kayunga District | C25: 0 | D25: 0 | E25: 654203.9678 | F25: 96211.94968 | G25: 125193.6042 | H25: 1360109.245 | I25: 0 | J25: 0 | K25: 167412.0113 | L25: 10583825.38 | M25: 2280907.347 | N25: 3016784.705 | O25: 14118.78312 | P25: 24523.2 | Q25: 838636.7683 | R25: 203020.7451 | S25: 131633.602 | T25: 29959.9992 | U25: 1615202.642 | V25: 13820.70176 | W25: 28120.48592 | X25: 0 | Y25: 28120.48592 | Z25: 0 | AA25: 37635.90935 | AB25: 16359.05918 | AC25: 0 | AD25: 53994.96853 | AE25: 0 | AF25: 0 | AG25: 13875.68498 | AH25: 0 | AI25: 6421.041787 | AJ25: 0 | AK25: 6421.041787 | AL25: 12606.64939 | AM25: 44892.41496 | AN25: 126547.2 | AO25: 69269.9875 | AP25: 26319.95418 | AQ25: 26034.49387 | AR25: 35911 | AS25: 61945.49387 | AT25: 87383.75415 | AU25: 0 | AV25: 7200 | AW25: 0 | AX25: 94583.75415 | AY25: 22000 | AZ25: 0 | BA25: 0 | BB25: 0 | BC25: 235765.3349 | BD25: 0 | BE25: 141095 | BF25: 22093002.62 | BG25: 541445.3032 | BH25: 0 | BI25: 541445.3032 | BJ25: 520052.3559 | BK25: 0 | BL25: 520052.3559 | BM25: 70624.99968 | BN25: 192889.3605 | BQ25: 0 | BR25: 189974.6025 | BS25: 0 | BT25: 189974.6025 | BU25: 0 | BV25: 0 | BW25: 280868.811 | BX25: 0 | BY25: 0 | BZ25: 124893.85 | CA25: 0 | CB25: 405762.661 | CC25: 0 | CD25: 0 | CE25: 0 | CF25: 24013751.91 | CG25: 17840516.48 | CH25: 4252486.147 | CI25: 1920749.283 | CJ25: 0 | CK25: 1920749.283
A26: 524 | B26: Kibale District | C26: 0 | D26: 0 | E26: 1210667.601 | F26: 296370.9651 | G26: 500774.4168 | H26: 2081039.926 | I26: 0 | J26: 0 | K26: 144978.577 | L26: 13825784.31 | M26: 2101861.085 | N26: 2809627.178 | O26: 28988.36124 | P26: 24523.2 | Q26: 1272059.93 | R26: 252118.5093 | S26: 131633.602 | T26: 97134.89161 | U26: 2157850.519 | V26: 36082.25535 | W26: 28120.48592 | X26: 0 | Y26: 28120.48592 | Z26: 0 | AA26: 60222.83414 | AB26: 21078.67152 | AC26: 0 | AD26: 81301.50567 | AE26: 0 | AF26: 0 | AG26: 47180.66369 | AH26: 0 | AI26: 8723.441585 | AJ26: 0 | AK26: 8723.441585 | AL26: 32912.68057 | AM26: 56827.49951 | AN26: 253094.4 | AO26: 225006.9676 | AP26: 68714.55037 | AQ26: 38929.40039 | AR26: 73579 | AS26: 112508.4004 | AT26: 200372.229 | AU26: 0 | AV26: 0 | AW26: 0 | AX26: 200372.229 | AY26: 22000 | AZ26: 0 | BA26: 0 | BB26: 0 | BC26: 192473.3346 | BD26: 0 | BE26: 511595 | BF26: 28812326.48 | BG26: 1111133.645 | BH26: 0 | BI26: 1111133.645 | BJ26: 472906.0166 | BK26: 0 | BL26: 472906.0166 | BM26: 284406.9997 | BN26: 474905.6617 | BQ26: 0 | BR26: 192815.1091 | BS26: 0 | BT26: 192815.1091 | BU26: 0 | BV26: 0 | BW26: 280868.811 | BX26: 0 | BY26: 0 | BZ26: 0 | CA26: 0 | CB26: 280868.811 | CC26: 2230000 | CD26: 0 | CE26: 2230000 | CF26: 33859362.73 | CG26: 22282266.45 | CH26: 6530060.032 | CI26: 5047036.243 | CJ26: 0 | CK26: 5047036.243
A27: 525 | B27: Kiboga District | C27: 0 | D27: 0 | E27: 366840.5121 | F27: 156133.8718 | G27: 250387.2084 | H27: 1024241.602 | I27: 0 | J27: 0 | K27: 0 | L27: 5348134.878 | M27: 551294.9598 | N27: 1862020.544 | O27: 14763.9462 | P27: 24523.2 | Q27: 323501.1843 | R27: 77354.00281 | S27: 131633.602 | T27: 23822.68387 | U27: 526904.5474 | V27: 8344.97498 | W27: 28120.48592 | X27: 0 | Y27: 28120.48592 | Z27: 0 | AA27: 21730.06652 | AB27: 7327.283046 | AC27: 0 | AD27: 29057.34956 | AE27: 0 | AF27: 0 | AG27: 2113.94003 | AH27: 0 | AI27: 6218.920805 | AJ27: 0 | AK27: 6218.920805 | AL27: 7611.927061 | AM27: 24739.65604 | AN27: 126547.2 | AO27: 48716.46618 | AP27: 15892.05547 | AQ27: 15847.51773 | AR27: 15570 | AS27: 31417.51773 | AT27: 51284.22174 | AU27: 0 | AV27: 0 | AW27: 0 | AX27: 51284.22174 | AY27: 22000 | AZ27: 0 | BA27: 0 | BB27: 0 | BC27: 0 | BD27: 0 | BE27: 126845 | BF27: 11210466.46 | BG27: 365934.6627 | BH27: 0 | BI27: 365934.6627 | BJ27: 414560.0176 | BK27: 0 | BL27: 414560.0176 | BM27: 106891 | BN27: 135473.0975 | BQ27: 0 | BR27: 99923.37686 | BS27: 0 | BT27: 99923.37686 | BU27: 0 | BV27: 700000 | BW27: 210651.8997 | BX27: 0 | BY27: 0 | BZ27: 0 | CA27: 0 | CB27: 210651.8997 | CC27: 0 | CD27: 0 | CE27: 0 | CF27: 13243900.51 | CG27: 9328758.539 | CH27: 1881707.92 | CI27: 2033434.054 | CJ27: 0 | CK27: 2033434.054
A28: 526 | B28: Kisoro District | C28: 30000 | D28: 0 | E28: 521285.0758 | F28: 73578.94748 | G28: 184620.4499 | H28: 2233304.886 | I28: 0 | J28: 0 | K28: 534193.0858 | L28: 9703484.334 | M28: 1939859.212 | N28: 4074703.516 | O28: 54791.93555 | P28: 24523.2 | Q28: 701081.9535 | R28: 157937.7451 | S28: 137331.122 | T28: 353304.2989 | U28: 997362.9756 | V28: 13947.02284 | W28: 28120.48592 | X28: 0 | Y28: 28120.48592 | Z28: 0 | AA28: 39732.45747 | AB28: 16814.04339 | AC28: 0 | AD28: 56546.50086 | AE28: 0 | AF28: 0 | AG28: 3533.044731 | AH28: 0 | AI28: 5752.554846 | AJ28: 0 | AK28: 5752.554846 | AL28: 12721.87404 | AM28: 47197.34638 | AN28: 150883.2 | AO28: 76771.72941 | AP28: 26560.51831 | AQ28: 22552.86912 | AR28: 25112 | AS28: 47664.86912 | AT28: 68744.84783 | AU28: 0 | AV28: 7200 | AW28: 0 | AX28: 75944.84783 | AY28: 22000 | AZ28: 3242243.653 | BA28: 0 | BB28: 0 | BC28: 209146.6681 | BD28: 201979.1818 | BE28: 212345 | BF28: 26154721.24 | BG28: 411059.7018 | BH28: 0 | BI28: 411059.7018 | BJ28: 772428.2645 | BK28: 0 | BL28: 772428.2645 | BM28: 0 | BN28: 166529.2045 | BQ28: 0 | BR28: 99923.37686 | BS28: 0 | BT28: 99923.37686 | BU28: 0 | BV28: 0 | BW28: 210651.8997 | BX28: 0 | BY28: 0 | BZ28: 0 | CA28: 0 | CB28: 210651.8997 | CC28: 0 | CD28: 0 | CE28: 0 | CF28: 27815313.68 | CG28: 19112708.82 | CH28: 7042012.416 | CI28: 1660592.447 | CJ28: 0 | CK28: 1660592.447
A29: 527 | B29: Kitgum District | C29: 30000 | D29: 0 | E29: 400718.8538 | F29: 174004.9125 | G29: 202793.072 | H29: 1096095.348 | I29: 0 | J29: 64358.08411 | K29: 669165.5723 | L29: 5605945.189 | M29: 1301158.91 | N29: 2006616.815 | O29: 30201.80952 | P29: 24523.2 | Q29: 531115.671 | R29: 119385.6508 | S29: 256929.0962 | T29: 428234.757 | U29: 1744158.571 | V29: 17811.93416 | W29: 28120.48592 | X29: 39347.08723 | Y29: 67467.57316 | Z29: 0 | AA29: 41548.76649 | AB29: 11782.05383 | AC29: 33430.02497 | AD29: 86760.8453 | AE29: 0 | AF29: 0 | AG29: 4512.099883 | AH29: 0 | AI29: 8095.40264 | AJ29: 62955.33957 | AK29: 71050.74221 | AL29: 16247.27983 | AM29: 34053.62163 | AN29: 131414.4 | AO29: 78388.22059 | AP29: 33920.80222 | AQ29: 17265.95745 | AR29: 16197 | AS29: 33462.95745 | AT29: 120269.4694 | AU29: 0 | AV29: 7200 | AW29: 118041.2617 | AX29: 245510.7311 | AY29: 22000 | AZ29: 1929715.607 | BA29: 73061.66667 | BB29: 0 | BC29: 210649.3348 | BD29: 372513.1417 | BE29: 155345 | BF29: 18269291.47 | BG29: 623441.1185 | BH29: 323841.527 | BI29: 947282.6456 | BJ29: 351026.5263 | BK29: 220343.6885 | BL29: 571370.2148 | BM29: 52968.74976 | BN29: 180646.3338 | BQ29: 0 | BR29: 132559.7876 | BS29: 354123.7851 | BT29: 486683.5727 | BU29: 0 | BV29: 0 | BW29: 105325.9498 | BX29: 0 | BY29: 0 | BZ29: 0 | CA29: 259690.7757 | CB29: 365016.7256 | CC29: 512002.2805 | CD29: 259727.7588 | CE29: 771730.0394 | CF29: 21644989.75 | CG29: 11223259.32 | CH29: 7046032.154 | CI29: 3375698.281 | CJ29: 0 | CK29: 3375698.281
A30: 528 | B30: Kotido District | C30: 0 | D30: 0 | E30: 416112.6845 | F30: 97315.59266 | G30: 125193.6042 | H30: 959140.5189 | I30: 25278.51459 | J30: 65930.141 | K30: 272977.8065 | L30: 2096164.199 | M30: 187981.8466 | N30: 633556.7717 | O30: 58278.21792 | P30: 24523.2 | Q30: 133925.6146 | R30: 132411.7932 | S30: 0 | T30: 137551.2629 | U30: 318100.7454 | V30: 10725.44698 | W30: 28120.48592 | X30: 33380.95686 | Y30: 61501.44278 | Z30: 16000 | AA30: 21919.8871 | AB30: 4013.368193 | AC30: 33380.95694 | AD30: 59314.21223 | AE30: 0 | AF30: 0 | AG30: 2716.958621 | AH30: 0 | AI30: 6610.96577 | AJ30: 33380.95686 | AK30: 39991.92263 | AL30: 9783.291182 | AM30: 12228.00766 | AN30: 111945.6 | AO30: 34754.11029 | AP30: 20425.39359 | AQ30: 7207.930368 | AR30: 3641 | AS30: 10848.93037 | AT30: 126954.509 | AU30: 0 | AV30: 0 | AW30: 50071.43568 | AX30: 177025.9447 | AY30: 22000 | AZ30: 439238.1124 | BA30: 0 | BB30: 0 | BC30: 0 | BD30: 134653.1212 | BE30: 98345 | BF30: 6945940.009 | BG30: 630999.8056 | BH30: 200285.7412 | BI30: 831285.5468 | BJ30: 470414.2107 | BK30: 417261.9619 | BL30: 887676.1726 | BM30: 0 | BN30: 123740.7297 | BQ30: 0 | BR30: 100200.2445 | BS30: 333809.5694 | BT30: 434009.8138 | BU30: 0 | BV30: 0 | BW30: 105325.9498 | BX30: 0 | BY30: 0 | BZ30: 0 | CA30: 400571.4831 | CB30: 505897.4329 | CC30: 0 | CD30: 166904.7851 | CE30: 166904.7851 | CF30: 9895454.49 | CG30: 4568106.765 | CH30: 2377833.244 | CI30: 2949514.481 | CJ30: 0 | CK30: 2949514.481
A31: 529 | B31: Kumi District | C31: 30000 | D31: 0 | E31: 485093.3757 | F31: 63373.13625 | G31: 125193.6042 | H31: 1402887.09 | I31: 0 | J31: 0 | K31: 208375.5977 | L31: 6324033.898 | M31: 1823745.036 | N31: 2606719.993 | O31: 50676.08832 | P31: 24523.2 | Q31: 629694.8382 | R31: 100621.9709 | S31: 153622.9489 | T31: 312101.4661 | U31: 704598.2267 | V31: 10281.18099 | W31: 28120.48592 | X31: 11804.12617 | Y31: 39924.61209 | Z31: 0 | AA31: 25701.65497 | AB31: 10301.65744 | AC31: 18706.02373 | AD31: 54709.33614 | AE31: 0 | AF31: 0 | AG31: 2604.41764 | AH31: 0 | AI31: 10204.67345 | AJ31: 7869.417446 | AK31: 18074.0909 | AL31: 9378.050861 | AM31: 28174.0554 | AN31: 116812.8 | AO31: 45310.57647 | AP31: 19579.33954 | AQ31: 16363.31399 | AR31: 13184 | AS31: 29547.31399 | AT31: 76105.86965 | AU31: 0 | AV31: 0 | AW31: 66890.04829 | AX31: 142995.9179 | AY31: 0 | AZ31: 0 | BA31: 0 | BB31: 160984 | BC31: 0 | BD31: 0 | BE31: 112595 | BF31: 15836231.16 | BG31: 468219.2118 | BH31: 139919.0732 | BI31: 608138.285 | BJ31: 361921.0223 | BK31: 201421.6742 | BL31: 563342.6966 | BM31: 0 | BN31: 219996.4701 | BQ31: 0 | BR31: 114467.7107 | BS31: 192800.7274 | BT31: 307268.4382 | BU31: 171164.1716 | BV31: 0 | BW31: 210651.8997 | BX31: 0 | BY31: 0 | BZ31: 0 | CA31: 223491.4555 | CB31: 434143.3552 | CC31: 512002.2805 | CD31: 72398.64051 | CE31: 584400.921 | CF31: 18724685.5 | CG31: 12795562.31 | CH31: 3040668.855 | CI31: 2717290.166 | CJ31: 171164.1716 | CK31: 2888454.338
A32: 530 | B32: Kyenjonjo District | C32: 30000 | D32: 0 | E32: 719554.3329 | F32: 267232.0561 | G32: 500774.4168 | H32: 1809952.686 | I32: 0 | J32: 0 | K32: 680842.3457 | L32: 6771795.678 | M32: 1033514.552 | N32: 2089304.23 | O32: 54673.88375 | P32: 24523.2 | Q32: 678128.0316 | R32: 160318.727 | S32: 109249.995 | T32: 80906.87975 | U32: 1287852.388 | V32: 19042.03357 | W32: 28120.48592 | X32: 0 | Y32: 28120.48592 | Z32: 366000 | AA32: 35299.75543 | AB32: 12012.94134 | AC32: 0 | AD32: 47312.69677 | AE32: 0 | AF32: 0 | AG32: 23267.51137 | AH32: 0 | AI32: 8547.5346 | AJ32: 0 | AK32: 8547.5346 | AL32: 17369.32357 | AM32: 34848.90331 | AN32: 160617.6 | AO32: 115642.8948 | AP32: 36263.3866 | AQ32: 21005.48034 | AR32: 26745 | AS32: 47750.48034 | AT32: 88221.02338 | AU32: 0 | AV32: 0 | AW32: 0 | AX32: 88221.02338 | AY32: 22000 | AZ32: 0 | BA32: 0 | BB32: 0 | BC32: 0 | BD32: 242375.2182 | BE32: 240845 | BF32: 17796847.49 | BG32: 611512.1829 | BH32: 0 | BI32: 611512.1829 | BJ32: 535499.5786 | BK32: 0 | BL32: 535499.5786 | BM32: 0 | BN32: 281515.2385 | BQ32: 0 | BR32: 154337.0969 | BS32: 0 | BT32: 154337.0969 | BU32: 0 | BV32: 0 | BW32: 351085.8056 | BX32: 0 | BY32: 0 | BZ32: 0 | CA32: 0 | CB32: 351085.8056 | CC32: 0 | CD32: 0 | CE32: 0 | CF32: 19730797.4 | CG32: 13366843.59 | CH32: 4430003.903 | CI32: 1933949.903 | CJ32: 0 | CK32: 1933949.903
A33: 531 | B33: Lira District | C33: 47143 | D33: 25000 | E33: 507093.1596 | F33: 0 | G33: 0 | H33: 1245211.519 | I33: 0 | J33: 99328.32921 | K33: 320781.9811 | L33: 8820659.584 | M33: 2224041.754 | N33: 2026605.521 | O33: 51907.62815 | P33: 24523.2 | Q33: 712740.3254 | R33: 141237.6726 | S33: 0 | T33: 53839.58634 | U33: 1822287.745 | V33: 11437.13261 | W33: 28120.48592 | X33: 57578.84497 | Y33: 85699.3309 | Z33: 350000 | AA33: 37171.68628 | AB33: 14715.68337 | AC33: 38385.89647 | AD33: 90273.26612 | AE33: 0 | AF33: 707937.3458 | AG33: 2897.242053 | AH33: 0 | AI33: 12083.82329 | AJ33: 76771.79304 | AK33: 88855.61633 | AL33: 10432.46018 | AM33: 53389.19624 | AN33: 146016 | AO33: 121080 | AP33: 21780.71789 | AQ33: 16492.26306 | AR33: 14942 | AS33: 31434.26306 | AT33: 128472.5307 | AU33: 0 | AV33: 7200 | AW33: 191929.4822 | AX33: 327602.0129 | AY33: 22000 | AZ33: 0 | BA33: 128000 | BB33: 0 | BC33: 0 | BD33: 261900.2357 | BE33: 198095 | BF33: 20781230.82 | BG33: 495515.8276 | BH33: 345473.0683 | BI33: 840988.8959 | BJ33: 568812.2 | BK33: 172736.5341 | BL33: 741548.7342 | BM33: 52968.74976 | BN33: 251674.7424 | BQ33: 0 | BR33: 57372.1307 | BS33: 287894.2233 | BT33: 345266.354 | BU33: 138108.2884 | BV33: 0 | BW33: 175542.8612 | BX33: 0 | BY33: 0 | BZ33: 0 | CA33: 575788.4474 | CB33: 751331.3085 | CC33: 512002.2805 | CD33: 172736.5341 | CE33: 684738.8147 | CF33: 24587856.71 | CG33: 15057842.19 | CH33: 5723388.638 | CI33: 3668517.599 | CJ33: 138108.2884 | CK33: 3806625.888
A34: 532 | B34: Luwero District | C34: 30000 | D34: 0 | E34: 726168.2945 | F34: 294761.1159 | G34: 453180.2804 | H34: 1922048.15 | I34: 0 | J34: 0 | K34: 582457.3154 | L34: 16591622.11 | M34: 5885953.508 | N34: 4018827.901 | O34: 37684.90752 | P34: 24523.2 | Q34: 1115922.494 | R34: 199166.4556 | S34: 0 | T34: 181052.5607 | U34: 3145128.02 | V34: 19116.90934 | W34: 28120.48592 | X34: 0 | Y34: 28120.48592 | Z34: 66000 | AA34: 56986.37002 | AB34: 23591.2709 | AC34: 0 | AD34: 80577.64092 | AE34: 0 | AF34: 0 | AG34: 4842.674783 | AH34: 0 | AI34: 9058.276555 | AJ34: 0 | AK34: 9058.276555 | AL34: 17437.62203 | AM34: 72691.93773 | AN34: 146016 | AO34: 102352.9324 | AP34: 36405.97898 | AQ34: 33771.43778 | AR34: 49220 | AS34: 82991.43778 | AT34: 111749.7303 | AU34: 0 | AV34: 0 | AW34: 0 | AX34: 111749.7303 | AY34: 22000 | AZ34: 0 | BA34: 111183.3333 | BB34: 0 | BC34: 0 | BD34: 0 | BE34: 198095 | BF34: 36317136.27 | BG34: 736769.7957 | BH34: 0 | BI34: 736769.7957 | BJ34: 475006.6101 | BK34: 0 | BL34: 475006.6101 | BM34: 171609.2828 | BN34: 261334.1794 | BQ34: 0 | BR34: 139284.4674 | BS34: 0 | BT34: 139284.4674 | BU34: 0 | BV34: 0 | BW34: 280868.811 | BX34: 0 | BY34: 134050 | BZ34: 0 | CA34: 0 | CB34: 414918.811 | CC34: 0 | CD34: 0 | CE34: 0 | CF34: 38516059.42 | CG34: 29860408.37 | CH34: 6456727.901 | CI34: 2198923.146 | CJ34: 0 | CK34: 2198923.146
A35: 533 | B35: Masaka District | C35: 47143 | D35: 25000 | E35: 459601.7905 | F35: 0 | G35: 0 | H35: 1033929.564 | I35: 0 | J35: 0 | K35: 338316.003 | L35: 5000788.043 | M35: 1256718.664 | N35: 1581891.355 | O35: 42383.30136 | P35: 24523.2 | Q35: 317456.192 | R35: 140232.3785 | S35: 0 | T35: 397663.1838 | U35: 1067364.744 | V35: 7881.589106 | W35: 28120.48592 | X35: 0 | Y35: 28120.48592 | Z35: 0 | AA35: 27294.52569 | AB35: 8821.261053 | AC35: 0 | AD35: 36115.78674 | AE35: 0 | AF35: 251473.3378 | AG35: 7760.244382 | AH35: 0 | AI35: 11947.3043 | AJ35: 0 | AK35: 11947.3043 | AL35: 7189.246408 | AM35: 35770.13009 | AN35: 111945.6 | AO35: 63760.53896 | AP35: 15009.58979 | AQ35: 14558.02708 | AR35: 15193 | AS35: 29751.02708 | AT35: 68261.37537 | AU35: 0 | AV35: 0 | AW35: 0 | AX35: 68261.37537 | AY35: 22000 | AZ35: 0 | BA35: 0 | BB35: 115706.6667 | BC35: 221536.0015 | BD35: 413983.1075 | BE35: 141095 | BF35: 13322318.45 | BG35: 318806.6272 | BH35: 0 | BI35: 318806.6272 | BJ35: 364684.885 | BK35: 0 | BL35: 364684.885 | BM35: 203891.378 | BN35: 143173.7412 | BQ35: 0 | BR35: 140364.3075 | BS35: 0 | BT35: 140364.3075 | BU35: 0 | BV35: 0 | BW35: 210651.8997 | BX35: 0 | BY35: 0 | BZ35: 0 | CA35: 0 | CB35: 210651.8997 | CC35: 0 | CD35: 0 | CE35: 0 | CF35: 14703891.29 | CG35: 9531590.73 | CH35: 3790727.72 | CI35: 1381572.839 | CJ35: 0 | CK35: 1381572.839
A36: 534 | B36: Masindi District | C36: 30000 | D36: 0 | E36: 552931.8094 | F36: 0 | G36: 5068.102 | H36: 1381139.213 | I36: 0 | J36: 0 | K36: 0 | L36: 5131866.79 | M36: 791178.8807 | N36: 2689874.247 | O36: 71637.60755 | P36: 24523.2 | Q36: 380747.8023 | R36: 105846.145 | S36: 147227.893 | T36: 6889.281118 | U36: 385360.6494 | V36: 11045.76322 | W36: 28120.48592 | X36: 0 | Y36: 28120.48592 | Z36: 0 | AA36: 26382.10101 | AB36: 9500.341966 | AC36: 26889.31546 | AD36: 62771.75843 | AE36: 8054.97032 | AF36: 0 | AG36: 2798.100782 | AH36: 0 | AI36: 7361.971704 | AJ36: 8515.506062 | AK36: 15877.47777 | AL36: 10075.46986 | AM36: 37046.14125 | AN36: 107078.4 | AO36: 49388.80956 | AP36: 21035.39941 | AQ36: 13397.48549 | AR36: 15444 | AS36: 28841.48549 | AT36: 124505.8618 | AU36: 0 | AV36: 7200 | AW36: 66714.53274 | AX36: 198420.3946 | AY36: 22000 | AZ36: 0 | BA36: 0 | BB36: 0 | BC36: 0 | BD36: 201979.1818 | BE36: 141095 | BF36: 12649920.46 | BG36: 362368.901 | BH36: 119041.5292 | BI36: 481410.4302 | BJ36: 361803.498 | BK36: 105699.1436 | BL36: 467502.6415 | BM36: 0 | BN36: 162634.6896 | BQ36: 0 | BR36: 148186.1968 | BS36: 333198.9333 | BT36: 481385.1301 | BU36: 0 | BV36: 0 | BW36: 140433.9059 | BX36: 0 | BY36: 0 | BZ36: 0 | CA36: 307286.281 | CB36: 447720.1869 | CC36: 0 | CD36: 377120.5318 | CE36: 377120.5318 | CF36: =BF36+CK36 -> 15067694.07 | CG36: 10343461.44 | CH36: 2306459.019 | CI36: 2417773.61 | CJ36: 0 | CK36: 2417773.61
A37: 535 | B37: Mayuge District | C37: 0 | D37: 0 | E37: 741115.9852 | F37: 61439.47437 | G37: 125193.6042 | H37: 1377349.96 | I37: 0 | J37: 0 | K37: 932677.8335 | L37: 9005563.256 | M37: 1429821.466 | N37: 1548031.699 | O37: 57005.20331 | P37: 24523.2 | Q37: 897070.25 | R37: 203142.4329 | S37: 0 | T37: 200939.6247 | U37: 2084191.6 | V37: 20629.15528 | W37: 28120.48592 | X37: 0 | Y37: 28120.48592 | Z37: 0 | AA37: 46019.26103 | AB37: 15116.34111 | AC37: 0 | AD37: 61135.60214 | AE37: 0 | AF37: 0 | AG37: 5225.755288 | AH37: 0 | AI37: 7138.479724 | AJ37: 0 | AK37: 7138.479724 | AL37: 18817.0277 | AM37: 42967.69619 | AN37: 146016 | AO37: 85708.17058 | AP37: 39285.87934 | AQ37: 22810.76725 | AR37: 33776 | AS37: 56586.76725 | AT37: 148539.3853 | AU37: 0 | AV37: 0 | AW37: 0 | AX37: 148539.3853 | AY37: 22000 | AZ37: 442328.5086 | BA37: 0 | BB37: 0 | BC37: 370565.3359 | BD37: 0 | BE37: 198095 | BF37: 20381224.84 | BG37: 782160.4195 | BH37: 0 | BI37: 782160.4195 | BJ37: 672357.5685 | BK37: 0 | BL37: 672357.5685 | BM37: 177160.7559 | BN37: 250536.0335 | BQ37: 0 | BR37: 134337.7655 | BS37: 0 | BT37: 134337.7655 | BU37: 0 | BV37: 0 | BW37: 280868.811 | BX37: 0 | BY37: 0 | BZ37: 203044.85 | CA37: 0 | CB37: 483913.661 | CC37: 0 | CD37: 0 | CE37: 0 | CF37: 22881691.04 | CG37: 14844277.22 | CH37: 5536947.616 | CI37: 2500466.204 | CJ37: 0 | CK37: 2500466.204
A38: 536 | B38: Mbale District | C38: 47143 | D38: 25000 | E38: 630777.0528 | F38: 62681.27819 | G38: 125193.6042 | H38: 1686404.611 | I38: 0 | J38: 0 | K38: 1223415.686 | L38: 9706348.403 | M38: 2309162.676 | N38: 3248916.654 | O38: 123789.3753 | P38: 24523.2 | Q38: 732496.436 | R38: 165569.5201 | S38: 0 | T38: 170179.3402 | U38: 1986274.017 | V38: 17269.51039 | W38: 28120.48592 | X38: 0 | Y38: 28120.48592 | Z38: 370000 | AA38: 42218.70178 | AB38: 16610.31912 | AC38: 23980.83746 | AD38: 82809.85836 | AE38: 0 | AF38: 767357.3468 | AG38: 4374.693681 | AH38: 0 | AI38: 10472.67943 | AJ38: 7869.417446 | AK38: 18342.09688 | AL38: 15752.50421 | AM38: 72235.99302 | AN38: 180086.4 | AO38: 154672.8823 | AP38: 32887.81786 | AQ38: 17910.70277 | AR38: 19085 | AS38: 36995.70277 | AT38: 101939.4446 | AU38: 0 | AV38: 0 | AW38: 110171.8442 | AX38: 212111.2889 | AY38: 22000 | AZ38: 0 | BA38: 114847 | BB38: 0 | BC38: 0 | BD38: 541471.3552 | BE38: 340595 | BF38: 25279804.79 | BG38: 439487.3592 | BH38: 0 | BI38: 439487.3592 | BJ38: 624102.6125 | BK38: 211687.3293 | BL38: 835789.9418 | BM38: 220525.9998 | BN38: 320557.6869 | BQ38: 0 | BR38: 178951.2092 | BS38: 393470.8723 | BT38: 572422.0815 | BU38: 0 | BV38: 0 | BW38: 175542.8612 | BX38: 0 | BY38: 0 | BZ38: 0 | CA38: 334450.2415 | CB38: 509993.1026 | CC38: 0 | CD38: 117411.3306 | CE38: 117411.3306 | CF38: 28295992.29 | CG38: 18968435.61 | CH38: 6311369.18 | CI38: 3016187.502 | CJ38: 0 | CK38: 3016187.502
A39: 537 | B39: Mbarara District | C39: 47143 | D39: 25000 | E39: 1094176.911 | F39: 0 | G39: 0 | H39: 1654698.82 | I39: 0 | J39: 0 | K39: 1480924.953 | L39: 10413855.76 | M39: 3082475.359 | N39: 1978856.675 | O39: 99748.61711 | P39: 24523.2 | Q39: 722611.7962 | R39: 182752.1893 | S39: 0 | T39: 311298.9917 | U39: 1551608.196 | V39: 17280.61761 | W39: 28120.48592 | X39: 0 | Y39: 28120.48592 | Z39: 0 | AA39: 46675.08438 | AB39: 20012.51449 | AC39: 0 | AD39: 66687.59888 | AE39: 0 | AF39: 0 | AG39: 4377.50735 | AH39: 0 | AI39: 11978.7773 | AJ39: 0 | AK39: 11978.7773 | AL39: 15762.63574 | AM39: 74215.95716 | AN39: 150883.2 | AO39: 122359.361 | AP39: 32908.97029 | AQ39: 29902.96583 | AR39: 36413 | AS39: 66315.96583 | AT39: 104355.9963 | AU39: 0 | AV39: 0 | AW39: 0 | AX39: 104355.9963 | AY39: 0 | AZ39: 0 | BA39: 60000.66667 | BB39: 321968 | BC39: 959248.0065 | BD39: 548698.8639 | BE39: 255095 | BF39: 25509932.08 | BG39: 462474.2317 | BH39: 0 | BI39: 462474.2317 | BJ39: 673530.242 | BK39: 0 | BL39: 673530.242 | BM39: 178151 | BN39: 249635.9266 | BQ39: 0 | BR39: 164124.2385 | BS39: 0 | BT39: 164124.2385 | BU39: 44367.82047 | BV39: 0 | BW39: 140433.9059 | BX39: 0 | BY39: 0 | BZ39: 0 | CA39: 0 | CB39: 140433.9059 | CC39: 0 | CD39: 0 | CE39: 0 | CF39: 27422649.45 | CG39: 19141061.58 | CH39: 6368870.496 | CI39: 1868349.545 | CJ39: 44367.82047 | CK39: 1912717.365
A40: 538 | B40: Moroto District | C40: 0 | D40: 0 | E40: 324346.5824 | F40: 0 | G40: 0 | H40: 739652.7335 | I40: 0 | J40: 43504.26822 | K40: 0 | L40: 3691027.335 | M40: 115064.6704 | N40: 1212674.286 | O40: 66954.29435 | P40: 24523.2 | Q40: 61979.15555 | R40: 58597.18221 | S40: 0 | T40: 54545.92171 | U40: 44014.75116 | V40: 6988.99747 | W40: 28120.48592 | X40: 51376.27874 | Y40: 79496.76466 | Z40: 244000 | AA40: 20062.6344 | AB40: 2668.787986 | AC40: 29795.92366 | AD40: 52527.34604 | AE40: 0 | AF40: 0 | AG40: 1770.445274 | AH40: 0 | AI40: 8555.956599 | AJ40: 15098.26431 | AK40: 23654.22091 | AL40: 6375.062729 | AM40: 15772.79228 | AN40: 102211.2 | AO40: 31492.90735 | AP40: 13309.75057 | AQ40: 6563.185042 | AR40: 3265 | AS40: 9828.185042 | AT40: 83379.61473 | AU40: 0 | AV40: 0 | AW40: 34625.43676 | AX40: 118005.0515 | AY40: 22000 | AZ40: 437077.2707 | BA40: 45000 | BB40: 0 | BC40: 134073.3342 | BD40: 259529.2273 | BE40: 98345 | BF40: 8138341.936 | BG40: 413585.0483 | BH40: 125280.9573 | BI40: 538866.0057 | BJ40: 495528.9306 | BK40: 174097.483 | BL40: 669626.4136 | BM40: 106891 | BN40: 135922.3877 | BQ40: 0 | BR40: 162570.7894 | BS40: 412655.7251 | BT40: 575226.5145 | BU40: 0 | BV40: 0 | BW40: 105325.9498 | BX40: 0 | BY40: 0 | BZ40: 0 | CA40: 409209.7072 | CB40: 514535.6571 | CC40: 0 | CD40: 237656.4069 | CE40: 237656.4069 | CF40: 10917066.32 | CG40: 6050452.719 | CH40: 2087889.217 | CI40: 2778724.385 | CJ40: 0 | CK40: 2778724.385
A41: 539 | B41: Moyo District | C41: 0 | D41: 0 | E41: 616676.6991 | F41: 96383.36619 | G41: 132155.0892 | H41: 1287337.338 | I41: 0 | J41: 144244.2404 | K41: 525804.6056 | L41: 4293505.449 | M41: 756527.2665 | N41: 2756296.079 | O41: 41026.02828 | P41: 24523.2 | Q41: 321277.1373 | R41: 167506.0206 | S41: 131170.9752 | T41: 57947.2166 | U41: 509063.7193 | V41: 15919.12728 | W41: 28120.48592 | X41: 28632.45043 | Y41: 56752.93635 | Z41: 0 | AA41: 26875.95735 | AB41: 9622.57653 | AC41: 29216.98035 | AD41: 65715.51423 | AE41: 0 | AF41: 0 | AG41: 4032.616092 | AH41: 0 | AI41: 10110.55346 | AJ41: 78694.17446 | AK41: 88804.72793 | AL41: 14520.74284 | AM41: 26179.86736 | AN41: 126547.2 | AO41: 50795.28823 | AP41: 30316.16685 | AQ41: 13397.48549 | AR41: 10798 | AS41: 24195.48549 | AT41: 155142.0074 | AU41: 0 | AV41: 0 | AW41: 88137.4754 | AX41: 243279.4828 | AY41: 22000 | AZ41: 0 | BA41: 0 | BB41: 0 | BC41: 168606.6678 | BD41: 242375.2182 | BE41: 141095 | BF41: 13182580.47 | BG41: 810813.711 | BH41: 288020.6785 | BI41: 1098834.39 | BJ41: 691363.1111 | BK41: 101122.0142 | BL41: 792485.1253 | BM41: 106891 | BN41: 183043.6768 | BQ41: 0 | BR41: 161146.4977 | BS41: 291168.4455 | BT41: 452314.9432 | BU41: 180016.6658 | BV41: 0 | BW41: 105325.9498 | BX41: 0 | BY41: 0 | BZ41: 0 | CA41: 374860.1974 | CB41: 480186.1473 | CC41: 0 | CD41: 180996.6013 | CE41: 180996.6013 | CF41: 16657349.02 | CG41: 10084817.26 | CH41: 3097763.216 | CI41: 3294751.883 | CJ41: 180016.6658 | CK41: 3474768.549
A42: 540 | B42: Mpigi District | C42: 47143 | D42: 25000 | E42: 452282.826 | F42: 147137.2583 | G42: 125193.6042 | H42: 1117986.805 | I42: 0 | J42: 0 | K42: 631737.6921 | L42: 6970115.406 | M42: 2424040.556 | N42: 1992907.878 | O42: 78588.15479 | P42: 24523.2 | Q42: 477927.9365 | R42: 125831.5105 | S42: 0 | T42: 293222.6537 | U42: 1311482.19 | V42: 9839.579373 | W42: 28120.48592 | X42: 0 | Y42: 28120.48592 | Z42: 0 | AA42: 28064.56228 | AB42: 11035.06483 | AC42: 0 | AD42: 39099.62711 | AE42: 0 | AF42: 0 | AG42: 2492.551597 | AH42: 0 | AI42: 8339.158618 | AJ42: 0 | AK42: 8339.158618 | AL42: 8975.240869 | AM42: 44618.17893 | AN42: 116812.8 | AO42: 73056.98014 | AP42: 18738.3595 | AQ42: 18684.39716 | AR42: 27498 | AS42: 46182.39716 | AT42: 50287.9436 | AU42: 0 | AV42: 0 | AW42: 0 | AX42: 50287.9436 | AY42: 22000 | AZ42: 0 | BA42: 0 | BB42: 0 | BC42: 168606.6678 | BD42: 0 | BE42: 112595 | BF42: 16994885.64 | BG42: 441415.4418 | BH42: 0 | BI42: 441415.4418 | BJ42: 404774.592 | BK42: 0 | BL42: 404774.592 | BM42: 160336 | BN42: 161723.6083 | BQ42: 0 | BR42: 169921.0358 | BS42: 0 | BT42: 169921.0358 | BU42: 0 | BV42: 0 | BW42: 210651.8997 | BX42: 272000 | BY42: 0 | BZ42: 0 | CA42: 0 | CB42: 482651.8997 | CC42: 0 | CD42: 0 | CE42: 0 | CF42: 18815708.22 | CG42: 13594501.1 | CH42: 3400384.546 | CI42: 1820822.578 | CJ42: 0 | CK42: 1820822.578
A43: 541 | B43: Mubende District | C43: 30000 | D43: 0 | E43: 1197903.156 | F43: 122767.067 | G43: 202793.072 | H43: 1758339.938 | I43: 0 | J43: 0 | K43: 245616.3865 | L43: 10664335.55 | M43: 2856303.377 | N43: 2535041.783 | O43: 30803.34552 | P43: 24523.2 | Q43: 998913.2037 | R43: 231866.7824 | S43: 0 | T43: 65853.36202 | U43: 2634709.463 | V43: 25531.24142 | W43: 28120.48592 | X43: 0 | Y43: 28120.48592 | Z43: 12000 | AA43: 51850.46862 | AB43: 18491.37325 | AC43: 0 | AD43: 70341.84187 | AE43: 0 | AF43: 0 | AG43: 6467.546443 | AH43: 0 | AI43: 10140.41946 | AJ43: 0 | AK43: 10140.41946 | AL43: 23288.49972 | AM43: 49701.40085 | AN43: 175219.2 | AO43: 167129.9625 | AP43: 48621.3447 | AQ43: 32610.8962 | AR43: 58009 | AS43: 90619.8962 | AT43: 175039.6951 | AU43: 0 | AV43: 0 | AW43: 0 | AX43: 175039.6951 | AY43: 22000 | AZ43: 0 | BA43: 89092 | BB43: 0 | BC43: 224914.6682 | BD43: 0 | BE43: 283595 | BF43: 25101592.89 | BG43: 1193040.797 | BH43: 0 | BI43: 1193040.797 | BJ43: 674530.242 | BK43: 0 | BL43: 674530.242 | BM43: 0 | BN43: 412217.7816 | BQ43: 0 | BR43: 145326.7716 | BS43: 0 | BT43: 145326.7716 | BU43: 0 | BV43: 0 | BW43: 280868.811 | BX43: 0 | BY43: 0 | BZ43: 0 | CA43: 0 | CB43: 280868.811 | CC43: 0 | CD43: 0 | CE43: 0 | CF43: 27807577.3 | CG43: 18776570.86 | CH43: 6325022.037 | CI43: 2705984.403 | CJ43: 0 | CK43: 2705984.403
A44: 542 | B44: Mukono District | C44: 0 | D44: 0 | E44: 909951.2498 | F44: 0 | G44: 0 | H44: 1850728.136 | I44: 0 | J44: 0 | K44: 0 | L44: 11253381.13 | M44: 4810155.172 | N44: 2664807.631 | O44: 15167.6424 | P44: 24523.2 | Q44: 839214.6091 | R44: 190817.2389 | S44: 0 | T44: 183890.9465 | U44: 2889950.248 | V44: 20269.65616 | W44: 28120.48592 | X44: 0 | Y44: 28120.48592 | Z44: 0 | AA44: 46791.99805 | AB44: 19122.9185 | AC44: 0 | AD44: 65914.91654 | AE44: 0 | AF44: 0 | AG44: 20120.27814 | AH44: 0 | AI44: 9378.878527 | AJ44: 0 | AK44: 9378.878527 | AL44: 18489.10807 | AM44: 70190.59869 | AN44: 146016 | AO44: 103390.5265 | AP44: 38601.25415 | AQ44: 28613.47518 | AR44: 36162 | AS44: 64775.47518 | AT44: 130503.9775 | AU44: 0 | AV44: 0 | AW44: 0 | AX44: 130503.9775 | AY44: 22000 | AZ44: 100090.1375 | BA44: 0 | BB44: 0 | BC44: 0 | BD44: 0 | BE44: 226595 | BF44: 26697043.5 | BG44: 677693.8531 | BH44: 0 | BI44: 677693.8531 | BJ44: 503319.9073 | BK44: 0 | BL44: 503319.9073 | BM44: 101175.0122 | BN44: 263543.3772 | BQ44: 0 | BR44: 113586.1673 | BS44: 0 | BT44: 113586.1673 | BU44: 0 | BV44: 0 | BW44: 210651.8997 | BX44: 272000 | BY44: 0 | BZ44: 0 | CA44: 0 | CB44: 482651.8997 | CC44: 0 | CD44: 0 | CE44: 0 | CF44: 28839013.72 | CG44: 20991373.92 | CH44: 5705669.585 | CI44: 2141970.217 | CJ44: 0 | CK44: 2141970.217
A45: 543 | B45: Nakapiripirit District | C45: 0 | D45: 0 | E45: 374691.4907 | F45: 36670.15434 | G45: 125193.6042 | H45: 1084983.033 | I45: 11909.81432 | J45: 57011.12436 | K45: 309790.8788 | L45: 3088342.137 | M45: 308780.315 | N45: 1272242.038 | O45: 54904.24367 | P45: 24523.2 | Q45: 171477.9634 | R45: 76297.7357 | S45: 0 | T45: 54373.53295 | U45: 151558.5048 | V45: 10001.11334 | W45: 28120.48592 | X45: 31359.96691 | Y45: 59480.45283 | Z45: 0 | AA45: 28643.04104 | AB45: 5439.438109 | AC45: 31359.96726 | AD45: 65442.44641 | AE45: 0 | AF45: 0 | AG45: 2533.471207 | AH45: 0 | AI45: 9680.6315 | AJ45: 23676.77529 | AK45: 33357.40679 | AL45: 9122.585204 | AM45: 21444.15981 | AN45: 121680 | AO45: 39898.20808 | AP45: 19045.98257 | AQ45: 10044.8098 | AR45: 5901 | AS45: 15945.8098 | AT45: 99483.80705 | AU45: 0 | AV45: 0 | AW45: 31516.76741 | AX45: 131000.5745 | AY45: 22000 | AZ45: 1113707.6 | BA45: 0 | BB45: 0 | BC45: 160481.3344 | BD45: 0 | BE45: 126845 | BF45: 9154735.915 | BG45: 490062.1384 | BH45: 208543.7819 | BI45: 698605.9203 | BJ45: 668909.6406 | BK45: 156799.8361 | BL45: 825709.4767 | BM45: 195966 | BN45: 160250.7538 | BQ45: 0 | BR45: 190019.1112 | BS45: 225242.9651 | BT45: 415262.0763 | BU45: 0 | BV45: 0 | BW45: 140433.9059 | BX45: 0 | BY45: 0 | BZ45: 0 | CA45: 225242.9651 | CB45: 365676.871 | CC45: 0 | CD45: 634255.338 | CE45: 634255.338 | CF45: 12450462.35 | CG45: 6517284.45 | CH45: 2637451.465 | CI45: 3295726.436 | CJ45: 0 | CK45: 3295726.436
A46: 544 | B46: Nakasongola District | C46: 30000 | D46: 0 | E46: 660865.3504 | F46: 134694.7343 | G46: 375580.8126 | H46: 2014391.064 | I46: 0 | J46: 0 | K46: 209162.7564 | L46: 6166078.609 | M46: 1600445.349 | N46: 2376539.943 | O46: 44208.66828 | P46: 24523.2 | Q46: 489420.038 | R46: 111107.5976 | S46: 0 | T46: 25486.68148 | U46: 1142185.579 | V46: 9932.705382 | W46: 28120.48592 | X46: 0 | Y46: 28120.48592 | Z46: 0 | AA46: 32605.45054 | AB46: 11686.9825 | AC46: 0 | AD46: 44292.43304 | AE46: 0 | AF46: 0 | AG46: 12890.78195 | AH46: 0 | AI46: 9648.526503 | AJ46: 0 | AK46: 9648.526503 | AL46: 9060.186407 | AM46: 32609.68527 | AN46: 126547.2 | AO46: 63929.96249 | AP46: 18915.70739 | AQ46: 22810.76725 | AR46: 23606 | AS46: 46416.76725 | AT46: 59017.55159 | AU46: 0 | AV46: 0 | AW46: 0 | AX46: 59017.55159 | AY46: 22000 | AZ46: 0 | BA46: 0 | BB46: 0 | BC46: 0 | BD46: 0 | BE46: 169595 | BF46: 16057667.38 | BG46: 281574.571 | BH46: 0 | BI46: 281574.571 | BJ46: 424126.9337 | BK46: 0 | BL46: 424126.9337 | BM46: 0 | BN46: 178225.1584 | BQ46: 0 | BR46: 180338.9711 | BS46: 0 | BT46: 180338.9711 | BU46: 0 | BV46: 0 | BW46: 210651.8997 | BX46: 0 | BY46: 31540.433 | BZ46: 0 | CA46: 0 | CB46: 242192.3327 | CC46: 0 | CD46: 0 | CE46: 0 | CF46: 17364125.34 | CG46: 13107072.6 | CH46: 2950594.774 | CI46: 1306457.967 | CJ46: 0 | CK46: 1306457.967
A47: 545 | B47: Nebbi District | C47: 30000 | D47: 0 | E47: 483861.1866 | F47: 192368.6905 | G47: 443603.2044 | H47: 1794835.552 | I47: 53803.71353 | J47: 88291.84819 | K47: 335885.2324 | L47: 10275564.14 | M47: 1098282.434 | N47: 2660268.679 | O47: 41338.08864 | P47: 24523.2 | Q47: 982752.6527 | R47: 166520.508 | S47: 131576.6686 | T47: 420641.2727 | U47: 1071626.085 | V47: 15998.57101 | W47: 28120.48592 | X47: 0 | Y47: 28120.48592 | Z47: 32000 | AA47: 38493.20109 | AB47: 16977.02281 | AC47: 25168.86749 | AD47: 80639.0914 | AE47: 0 | AF47: 0 | AG47: 4052.740693 | AH47: 0 | AI47: 6443.550785 | AJ47: 35491.68728 | AK47: 41935.23807 | AL47: 14593.208 | AM47: 44552.8854 | AN47: 155750.4 | AO47: 144442.8948 | AP47: 30467.4584 | AQ47: 25905.54481 | AR47: 25363 | AS47: 51268.54481 | AT47: 113677.7014 | AU47: 0 | AV47: 0 | AW47: 39347.08723 | AX47: 153024.7887 | AY47: 22000 | AZ47: 0 | BA47: 28682.66667 | BB47: 0 | BC47: 162512.0011 | BD47: 242375.2182 | BE47: 226595 | BF47: 21774754.35 | BG47: 586340.677 | BH47: 347264.0139 | BI47: 933604.6909 | BJ47: 351026.5263 | BK47: 157388.3489 | BL47: 508414.8752 | BM47: 0 | BN47: 242085.4903 | BQ47: 0 | BR47: 151365.4254 | BS47: 109354.2495 | BT47: 260719.6749 | BU47: 165661.2698 | BV47: 0 | BW47: 175542.8612 | BX47: 0 | BY47: 0 | BZ47: 0 | CA47: 231360.8729 | CB47: 406903.7341 | CC47: 0 | CD47: 313068.2473 | CE47: 313068.2473 | CF47: 24605212.34 | CG47: 17056645.93 | CH47: 4718108.419 | CI47: 2664796.713 | CJ47: 165661.2698 | CK47: 2830457.983
A48: 546 | B48: Ntungamo District | C48: 30000 | D48: 0 | E48: 1228669.954 | F48: 140173.2678 | G48: 375580.8126 | H48: 1780226.881 | I48: 0 | J48: 0 | K48: 782094.0746 | L48: 14237128.18 | M48: 3348227.654 | N48: 3459214.977 | O48: 27550.91724 | P48: 24523.2 | Q48: 1000308.74 | R48: 260345.4618 | S48: 161348.9357 | T48: 21862.58087 | U48: 2130984.929 | V48: 20659.45472 | W48: 28120.48592 | X48: 0 | Y48: 28120.48592 | Z48: 0 | AA48: 52506.98738 | AB48: 22525.11387 | AC48: 0 | AD48: 75032.10124 | AE48: 0 | AF48: 0 | AG48: 5233.430708 | AH48: 0 | AI48: 10825.6564 | AJ48: 0 | AK48: 10825.6564 | AL48: 18844.66554 | AM48: 69747.05732 | AN48: 184953.6 | AO48: 154023.4088 | AP48: 39343.58117 | AQ48: 35705.67376 | AR48: 40054 | AS48: 75759.67376 | AT48: 117645.5144 | AU48: 0 | AV48: 0 | AW48: 0 | AX48: 117645.5144 | AY48: 22000 | AZ48: 0 | BA48: 0 | BB48: 0 | BC48: 365652.0025 | BD48: 242375.2182 | BE48: 312095 | BF48: 30750551.41 | BG48: 643189.672 | BH48: 0 | BI48: 643189.672 | BJ48: 441359.4399 | BK48: 0 | BL48: 441359.4399 | BM48: 358559.6843 | BN48: 327598.1423 | BQ48: 0 | BR48: 200518.7712 | BS48: 0 | BT48: 200518.7712 | BU48: 0 | BV48: 0 | BW48: 210651.8997 | BX48: 272000 | BY48: 0 | BZ48: 0 | CA48: 0 | CB48: 482651.8997 | CC48: 0 | CD48: 0 | CE48: 0 | CF48: 33204429.02 | CG48: 24531595.3 | CH48: 6218956.119 | CI48: 2453877.609 | CJ48: 0 | CK48: 2453877.609
A49: 547 | B49: Pader District | C49: 30000 | D49: 0 | E49: 444788.3004 | F49: 69591.69222 | G49: 125193.6042 | H49: 932601.8702 | I49: 19103.44828 | J49: 76902.45643 | K49: 532206.9129 | L49: 4797226.229 | M49: 693228.7608 | N49: 1941998.564 | O49: 14982.0144 | P49: 24523.2 | Q49: 578179.2412 | R49: 96907.5904 | S49: 0 | T49: 23401.79772 | U49: 388015.1437 | V49: 13342.30462 | W49: 28120.48592 | X49: 16618.40991 | Y49: 44738.89584 | Z49: 0 | AA49: 32262.17508 | AB49: 9113.265846 | AC49: 33236.81959 | AD49: 74612.26051 | AE49: 0 | AF49: 0 | AG49: 3379.858165 | AH49: 0 | AI49: 6399.793789 | AJ49: 66473.63886 | AK49: 72873.43265 | AL49: 12170.2761 | AM49: 26630.81278 | AN49: 141148.8 | AO49: 100800 | AP49: 25408.90124 | AQ49: 18297.54997 | AR49: 17579 | AS49: 35876.54997 | AT49: 105572.0928 | AU49: 0 | AV49: 0 | AW49: 149565.6884 | AX49: 255137.7813 | AY49: 22000 | AZ49: 1762268.635 | BA49: 0 | BB49: 160984 | BC49: 192473.3346 | BD49: 0 | BE49: 183845 | BF49: 13916541.67 | BG49: 524485.4557 | BH49: 99710.45868 | BI49: 624195.9144 | BJ49: 610275.9643 | BK49: 116328.8686 | BL49: 726604.8329 | BM49: 0 | BN49: 193226.367 | BQ49: 0 | BR49: 163106.5867 | BS49: 299131.376 | BT49: 462237.9628 | BU49: 0 | BV49: 0 | BW49: 140433.9059 | BX49: 0 | BY49: 0 | BZ49: 0 | CA49: 565025.933 | CB49: 705459.839 | CC49: 512002.2805 | CD49: 315749.7859 | CE49: 827752.0665 | CF49: 17456018.65 | CG49: 9386954.955 | CH49: 4529586.713 | CI49: 3539476.983 | CJ49: 0 | CK49: 3539476.983
A50: 548 | B50: Pallisa District | C50: 30000 | D50: 0 | E50: 581720.3966 | F50: 120721.8298 | G50: 125193.6042 | H50: 1681725.442 | I50: 0 | J50: 0 | K50: 528356.5004 | L50: 8662881.17 | M50: 1784368.221 | N50: 2898305.789 | O50: 42391.58136 | P50: 24523.2 | Q50: 799357.5502 | R50: 152224.6584 | S50: 131633.602 | T50: 115157.9969 | U50: 1910649.432 | V50: 19390.90486 | W50: 28120.48592 | X50: 0 | Y50: 28120.48592 | Z50: 0 | AA50: 36890.66328 | AB50: 15809.00364 | AC50: 27054.92007 | AD50: 79754.587 | AE50: 0 | AF50: 0 | AG50: 26814.14288 | AH50: 0 | AI50: 8777.02358 | AJ50: 47697.69123 | AK50: 56474.71481 | AL50: 17687.70219 | AM50: 43690.6058 | AN50: 175219.2 | AO50: 125200.4389 | AP50: 36928.09221 | AQ50: 18297.54997 | AR50: 28251 | AS50: 46548.54997 | AT50: 112275.3211 | AU50: 0 | AV50: 0 | AW50: 180996.6013 | AX50: 293271.9224 | AY50: 0 | AZ50: 0 | BA50: 0 | BB50: 133817.3333 | BC50: 210649.3348 | BD50: 255841.2303 | BE50: 283595 | BF50: 21422215.22 | BG50: 607711.6836 | BH50: 50364.27087 | BI50: 658075.9545 | BJ50: 530205.1965 | BK50: 354123.7851 | BL50: 884328.9816 | BM50: 0 | BN50: 252958.6169 | BQ50: 0 | BR50: 146253.309 | BS50: 322646.1153 | BT50: 468899.4243 | BU50: 238748.2276 | BV50: 0 | BW50: 175542.8612 | BX50: 0 | BY50: 0 | BZ50: 120000 | CA50: 283299.0281 | CB50: 578841.8892 | CC50: 0 | CD50: 86563.59191 | CE50: 86563.59191 | CF50: 24590631.9 | CG50: 16206559.71 | CH50: 5215655.511 | CI50: 2929668.458 | CJ50: 238748.2276 | CK50: 3168416.686
A51: 549 | B51: Rakai District | C51: 30000 | D51: 0 | E51: 1075556.277 | F51: 167843.1024 | G51: 375580.8126 | H51: 2624760.901 | I51: 0 | J51: 0 | K51: 530928.7689 | L51: 17769528.19 | M51: 3192315.533 | N51: 7604301.111 | O51: 30319.95324 | P51: 24523.2 | Q51: 1134913.167 | R51: 238342.8032 | S51: 205327.6295 | T51: 171025.0614 | U51: 2717575.914 | V51: 23903.51432 | W51: 28120.48592 | X51: 0 | Y51: 28120.48592 | Z51: 78000 | AA51: 67749.08899 | AB51: 28562.14318 | AC51: 0 | AD51: 96311.23217 | AE51: 0 | AF51: 0 | AG51: 6055.212374 | AH51: 0 | AI51: 9576.55051 | AJ51: 0 | AK51: 9576.55051 | AL51: 21803.7571 | AM51: 76614.99188 | AN51: 189820.8 | AO51: 142697.6191 | AP51: 45521.5236 | AQ51: 34674.08124 | AR51: 39050 | AS51: 73724.08124 | AT51: 135857.1551 | AU51: 0 | AV51: 7200 | AW51: 0 | AX51: 143057.1551 | AY51: 22000 | AZ51: 0 | BA51: 123486.6667 | BB51: 0 | BC51: 210649.3348 | BD51: 181781.1636 | BE51: 326345 | BF51: 39692311.52 | BG51: 822829.5557 | BH51: 0 | BI51: 822829.5557 | BJ51: 683219.9361 | BK51: 0 | BL51: 683219.9361 | BM51: 418656 | BN51: 318980.0791 | BQ51: 0 | BR51: 192708.8461 | BS51: 0 | BT51: 192708.8461 | BU51: 0 | BV51: 0 | BW51: 280868.811 | BX51: 0 | BY51: 0 | BZ51: 0 | CA51: 0 | CB51: 280868.811 | CC51: 0 | CD51: 0 | CE51: 0 | CF51: 42409574.74 | CG51: 32668424.27 | CH51: 7023887.244 | CI51: 2717263.228 | CJ51: 0 | CK51: 2717263.228
A52: 550 | B52: Rukungiri District | C52: 30000 | D52: 0 | E52: 767844.0293 | F52: 0 | G52: 0 | H52: 1626733.681 | I52: 0 | J52: 0 | K52: 645547.8733 | L52: 9978332.451 | M52: 2469923.236 | N52: 2222214.891 | O52: 25869.86208 | P52: 24523.2 | Q52: 623003.0494 | R52: 192875.9125 | S52: 0 | T52: 716537.173 | U52: 1949759.05 | V52: 12566.91597 | W52: 28120.48592 | X52: 0 | Y52: 28120.48592 | Z52: 0 | AA52: 39324.02341 | AB52: 18104.29713 | AC52: 0 | AD52: 57428.32054 | AE52: 0 | AF52: 0 | AG52: 3183.437552 | AH52: 0 | AI52: 6220.899805 | AJ52: 0 | AK52: 6220.899805 | AL52: 11462.99995 | AM52: 57677.24267 | AN52: 126547.2 | AO52: 114785.1757 | AP52: 23932.26178 | AQ52: 25389.74855 | AR52: 33776 | AS52: 59165.74855 | AT52: 77422.25818 | AU52: 0 | AV52: 0 | AW52: 0 | AX52: 77422.25818 | AY52: 22000 | AZ52: 0 | BA52: 0 | BB52: 0 | BC52: 424300.0029 | BD52: 195920.1763 | BE52: 183845 | BF52: 22677742.53 | BG52: 454688.3894 | BH52: 0 | BI52: 454688.3894 | BJ52: 356129.1629 | BK52: 0 | BL52: 356129.1629 | BM52: 160336 | BN52: 225248.9402 | BQ52: 0 | BR52: 170060.2807 | BS52: 0 | BT52: 170060.2807 | BU52: 0 | BV52: 0 | BW52: 140433.9059 | BX52: 272000 | BY52: 0 | BZ52: 0 | CA52: 0 | CB52: 412433.9059 | CC52: 0 | CD52: 0 | CE52: 0 | CF52: 24456639.21 | CG52: 17303537.39 | CH52: 5374205.14 | CI52: 1778896.679 | CJ52: 0 | CK52: 1778896.679
A53: 551 | B53: Sembabule District | C53: 30000 | D53: 0 | E53: 558266.3404 | F53: 95204.09312 | G53: 250387.2084 | H53: 1410370.151 | I53: 0 | J53: 0 | K53: 360842.8401 | L53: 9195855.635 | M53: 930384.6059 | N53: 1148544.191 | O53: 27959.56224 | P53: 24523.2 | Q53: 687334.4793 | R53: 136961.3646 | S53: 0 | T53: 33834.40675 | U53: 708865.8433 | V53: 10252.10803 | W53: 28120.48592 | X53: 0 | Y53: 28120.48592 | Z53: 36000 | AA53: 33274.56213 | AB53: 12855.00167 | AC53: 0 | AD53: 46129.56381 | AE53: 0 | AF53: 0 | AG53: 2597.052909 | AH53: 0 | AI53: 8998.24756 | AJ53: 0 | AK53: 8998.24756 | AL53: 9351.531755 | AM53: 39459.2468 | AN53: 121680 | AO53: 74285.25073 | AP53: 19523.97339 | AQ53: 28613.47518 | AR53: 31265 | AS53: 59878.47518 | AT53: 65948.04819 | AU53: 0 | AV53: 0 | AW53: 0 | AX53: 65948.04819 | AY53: 22000 | AZ53: 0 | BA53: 69916 | BB53: 0 | BC53: 0 | BD53: 0 | BE53: 126845 | BF53: 16340318.91 | BG53: 352729.8353 | BH53: 0 | BI53: 352729.8353 | BJ53: 672530.242 | BK53: 0 | BL53: 672530.242 | BM53: 0 | BN53: 149398.3155 | BQ53: 0 | BR53: 136422.7083 | BS53: 0 | BT53: 136422.7083 | BU53: 0 | BV53: 0 | BW53: 70216.99459 | BX53: 272000 | BY53: 190000 | BZ53: 0 | CA53: 0 | CB53: 532216.9946 | CC53: 0 | CD53: 0 | CE53: 0 | CF53: 18183617 | CG53: 13597392.39 | CH53: 2742926.512 | CI53: 1843298.096 | CJ53: 0 | CK53: 1843298.096
A54: 552 | B54: Sironko District | C54: 0 | D54: 0 | E54: 400375.0832 | F54: 124076.8519 | G54: 250387.2084 | H54: 1462092.601 | I54: 0 | J54: 0 | K54: 21380.16052 | L54: 7580426.772 | M54: 1513843.078 | N54: 2250795.186 | O54: 44596.1412 | P54: 24523.2 | Q54: 621333.8478 | R54: 125133.988 | S54: 0 | T54: 33037.66642 | U54: 1300749.584 | V54: 15822.22526 | W54: 28120.48592 | X54: 31597.28493 | Y54: 59717.77085 | Z54: 0 | AA54: 28271.56712 | AB54: 12827.83844 | AC54: 22417.9908 | AD54: 63517.39636 | AE54: 0 | AF54: 0 | AG54: 4008.068976 | AH54: 0 | AI54: 8382.958615 | AJ54: 17312.71838 | AK54: 25695.677 | AL54: 14432.35299 | AM54: 36355.64688 | AN54: 184953.6 | AO54: 201501.0529 | AP54: 30131.62796 | AQ54: 18684.39716 | AR54: 19462 | AS54: 38146.39716 | AT54: 55299.71379 | AU54: 0 | AV54: 0 | AW54: 25182.13583 | AX54: 80481.84962 | AY54: 22000 | AZ54: 0 | BA54: 0 | BB54: 0 | BC54: 0 | BD54: 0 | BE54: 312095 | BF54: 16841610.03 | BG54: 282435.6554 | BH54: 213153.5615 | BI54: 495589.2169 | BJ54: 368411.0697 | BK54: 69438.95261 | BL54: 437850.0223 | BM54: 98521.87456 | BN54: 313380.2525 | BQ54: 0 | BR54: 122563.5345 | BS54: 251894.5439 | BT54: 374458.0783 | BU54: 0 | BV54: 0 | BW54: 105325.9498 | BX54: 272000 | BY54: 0 | BZ54: 0 | CA54: 371861.09 | CB54: 749187.0399 | CC54: 0 | CD54: 118041.2617 | CE54: 118041.2617 | CF54: 19428637.78 | CG54: 13645092.95 | CH54: 3196517.088 | CI54: 2587027.746 | CJ54: 0 | CK54: 2587027.746
A55: 553 | B55: Soroti District | C55: 47143 | D55: 25000 | E55: 461317.997 | F55: 0 | G55: 0 | H55: 1290408.898 | I55: 0 | J55: 0 | K55: 787559.1174 | L55: 5340413.787 | M55: 1109472.52 | N55: 1319213.905 | O55: 43575.81228 | P55: 24523.2 | Q55: 553508.7753 | R55: 103696.1093 | S55: 0 | T55: 43467.62348 | U55: 1202797.968 | V55: 10905.99434 | W55: 28120.48592 | X55: 14495.63849 | Y55: 42616.12441 | Z55: 0 | AA55: 28022.45843 | AB55: 8807.679435 | AC55: 25831.28596 | AD55: 62661.42382 | AE55: 11654.19647 | AF55: 271161.3381 | AG55: 2762.694683 | AH55: 0 | AI55: 8401.406613 | AJ55: 78694.17446 | AK55: 87095.58108 | AL55: 9947.978714 | AM55: 41640.95657 | AN55: 116812.8 | AO55: 66875.18822 | AP55: 20769.22549 | AQ55: 14686.97614 | AR55: 12431 | AS55: 27117.97614 | AT55: 99682.71344 | AU55: 0 | AV55: 0 | AW55: 78694.17446 | AX55: 178376.8879 | AY55: 0 | AZ55: 0 | BA55: 0 | BB55: 0 | BC55: 308995.7354 | BD55: 535004.851 | BE55: 155345 | BF55: 14301842.67 | BG55: 422674.1915 | BH55: 354123.7843 | BI55: 776797.9758 | BJ55: 419594.1672 | BK55: 236082.5234 | BL55: 655676.6906 | BM55: 267227 | BN55: 171743.5492 | BQ55: 0 | BR55: 125928.6076 | BS55: 212474.2711 | BT55: 338402.8787 | BU55: 158096.5504 | BV55: 0 | BW55: 175542.8612 | BX55: 0 | BY55: 0 | BZ55: 0 | CA55: 212474.2711 | CB55: 388017.1322 | CC55: 512002.2805 | CD55: 78694.17446 | CE55: 590696.455 | CF55: 17648500.9 | CG55: 10187325.04 | CH55: 4114517.625 | CI55: 3188561.681 | CJ55: 158096.5504 | CK55: 3346658.232
A56: 554 | B56: Tororo District | C56: 30000 | D56: 0 | E56: 707434.27 | F56: 117771.0412 | G56: 250387.2084 | H56: 1898246.46 | I56: 0 | J56: 0 | K56: 1215571.848 | L56: 10216381.46 | M56: 2393549.061 | N56: 3363634.596 | O56: 45220.11888 | P56: 24523.2 | Q56: 1205095.302 | R56: 220280.8452 | S56: 289246.0069 | T56: 343235.5743 | U56: 2578357.334 | V56: 21774.82988 | W56: 28120.48592 | X56: 0 | Y56: 28120.48592 | Z56: 0 | AA56: 50209.23713 | AB56: 20094.0042 | AC56: 25934.35859 | AD56: 96237.59992 | AE56: 0 | AF56: 0 | AG56: 27417.99363 | AH56: 0 | AI56: 10175.96146 | AJ56: 93449.33218 | AK56: 103625.2936 | AL56: 19862.06276 | AM56: 73141.52077 | AN56: 175219.2 | AO56: 153654.5242 | AP56: 41467.68626 | AQ56: 25518.69761 | AR56: 27121 | AS56: 52639.69761 | AT56: 139304.7837 | AU56: 0 | AV56: 0 | AW56: 112139.1986 | AX56: 251443.9823 | AY56: 22000 | AZ56: 0 | BA56: 0 | BB56: 321968 | BC56: 210649.3348 | BD56: 402183.2887 | BE56: 312095 | BF56: 27212434.83 | BG56: 676118.8672 | BH56: 250444.2102 | BI56: 926563.0774 | BJ56: 597770.9329 | BK56: 74759.46574 | BL56: 672530.3987 | BM56: 21893.7499 | BN56: 271557.4689 | BQ56: 0 | BR56: 197758.1673 | BS56: 109148.82 | BT56: 306906.9873 | BU56: 0 | BV56: 0 | BW56: 210651.8997 | BX56: 0 | BY56: 0 | BZ56: 0 | CA56: 212937.1305 | CB56: 423589.0302 | CC56: 0 | CD56: 417905.4135 | CE56: 417905.4135 | CF56: 30253380.95 | CG56: 19894828.15 | CH56: 7317606.674 | CI56: 3040946.126 | CJ56: 0 | CK56: 3040946.126
A57: 555 | B57: Wakiso District | C57: 30000 | D57: 0 | E57: 1808800.586 | F57: 1118588.09 | G57: 968670.6744 | H57: 2962765.81 | I57: 0 | J57: 0 | K57: 565143.4106 | L57: 18010930.07 | M57: 8945873.625 | N57: 6075409.956 | O57: 70498.33487 | P57: 24523.2 | Q57: 1050163.166 | R57: 466018.4076 | S57: 208945.0761 | T57: 366881.255 | U57: 4333302.955 | V57: 46048.2567 | W57: 28120.48592 | X57: 0 | Y57: 28120.48592 | Z57: 389910 | AA57: 78482.94756 | AB57: 31475.40029 | AC57: 0 | AD57: 109958.3479 | AE57: 0 | AF57: 0 | AG57: 34719.64959 | AH57: 0 | AI57: 12204.54828 | AJ57: 0 | AK57: 12204.54828 | AL57: 42003.23813 | AM57: 90857.04331 | AN57: 184953.6 | AO57: 141218.7971 | AP57: 87693.66614 | AQ57: 37510.96067 | AR57: 98315 | AS57: 135825.9607 | AT57: 252013.6077 | AU57: 0 | AV57: 7200 | AW57: 0 | AX57: 259213.6077 | AY57: 22000 | AZ57: 0 | BA57: 176019.3333 | BB57: 130720 | BC57: 228293.3349 | BD57: 603585.7521 | BE57: 340595 | BF57: 50070455.24 | BG57: 1930057.222 | BH57: 0 | BI57: 1930057.222 | BJ57: 676875.5891 | BK57: 0 | BL57: 676875.5891 | BM57: 222689 | BN57: 491403.9167 | BQ57: 0 | BR57: 197761.8109 | BS57: 0 | BT57: 197761.8109 | BU57: 0 | BV57: 0 | BW57: 210651.8997 | BX57: 272000 | BY57: 0 | BZ57: 1288370.457 | CA57: 0 | CB57: 1771022.357 | CC57: 0 | CD57: 0 | CE57: 0 | CF57: 55360265.14 | CG57: 38149363.68 | CH57: 11921091.56 | CI57: 5289809.896 | CJ57: 0 | CK57: 5289809.896
A58: 556 | B58: Yumbe District | C58: 0 | D58: 0 | E58: 825894.6635 | F58: 131183.0022 | G58: 125193.6042 | H58: 2960681.054 | I58: 31453.5809 | J58: 191726.775 | K58: 684345.108 | L58: 9432343.675 | M58: 720555.5592 | N58: 2768612.151 | O58: 42436.68828 | P58: 24523.2 | Q58: 682858.3285 | R58: 179980.3042 | S58: 131576.6686 | T58: 22990.62507 | U58: 1171328.636 | V58: 19695.80882 | W58: 28120.48592 | X58: 27673.59339 | Y58: 55794.07932 | Z58: 0 | AA58: 36929.39372 | AB58: 14668.14771 | AC58: 33648.43723 | AD58: 85245.97866 | AE58: 0 | AF58: 0 | AG58: 4989.320971 | AH58: 0 | AI58: 7474.043694 | AJ58: 31477.66979 | AK58: 38951.71348 | AL58: 17965.66922 | AM58: 37924.66635 | AN58: 146016 | AO58: 110369.9625 | AP58: 37508.42717 | AQ58: 20360.73501 | AR58: 19085 | AS58: 39445.73501 | AT58: 206541.8185 | AU58: 0 | AV58: 0 | AW58: 62955.33957 | AX58: 269497.1581 | AY58: 22000 | AZ58: 0 | BA58: 0 | BB58: 0 | BC58: 0 | BD58: 376252.4399 | BE58: 198095 | BF58: 21587435.58 | BG58: 1048875.808 | BH58: 157388.186 | BI58: 1206263.994 | BJ58: 585414.2113 | BK58: 188866.0187 | BL58: 774280.23 | BM58: 0 | BN58: 314871.8671 | BQ58: 0 | BR58: 171143.2737 | BS58: 377732.0374 | BT58: 548875.3111 | BU58: 344558.2148 | BV58: 0 | BW58: 175542.8612 | BX58: 0 | BY58: 29874 | BZ58: 0 | CA58: 330515.5327 | CB58: 535932.3939 | CC58: 0 | CD58: 472165.0468 | CE58: 472165.0468 | CF58: 25784382.64 | CG58: 17102802.04 | CH58: 4484633.544 | CI58: 3852388.843 | CJ58: 344558.2148 | CK58: 4196947.058
A59: 557 | B59: Butaleja District | C59: 0 | D59: 0 | E59: 386948.2144 | F59: 142429.2133 | G59: 250387.2084 | H59: 1458173.847 | I59: 0 | J59: 0 | K59: 294276.3742 | L59: 7690672.838 | M59: 1578865.716 | N59: 1966196.03 | O59: 72357.71087 | P59: 24523.2 | Q59: 705500.7568 | R59: 125452.7433 | S59: 153622.9489 | T59: 23267.96534 | U59: 1093613.77 | V59: 12001.62623 | W59: 28120.48592 | X59: 4374.430523 | Y59: 32494.91645 | Z59: 0 | AA59: 24871.14319 | AB59: 10872.08541 | AC59: 17497.72338 | AD59: 53240.95198 | AE59: 0 | AF59: 0 | AG59: 16873.09199 | AH59: 0 | AI59: 6363.765792 | AJ59: 8748.861832 | AK59: 15112.62762 | AL59: 10947.36697 | AM59: 31082.22487 | AN59: 141148.8 | AO59: 78840 | AP59: 22855.73177 | AQ59: 17523.85558 | AR59: 16072 | AS59: 33595.85558 | AT59: 57706.6108 | AU59: 0 | AV59: 0 | AW59: 8748.861832 | AX59: 66455.47264 | AY59: 0 | AZ59: 0 | BA59: 8000 | BB59: 0 | BC59: 241021.335 | BD59: 0 | BE59: 183845 | BF59: 16913803.54 | BG59: 344822.5398 | BH59: 209972.68 | BI59: 554795.2199 | BJ59: 455858.9137 | BK59: 13123.29235 | BL59: 468982.2061 | BM59: 304639 | BN59: 183282.4321 | BQ59: 0 | BR59: 104883.4456 | BS59: 236219.2655 | BT59: 341102.7112 | BU59: 148185.9678 | BV59: 0 | BW59: 210651.8997 | BX59: 0 | BY59: 0 | BZ59: 0 | CA59: 262465.851 | CB59: 473117.7507 | CC59: 0 | CD59: 113735.2022 | CE59: 113735.2022 | CF59: 19501644.03 | CG59: 13660446.72 | CH59: 3253356.813 | CI59: 2439654.522 | CJ59: 148185.9678 | CK59: 2587840.49
A60: 558 | B60: Ibanda District | C60: 0 | D60: 0 | E60: 594710.9331 | F60: 271982.5368 | G60: 500774.4168 | H60: 1233942.078 | I60: 0 | J60: 0 | K60: 349661.8897 | L60: 6846864.461 | M60: 2142340.586 | N60: 1616292.391 | O60: 13385.55504 | P60: 24523.2 | Q60: 491658.989 | R60: 145440.9064 | S60: 0 | T60: 285685.2982 | U60: 1033713.501 | V60: 13591.32453 | W60: 28120.48592 | X60: 0 | Y60: 28120.48592 | Z60: 0 | AA60: 28975.08151 | AB60: 12155.54833 | AC60: 0 | AD60: 41130.62984 | AE60: 0 | AF60: 0 | AG60: 3442.93962 | AH60: 0 | AI60: 4282.033975 | AJ60: 0 | AK60: 4282.033975 | AL60: 12397.42135 | AM60: 34318.33836 | AN60: 155750.4 | AO60: 101378.7971 | AP60: 25883.13134 | AQ60: 20489.68407 | AR60: 30260 | AS60: 50749.68407 | AT60: 51932.95553 | AU60: 0 | AV60: 0 | AW60: 0 | AX60: 51932.95553 | AY60: 22000 | AZ60: 0 | BA60: 0 | BB60: 0 | BC60: 0 | BD60: 363221.0732 | BE60: 226595 | BF60: 16685770.96 | BG60: 416484.4904 | BH60: 0 | BI60: 416484.4904 | BJ60: 600616.1673 | BK60: 0 | BL60: 600616.1673 | BM60: 0 | BN60: 178025.9281 | BQ60: 0 | BR60: 164336.7617 | BS60: 0 | BT60: 164336.7617 | BU60: 0 | BV60: 0 | BW60: 210651.8997 | BX60: 0 | BY60: 0 | BZ60: 0 | CA60: 0 | CB60: 210651.8997 | CC60: 0 | CD60: 0 | CE60: 0 | CF60: 18255886.21 | CG60: 13110129.98 | CH60: 3575640.98 | CI60: 1570115.247 | CJ60: 0 | CK60: 1570115.247
A61: 559 | B61: Kaabong District | C61: 0 | D61: 0 | E61: 647428.2561 | F61: 98793.49453 | G61: 125193.6042 | H61: 1019109.456 | I61: 25724.13793 | J61: 135132.727 | K61: 195935.763 | L61: 3194930.292 | M61: 233943.1125 | N61: 1325422.413 | O61: 13849.24704 | P61: 24523.2 | Q61: 325457.475 | R61: 238093.8449 | S61: 131576.6686 | T61: 32158.56732 | U61: 201494.1508 | V61: 17914.70986 | W61: 28120.48592 | X61: 19485.82338 | Y61: 47606.30931 | Z61: 0 | AA61: 37068.39079 | AB61: 5778.978565 | AC61: 38971.64614 | AD61: 81819.01549 | AE61: 0 | AF61: 0 | AG61: 4538.134911 | AH61: 0 | AI61: 7967.731651 | AJ61: 97429.11535 | AK61: 105396.847 | AL61: 16341.0274 | AM61: 16907.28622 | AN61: 150883.2 | AO61: 90905.0757 | AP61: 34116.52684 | AQ61: 11205.35139 | AR61: 7785 | AS61: 18990.35139 | AT61: 228150.8648 | AU61: 0 | AV61: 0 | AW61: 77943.29196 | AX61: 306094.1567 | AY61: 22000 | AZ61: 886516.1259 | BA61: 0 | BB61: 0 | BC61: 103601.334 | BD61: 0 | BE61: 212345 | BF61: 10084741.51 | BG61: 1060907.463 | BH61: 292287.346 | BI61: 1353194.809 | BJ61: 666909.6406 | BK61: 155886.5847 | BL61: 822796.2253 | BM61: 0 | BN61: 311846.1914 | BQ61: 0 | BR61: 150536.7535 | BS61: 545603.0461 | BT61: 696139.7996 | BU61: 0 | BV61: 0 | BW61: 175542.8612 | BX61: 0 | BY61: 51225.101 | BZ61: 0 | CA61: 292287.346 | CB61: 519055.3082 | CC61: 0 | CD61: 428688.1074 | CE61: 428688.1074 | CF61: 14216461.95 | CG61: 6496135.289 | CH61: 3588606.223 | CI61: 4131720.441 | CJ61: 0 | CK61: 4131720.441
A62: 560 | B62: Isingiro District | C62: 0 | D62: 0 | E62: 976078.8366 | F62: 208403.0771 | G62: 375580.8126 | H62: 1128129.914 | I62: 0 | J62: 0 | K62: 684671.0809 | L62: 8931393.69 | M62: 2129558.742 | N62: 2468187.493 | O62: 29066.68152 | P62: 24523.2 | Q62: 788860.5716 | R62: 208833.783 | S62: 0 | T62: 42262.77696 | U62: 1022856.258 | V62: 20797.99908 | W62: 28120.48592 | X62: 0 | Y62: 28120.48592 | Z62: 0 | AA62: 40801.58356 | AB62: 15320.06539 | AC62: 0 | AD62: 56121.64895 | AE62: 0 | AF62: 0 | AG62: 5268.526616 | AH62: 0 | AI62: 8442.756609 | AJ62: 0 | AK62: 8442.756609 | AL62: 18971.03975 | AM62: 42436.62898 | AN62: 165484.8 | AO62: 130478.7721 | AP62: 39607.42314 | AQ62: 28871.37331 | AR62: 36664 | AS62: 65535.37331 | AT62: 97323.4001 | AU62: 0 | AV62: 0 | AW62: 0 | AX62: 97323.4001 | AY62: 22000 | AZ62: 0 | BA62: 0 | BB62: 160984 | BC62: 0 | BD62: 203999.1836 | BE62: 255095 | BF62: 20339073.96 | BG62: 579921.897 | BH62: 0 | BI62: 579921.897 | BJ62: 673530.242 | BK62: 0 | BL62: 673530.242 | BM62: 28249.99987 | BN62: 266513.8227 | BQ62: 0 | BR62: 162603.5869 | BS62: 0 | BT62: 162603.5869 | BU62: 0 | BV62: 0 | BW62: 210651.8997 | BX62: 0 | BY62: 0 | BZ62: 0 | CA62: 0 | CB62: 210651.8997 | CC62: 0 | CD62: 0 | CE62: 0 | CF62: 22260545.4 | CG62: 16191691.41 | CH62: 4147382.541 | CI62: 1921471.448 | CJ62: 0 | CK62: 1921471.448
A63: 561 | B63: Kaliro District | C63: 0 | D63: 0 | E63: 364709.2795 | F63: 78193.85907 | G63: 125193.6042 | H63: 1157978.482 | I63: 0 | J63: 0 | K63: 549236.9219 | L63: 6108585.982 | M63: 3174352.897 | N63: 2089137.579 | O63: 72259.81487 | P63: 24523.2 | Q63: 489696.9836 | R63: 121193.2978 | S63: 0 | T63: 31077.7304 | U63: 1654553.625 | V63: 9142.981671 | W63: 28120.48592 | X63: 0 | Y63: 28120.48592 | Z63: 12000 | AA63: 24428.21031 | AB63: 10614.03466 | AC63: 0 | AD63: 35042.24497 | AE63: 0 | AF63: 0 | AG63: 9232.516734 | AH63: 0 | AI63: 6028.076821 | AJ63: 0 | AK63: 6028.076821 | AL63: 8339.834422 | AM63: 26962.75996 | AN63: 111945.6 | AO63: 57220.51396 | AP63: 17411.76843 | AQ63: 15976.4668 | AR63: 16951 | AS63: 32927.4668 | AT63: 61396.54733 | AU63: 0 | AV63: 0 | AW63: 0 | AX63: 61396.54733 | AY63: 22000 | AZ63: 0 | BA63: 0 | BB63: 0 | BC63: 322408.0022 | BD63: 269306.2424 | BE63: 98345 | BF63: 17168523.3 | BG63: 364783.9537 | BH63: 0 | BI63: 364783.9537 | BJ63: 416331.678 | BK63: 0 | BL63: 416331.678 | BM63: 0 | BN63: 128811.7715 | BQ63: 0 | BR63: 151262.8138 | BS63: 0 | BT63: 151262.8138 | BU63: 0 | BV63: 0 | BW63: 351085.8056 | BX63: 0 | BY63: 0 | BZ63: 0 | CA63: 0 | CB63: 351085.8056 | CC63: 0 | CD63: 0 | CE63: 0 | CF63: 18580799.32 | CG63: 13511559.08 | CH63: 3656964.217 | CI63: 1412276.023 | CJ63: 0 | CK63: 1412276.023
A64: 562 | B64: Kiruhura District | C64: 0 | D64: 0 | E64: 885313.4861 | F64: 171834.349 | G64: 375580.8126 | H64: 1271998.065 | I64: 0 | J64: 0 | K64: 0 | L64: 6468775.542 | M64: 1015803.037 | N64: 2364735.913 | O64: 76642.66139 | P64: 24523.2 | Q64: 544343.6537 | R64: 150543.9754 | S64: 0 | T64: 228546.1113 | U64: 779085.1188 | V64: 16220.63371 | W64: 28120.48592 | X64: 0 | Y64: 28120.48592 | Z64: 0 | AA64: 37731.04358 | AB64: 11136.92696 | AC64: 0 | AD64: 48867.97055 | AE64: 0 | AF64: 0 | AG64: 4108.993374 | AH64: 0 | AI64: 9267.785537 | AJ64: 0 | AK64: 9267.785537 | AL64: 14795.76403 | AM64: 33566.20079 | AN64: 170352 | AO64: 111058.2081 | AP64: 30890.35153 | AQ64: 22166.02192 | AR64: 26870 | AS64: 49036.02192 | AT64: 90538.43236 | AU64: 0 | AV64: 0 | AW64: 0 | AX64: 90538.43236 | AY64: 22000 | AZ64: 0 | BA64: 0 | BB64: 0 | BC64: 0 | BD64: 0 | BE64: 269345 | BF64: 15255893.77 | BG64: 473721.3664 | BH64: 0 | BI64: 473721.3664 | BJ64: 673530.242 | BK64: 0 | BL64: 673530.242 | BM64: 0 | BN64: 258164.9806 | BQ64: 0 | BR64: 114763.4823 | BS64: 0 | BT64: 114763.4823 | BU64: 0 | BV64: 0 | BW64: 210651.8997 | BX64: 272000 | BY64: 28847.943 | BZ64: 0 | CA64: 0 | CB64: 511499.8427 | CC64: 0 | CD64: 0 | CE64: 0 | CF64: 17287573.69 | CG64: 12037756.23 | CH64: 3218137.542 | CI64: 2031679.914 | CJ64: 0 | CK64: 2031679.914
A65: 563 | B65: Koboko District | C65: 0 | D65: 0 | E65: 329835.3132 | F65: 165872.2715 | G65: 200110.9601 | H65: 1001900.855 | I65: 0 | J65: 65930.141 | K65: 13629.57749 | L65: 5110401.409 | M65: 1025252.353 | N65: 1040172.013 | O65: 41247.23628 | P65: 24523.2 | Q65: 455385.3064 | R65: 121000.856 | S65: 62000.00148 | T65: 17026.84042 | U65: 822111.6737 | V65: 10094.79631 | W65: 28120.48592 | X65: 59020.63085 | Y65: 87141.11677 | Z65: 14000 | AA65: 19027.39445 | AB65: 8142.180141 | AC65: 22966.93944 | AD65: 50136.51403 | AE65: 0 | AF65: 0 | AG65: 2557.202874 | AH65: 100000 | AI65: 4202.393982 | AJ65: 47216.50468 | AK65: 51418.89866 | AL65: 9208.038774 | AM65: 21691.1618 | AN65: 116812.8 | AO65: 67383.50882 | AP65: 19224.39112 | AQ65: 13268.53643 | AR65: 11928 | AS65: 25196.53643 | AT65: 83150.13288 | AU65: 0 | AV65: 0 | AW65: 44855.67944 | AX65: 128005.8123 | AY65: 22000 | AZ65: 0 | BA65: 61600 | BB65: 0 | BC65: 0 | BD65: 0 | BE65: 112595 | BF65: 11395465.79 | BG65: 441740.1089 | BH65: 201457.0866 | BI65: 643197.1955 | BJ65: 431123.7219 | BK65: 72005.16963 | BL65: 503128.8915 | BM65: 0 | BN65: 160806.7317 | BQ65: 0 | BR65: 82106.42369 | BS65: 264412.4262 | BT65: 346518.8499 | BU65: 122428.5592 | BV65: 0 | BW65: 175542.8612 | BX65: 0 | BY65: 0 | BZ65: 0 | CA65: 216408.9798 | CB65: 391951.8409 | CC65: 0 | CD65: 220003.555 | CE65: 220003.555 | CF65: 13783501.41 | CG65: 8686645.404 | CH65: 2708820.382 | CI65: 2265607.065 | CJ65: 122428.5592 | CK65: 2388035.624
A66: 564 | B66: Amolatar District | C66: 0 | D66: 0 | E66: 285077.8773 | F66: 117551.2699 | G66: 250387.2084 | H66: 830806.3481 | I66: 100000 | J66: 38499.35241 | K66: 476323.5737 | L66: 4189397.932 | M66: 837410.9888 | N66: 1036750.923 | O66: 12715.04208 | P66: 24523.2 | Q66: 331799.1278 | R66: 103696.8909 | S66: 0 | T66: 161812.6292 | U66: 384635.3385 | V66: 6622.106142 | W66: 28120.48592 | X66: 23443.47697 | Y66: 51563.96289 | Z66: 20000 | AA66: 21395.52036 | AB66: 6811.181552 | AC66: 19670.18086 | AD66: 47876.88277 | AE66: 0 | AF66: 0 | AG66: 1677.50476 | AH66: 0 | AI66: 4785.771931 | AJ66: 31477.66979 | AK66: 36263.44172 | AL66: 6040.400248 | AM66: 20435.66744 | AN66: 136281.6 | AO66: 84472.88234 | AP66: 12611.04777 | AQ66: 10947.45326 | AR66: 8915 | AS66: 19862.45326 | AT66: 53203.90636 | AU66: 0 | AV66: 0 | AW66: 47216.50468 | AX66: 100420.411 | AY66: 0 | AZ66: 0 | BA66: 0 | BB66: 160984 | BC66: 0 | BD66: 0 | BE66: 169595 | BF66: 10056095.06 | BG66: 270095.9655 | BH66: 255756.067 | BI66: 525852.0325 | BJ66: 435182.4827 | BK66: 62955.33957 | BL66: 498137.8223 | BM66: 0 | BN66: 174676.6102 | BQ66: 0 | BR66: 79138.82291 | BS66: 251821.3583 | BT66: 330960.1812 | BU66: 66571.1392 | BV66: 0 | BW66: 140433.9059 | BX66: 0 | BY66: 0 | BZ66: 0 | CA66: 173127.1838 | CB66: 313561.0897 | CC66: 512002.2805 | CD66: 118041.2617 | CE66: 630043.5422 | CF66: 12595897.48 | CG66: 7964191.816 | CH66: 2091903.246 | CI66: 2473231.278 | CJ66: 66571.1392 | CK66: 2539802.417
A67: 565 | B67: Amuria District | C67: 0 | D67: 0 | E67: 594217.0645 | F67: 67250.62513 | G67: 125193.6042 | H67: 1263867.413 | I67: 13628.64721 | J67: 149505.8185 | K67: 204924.6436 | L67: 4863991.828 | M67: 1172170.517 | N67: 1676661.887 | O67: 28001.89683 | P67: 24523.2 | Q67: 662156.3113 | R67: 147602.7625 | S67: 0 | T67: 93569.8001 | U67: 1006872.355 | V67: 16871.9073 | W67: 28120.48592 | X67: 0 | Y67: 28120.48592 | Z67: 0 | AA67: 31926.44243 | AB67: 11102.97292 | AC67: 28986.97394 | AD67: 72016.38929 | AE67: 0 | AF67: 0 | AG67: 4273.973296 | AH67: 0 | AI67: 10093.05863 | AJ67: 19096.71532 | AK67: 29189.77395 | AL67: 15389.82778 | AM67: 29668.79048 | AN67: 160617.6 | AO67: 94646.37866 | AP67: 32130.628 | AQ67: 18426.49903 | AR67: 17830 | AS67: 36256.49903 | AT67: 139026.4795 | AU67: 0 | AV67: 0 | AW67: 0 | AX67: 139026.4795 | AY67: 0 | AZ67: 0 | BA67: 0 | BB67: 160984 | BC67: 0 | BD67: 0 | BE67: 240845 | BF67: 13154176.11 | BG67: 673395.2191 | BH67: 341254.4774 | BI67: 1014649.697 | BJ67: 415459.465 | BK67: 126894.3563 | BL67: 542353.8214 | BM67: 126232.9999 | BN67: 297566.273 | BQ67: 0 | BR67: 133443.6343 | BS67: 331105.7391 | BT67: 464549.3733 | BU67: 336040.297 | BV67: 0 | BW67: 175542.8612 | BX67: 0 | BY67: 38893.267 | BZ67: 0 | CA67: 413144.4159 | CB67: 627580.5441 | CC67: 512002.2805 | CD67: 188866.0187 | CE67: 700868.2992 | CF67: 17264017.41 | CG67: 9760797.589 | CH67: 3393378.518 | CI67: 3773801.007 | CJ67: 336040.297 | CK67: 4109841.304
A68: 566 | B68: Manafwa District | C68: 0 | D68: 0 | E68: 585577.9805 | F68: 140018.9553 | G68: 250387.2084 | H68: 2033600.392 | I68: 0 | J68: 0 | K68: 166752.903 | L68: 11400550.8 | M68: 1957163.948 | N68: 2488484.347 | O68: 28001.89683 | P68: 24523.2 | Q68: 978988.3012 | R68: 147967.005 | S68: 0 | T68: 31000.03617 | U68: 2583330.548 | V68: 24158.00105 | W68: 28120.48592 | X68: 47216.50468 | Y68: 75336.9906 | Z68: 0 | AA68: 39339.97088 | AB68: 17330.14489 | AC68: 22226.65522 | AD68: 78896.77098 | AE68: 0 | AF68: 0 | AG68: 6119.678679 | AH68: 0 | AI68: 7097.003728 | AJ68: 23608.25234 | AK68: 30705.25607 | AL68: 22035.88895 | AM68: 48757.34256 | AN68: 228758.4 | AO68: 213480 | AP68: 46006.16464 | AQ68: 24616.05416 | AR68: 24108 | AS68: 48724.05416 | AT68: 87691.05119 | AU68: 0 | AV68: 0 | AW68: 39347.08723 | AX68: 127038.1384 | AY68: 22000 | AZ68: 0 | BA68: 0 | BB68: 160984 | BC68: 0 | BD68: 0 | BE68: 440345 | BF68: 24389693.2 | BG68: 537129.553 | BH68: 354123.7638 | BI68: 891253.3168 | BJ68: 667909.6406 | BK68: 118041.2617 | BL68: 785950.9023 | BM68: 46857.6 | BN68: 401643.9742 | BQ68: 0 | BR68: 88293.77747 | BS68: 90498.30063 | BT68: 178792.0781 | BU68: 0 | BV68: 0 | BW68: 175542.8612 | BX68: 0 | BY68: 0 | BZ68: 0 | CA68: 275429.6106 | CB68: 450972.4718 | CC68: 0 | CD68: 140841.3249 | CE68: 140841.3249 | CF68: =BF68+CK68 -> 27286004.87 | CG68: 19018568.09 | CH68: 5371125.112 | CI68: 2896311.668 | CJ68: 0 | CK68: 2896311.668
A69: 567 | B69: Bukwo District | C69: 0 | D69: 0 | E69: 210203.9415 | F69: 62709.0843 | G69: 161931.1478 | H69: 1335476.465 | I69: 0 | J69: 0 | K69: 0 | L69: 3893896.542 | M69: 1080302.404 | N69: 1745511.133 | O69: 47965.09536 | P69: 24523.2 | Q69: 278014.3621 | R69: 77613.07152 | S69: 109499.995 | T69: 7519.60009 | U69: 755357.171 | V69: 7954.86083 | W69: 28120.48592 | X69: 0 | Y69: =SUM(W69:X69) -> 28120.48592 | Z69: 0 | AA69: 18092.90236 | AB69: 6295.080059 | AC69: 13188.93658 | AD69: =SUM(AA69:AC69) -> 37576.91901 | AE69: 0 | AF69: 0 | AG69: 2015.116735 | AH69: 0 | AI69: 3925.034006 | AJ69: 19673.54362 | AK69: =SUM(AI69:AJ69) -> 23598.57762 | AL69: 7256.081721 | AM69: 18820.80435 | AN69: 146016 | AO69: 89308.12057 | AP69: 15149.12746 | AQ69: 10818.50419 | AR69: 9919 | AS69: =SUM(AQ69:AR69) -> 20737.50419 | AT69: 21466.67785 | AU69: 0 | AV69: 0 | AW69: 19673.54362 | AX69: =SUM(AT69:AW69) -> 41140.22146 | AY69: 22000 | AZ69: 1350536.942 | BA69: 0 | BB69: 0 | BC69: 0 | BD69: 0 | BE69: 183845 | BF69: =SUM(C69:V69,Y69,Z69,AD69,AE69:AH69,AK69,AL69:AP69,AS69,AX69,AY69:BE69) -> 11784598.97 | BG69: 126851.8482 | BH69: 185718.2517 | BI69: =SUM(BG69:BH69) -> 312570.0999 | BJ69: 387613.4252 | BK69: 55085.92212 | BL69: =SUM(BJ69:BK69) -> 442699.3473 | BM69: 0 | BN69: 169508.0643 | BQ69: =SUM(BO69:BP69) -> 0 | BR69: 100018.8722 | BS69: 136319.4828 | BT69: =SUM(BR69:BS69) -> 236338.355 | BU69: 0 | BV69: 0 | BW69: 140433.9059 | BX69: 0 | BY69: 0 | BZ69: 0 | CA69: 135353.9801 | CB69: =SUM(BW69:CA69) -> 275787.886 | CC69: 0 | CD69: 94433.16832 | CE69: =SUM(CC69:CD69) -> 94433.16832 | CF69: 13315935.9 | CG69: =SUM(G69,H69,K69:P69,AN69,BE69) -> 8619466.987 | CH69: =SUM(C69:F69,I69:J69,Q69:V69,Y69,Z69,AD69,AE69:AH69,AK69,AL69:AM69,AO69:AP69,AS69,AX69,AY69:BD69) -> 3165131.988 | CI69: =SUM(BI69,BL69,BM69,BN69,BT69,BV69,CB69,CE69) -> 1531336.921 | CJ69: =BQ69+BU69 -> 0 | CK69: =SUM(CI69:CJ69) -> 1531336.921
A70: 568 | B70: Mityana District | C70: 0 | D70: 0 | E70: 568928.8269 | F70: 136636.0933 | G70: 202793.072 | H70: 1138293.654 | I70: 0 | J70: 0 | K70: 482089.8546 | L70: 9491395.521 | M70: 2994320.292 | N70: 5251054.41 | O70: 29114.27352 | P70: 24523.2 | Q70: 575307.628 | R70: 166403.6947 | S70: 147434.3355 | T70: 140317.2576 | U70: 1775122.509 | V70: 15026.5373 | W70: 28120.48592 | X70: 0 | Y70: 28120.48592 | Z70: 0 | AA70: 37477.42045 | AB70: 14946.57088 | AC70: 0 | AD70: 52423.99133 | AE70: 0 | AF70: 0 | AG70: 3806.506165 | AH70: 0 | AI70: 8247.549626 | AJ70: 0 | AK70: 8247.549626 | AL70: 13706.56068 | AM70: 43213.56232 | AN70: 141148.8 | AO70: 105797.5941 | AP70: 28616.33078 | AQ70: 24616.05416 | AR70: 34278 | AS70: 58894.05416 | AT70: 73477.58542 | AU70: 8200 | AV70: 0 | AW70: 0 | AX70: 81677.58542 | AY70: 22000 | AZ70: 0 | BA70: 0 | BB70: 0 | BC70: 0 | BD70: 543157.7451 | BE70: 183845 | BF70: 24453416.93 | BG70: 502956.3646 | BH70: 0 | BI70: 502956.3646 | BJ70: 461565.3186 | BK70: 0 | BL70: 461565.3186 | BM70: 178152 | BN70: 236859.8619 | BQ70: 0 | BR70: 166337.4265 | BS70: 0 | BT70: 166337.4265 | BU70: 0 | BV70: 0 | BW70: 210651.8997 | BX70: 0 | BY70: 0 | BZ70: 0 | CA70: 0 | CB70: 210651.8997 | CC70: 0 | CD70: 0 | CE70: 0 | CF70: 26209939.8 | CG70: 19938578.08 | CH70: 4514838.848 | CI70: 1756522.871 | CJ70: 0 | CK70: 1756522.871
A71: 569 | B71: Nakaseke District | C71: 0 | D71: 0 | E71: 381030.9107 | F71: 231957.746 | G71: 625968.021 | H71: 1664531.981 | I71: 0 | J71: 0 | K71: 532906.5262 | L71: 4490371.219 | M71: 1240481.352 | N71: 2689630.659 | O71: 85668.38363 | P71: 24523.2 | Q71: 467997.126 | R71: 108181.3063 | S71: 131633.602 | T71: 158696.3108 | U71: 687519.7863 | V71: 14710.50505 | W71: 28120.48592 | X71: 0 | Y71: 28120.48592 | Z71: 0 | AA71: 34311.02454 | AB71: 10423.89201 | AC71: 0 | AD71: 44734.91655 | AE71: 0 | AF71: 0 | AG71: 3726.449217 | AH71: 0 | AI71: 6054.811819 | AJ71: 0 | AK71: 6054.811819 | AL71: 13418.28966 | AM71: 34540.0882 | AN71: 107078.4 | AO71: 69855.60217 | AP71: 28014.48331 | AQ71: 19071.24436 | AR71: 25991 | AS71: 45062.24436 | AT71: 66187.19755 | AU71: 0 | AV71: 0 | AW71: 0 | AX71: 66187.19755 | AY71: 22000 | AZ71: 0 | BA71: 0 | BB71: 0 | BC71: 0 | BD71: 420572.8861 | BE71: 226595 | BF71: 14651769.49 | BG71: 414106.2729 | BH71: 0 | BI71: 414106.2729 | BJ71: 355899.7862 | BK71: 0 | BL71: 355899.7862 | BM71: 0 | BN71: 214302.5645 | BQ71: 0 | BR71: 156209.5156 | BS71: 0 | BT71: 156209.5156 | BU71: 0 | BV71: 0 | BW71: 210651.8997 | BX71: 272000 | BY71: 202719.985 | BZ71: 0 | CA71: 0 | CB71: 685371.8847 | CC71: 0 | CD71: 0 | CE71: 0 | CF71: 16477659.51 | CG71: 11687754.74 | CH71: 2964014.748 | CI71: 1825890.024 | CJ71: 0 | CK71: 1825890.024
A72: 570 | B72: Amuru District | C72: 0 | D72: 0 | E72: 384206.9021 | F72: 57642.49808 | G72: 125193.6042 | H72: 1959218.587 | I72: 18084.88064 | J72: 57011.12436 | K72: 356492.5098 | L72: 3601358.179 | M72: 759582.5347 | N72: 1840718.127 | O72: 14654.4624 | P72: 24523.2 | Q72: 347121.4164 | R72: 123446.2641 | S72: 0 | T72: 48755.24672 | U72: 429719.7039 | V72: 8957.227578 | W72: 28120.48592 | X72: 76358.56599 | Y72: 104479.0519 | Z72: 0 | AA72: 29247.94916 | AB72: 6532.758378 | AC72: 31166.76187 | AD72: 66947.46942 | AE72: 0 | AF72: 0 | AG72: 2269.035195 | AH72: 0 | AI72: 5330.926883 | AJ72: 76358.56599 | AK72: 81689.49287 | AL72: 8170.397533 | AM72: 20445.27968 | AN72: 111945.6 | AO72: 25080 | AP72: 17058.02089 | AQ72: 11076.40232 | AR72: 9166 | AS72: 20242.40232 | AT72: 92309.65303 | AU72: 0 | AV72: 0 | AW72: 76358.56599 | AX72: 168668.219 | AY72: 22000 | AZ72: 1177553.236 | BA72: 0 | BB72: 118725.3333 | BC72: 0 | BD72: 0 | BE72: 84095 | BF72: 12186055.01 | BG72: 460063.4839 | BH72: 152717.1328 | BI72: 612780.6167 | BJ72: 495528.9306 | BK72: 152717.1328 | BL72: 648246.0633 | BM72: 0 | BN72: 146486.3375 | BQ72: 0 | BR72: 70836.46755 | BS72: 305434.2663 | BT72: 376270.7339 | BU72: 0 | BV72: 0 | BW72: 140433.9059 | BX72: 0 | BY72: 0 | BZ72: 0 | CA72: 381792.8323 | CB72: 522226.7382 | CC72: 512002.2805 | CD72: 305434.2695 | CE72: 817436.55 | CF72: 15309502.05 | CG72: 8877781.804 | CH72: 3308273.202 | CI72: 3123447.04 | CJ72: 0 | CK72: 3123447.04
A73: 571 | B73: Budaka District | C73: 0 | D73: 0 | E73: 301507.0217 | F73: 92660.05379 | G73: 125193.6042 | H73: 982945.6364 | I73: 0 | J73: 0 | K73: 18269.57705 | L73: 4990806.644 | M73: 1540568.259 | N73: 1220675.65 | O73: 14644.7784 | P73: 24523.2 | Q73: 493668.3735 | R73: 92988.23162 | S73: 0 | T73: 44034.01384 | U73: 1391961.96 | V73: 8871.080841 | W73: 28120.48592 | X73: 35412.37851 | Y73: 63532.86443 | Z73: 0 | AA73: 21252.96504 | AB73: 8807.679435 | AC73: 16743.30234 | AD73: 46803.94682 | AE73: 0 | AF73: 0 | AG73: 11469.11461 | AH73: 0 | AI73: 5475.33087 | AJ73: 26992.10184 | AK73: 32467.43271 | AL73: 8091.818187 | AM73: 25552.86663 | AN73: 146016 | AO73: 66000 | AP73: 16893.96423 | AQ73: 12107.99484 | AR73: 12556 | AS73: 24663.99484 | AT73: 56430.9075 | AU73: 8200 | AV73: 0 | AW73: 44855.67944 | AX73: 109486.5869 | AY73: 22000 | AZ73: 0 | BA73: 0 | BB73: 0 | BC73: 0 | BD73: 0 | BE73: 198095 | BF73: 12114391.67 | BG73: 302088.2468 | BH73: 138851.501 | BI73: 440939.7478 | BJ73: 591292.5252 | BK73: 78694.17446 | BL73: 669986.6997 | BM73: 0 | BN73: 170527.7873 | BQ73: 0 | BR73: 151254.9329 | BS73: 236082.5234 | BT73: 387337.4563 | BU73: 68484.80919 | BV73: 0 | BW73: 175542.8612 | BX73: 0 | BY73: 0 | BZ73: 0 | CA73: 143852.9509 | CB73: 319395.8121 | CC73: 0 | CD73: 115680.5057 | CE73: 115680.5057 | CF73: 14286744.49 | CG73: 9261738.349 | CH73: 2852653.325 | CI73: 2103868.009 | CJ73: 68484.80919 | CK73: 2172352.818
A74: 572 | B74: Oyam District | C74: 0 | D74: 0 | E74: 509694.7885 | F74: 57306.89315 | G74: 125193.6042 | H74: 1287616.669 | I74: 0 | J74: 107926.5179 | K74: 756522.5681 | L74: 10180747.24 | M74: 1568482.791 | N74: 1254045.35 | O74: 56241.79175 | P74: 24523.2 | Q74: 901668.1631 | R74: 190805.129 | S74: 0 | T74: 360964.815 | U74: 655805.3272 | V74: 14974.00175 | W74: 28120.48592 | X74: 47216.50468 | Y74: 75336.9906 | Z74: 0 | AA74: 37123.56134 | AB74: 16216.45219 | AC74: 35825.15841 | AD74: 89165.17194 | AE74: 0 | AF74: 0 | AG74: 3793.197916 | AH74: 0 | AI74: 7337.088706 | AJ74: 47216.50468 | AK74: 54553.59338 | AL74: 13658.64001 | AM74: 40658.98286 | AN74: 141148.8 | AO74: 140399.85 | AP74: 28516.2828 | AQ74: 18555.4481 | AR74: 18081 | AS74: 36636.4481 | AT74: 111039.2033 | AU74: 0 | AV74: 0 | AW74: 82628.88319 | AX74: 193668.0865 | AY74: 22000 | AZ74: 0 | BA74: 0 | BB74: 160984 | BC74: 205768.0014 | BD74: 535651.7609 | BE74: 183845 | BF74: 19978303.66 | BG74: 548362.4422 | BH74: 137714.8053 | BI74: 686077.2476 | BJ74: 470414.2107 | BK74: 281725.1446 | BL74: 752139.3552 | BM74: 70624.99968 | BN74: 210514.81 | BQ74: 0 | BR74: 141074.5827 | BS74: 533585.946 | BT74: 674660.5287 | BU74: 0 | BV74: 0 | BW74: 175542.8612 | BX74: 0 | BY74: 0 | BZ74: 0 | CA74: 456152.4986 | CB74: 631695.3598 | CC74: 512002.2805 | CD74: 169192.4751 | CE74: 681194.7556 | CF74: 23685210.71 | CG74: 15578367.01 | CH74: 4399936.642 | CI74: 3706907.056 | CJ74: 0 | CK74: 3706907.056
A75: 573 | B75: Abim District | C75: 0 | D75: 0 | E75: 237114.429 | F75: 88393.29352 | G75: 125193.6042 | H75: 946759.109 | I75: 22923.07692 | J75: 25826.64891 | K75: 272274.0478 | L75: 3520508.757 | M75: 486792.3074 | N75: 1938192.842 | O75: 13304.12712 | P75: 24523.2 | Q75: 209669.7884 | R75: 90039.54415 | S75: 137576.6687 | T75: 119867.3925 | U75: 470627.0587 | V75: 6327.048951 | W75: 28120.48592 | X75: 25182.13583 | Y75: 53302.62175 | Z75: 0 | AA75: 22389.99354 | AB75: 6186.427113 | AC75: 28532.42176 | AD75: 57108.84241 | AE75: 0 | AF75: 0 | AG75: 1602.761192 | AH75: 0 | AI75: 6350.782793 | AJ75: 44855.67944 | AK75: 51206.46224 | AL75: 5771.261776 | AM75: 19441.56165 | AN75: 111945.6 | AO75: 54384.68676 | AP75: 12049.14492 | AQ75: 8884.268214 | AR75: 6529 | AS75: 15413.26821 | AT75: 53105.19822 | AU75: 0 | AV75: 0 | AW75: 78694.11151 | AX75: 131799.3097 | AY75: 22000 | AZ75: 1368759.996 | BA75: 0 | BB75: 0 | BC75: 162512.0011 | BD75: 0 | BE75: 98345 | BF75: 10901555.46 | BG75: 245671.0425 | BH75: 414411.5487 | BI75: 660082.5912 | BJ75: 613896.5657 | BK75: 125910.6791 | BL75: 739807.2449 | BM75: 0 | BN75: 133979.2853 | BQ75: 0 | BR75: 126132.7529 | BS75: 243951.9408 | BT75: 370084.6938 | BU75: 0 | BV75: 0 | BW75: 140433.9059 | BX75: 0 | BY75: 0 | BZ75: 0 | CA75: 244738.8826 | CB75: 385172.7885 | CC75: 0 | CD75: 220343.6885 | CE75: 220343.6885 | CF75: 13411025.75 | CG75: 7537838.595 | CH75: 3363716.868 | CI75: 2509470.292 | CJ75: 0 | CK75: 2509470.292
A76: 574 | B76: Namutumba District | C76: 0 | D76: 0 | E76: 359107.8085 | F76: 56487.72718 | G76: 125193.6042 | H76: 948677.5515 | I76: 0 | J76: 0 | K76: 0 | L76: 7121985.046 | M76: 1048902.468 | N76: 1193991.307 | O76: 71626.16687 | P76: 24523.2 | Q76: 622674.2414 | R76: 132005.6231 | S76: 0 | T76: 86014.75456 | U76: 1699742.487 | V76: 9657.846518 | W76: 28120.48592 | X76: 0 | Y76: 28120.48592 | Z76: 0 | AA76: 23359.171 | AB76: 9928.162941 | AC76: 0 | AD76: 33287.33395 | AE76: 0 | AF76: 0 | AG76: 2446.515226 | AH76: 0 | AI76: 6615.23977 | AJ76: 0 | AK76: 6615.23977 | AL76: 8809.471979 | AM76: 26112.52292 | AN76: 111945.6 | AO76: 59078.77205 | AP76: 18392.26996 | AQ76: 18555.4481 | AR76: 16825 | AS76: 35380.4481 | AT76: 57729.77122 | AU76: 0 | AV76: 0 | AW76: 0 | AX76: 57729.77122 | AY76: 22000 | AZ76: 0 | BA76: 0 | BB76: 0 | BC76: 0 | BD76: 0 | BE76: 112595 | BF76: 14023103.26 | BG76: 356800.5615 | BH76: 0 | BI76: 356800.5615 | BJ76: 461646.6686 | BK76: 0 | BL76: 461646.6686 | BM76: 0 | BN76: 129933.546 | BQ76: 0 | BR76: 180443.9676 | BS76: 0 | BT76: 180443.9676 | BU76: 0 | BV76: 0 | BW76: 351085.8056 | BX76: 272000 | BY76: 0 | BZ76: 0 | CA76: 0 | CB76: 623085.8056 | CC76: 0 | CD76: 0 | CE76: 0 | CF76: 15775013.81 | CG76: 10759439.94 | CH76: 3263663.319 | CI76: 1751910.549 | CJ76: 0 | CK76: 1751910.549
A77: 575 | B77: Dokolo District | C77: 0 | D77: 0 | E77: 313994.9035 | F77: 69819.19489 | G77: 125193.6042 | H77: 1020353.842 | I77: 0 | J77: 52166.62251 | K77: 213354.0145 | L77: 4587903.139 | M77: 932022.9977 | N77: 1237385.931 | O77: 28001.89683 | P77: 24523.2 | Q77: 438424.0776 | R77: 145362.5742 | S77: 0 | T77: 15168.07528 | U77: 530418.2936 | V77: 10262.91331 | W77: 28120.48592 | X77: 0 | Y77: 28120.48592 | Z77: 10000 | AA77: 21787.36774 | AB77: 8101.435286 | AC77: 30847.81965 | AD77: 60736.62268 | AE77: 0 | AF77: 0 | AG77: 2599.790092 | AH77: 0 | AI77: 6217.498805 | AJ77: 39347.08723 | AK77: 45564.58604 | AL77: 9361.38787 | AM77: 23395.39345 | AN77: 136281.6 | AO77: 84898.20808 | AP77: 19544.55083 | AQ77: 12236.94391 | AR77: 10547 | AS77: 22783.94391 | AT77: 58542.8349 | AU77: 0 | AV77: 0 | AW77: 36027.39158 | AX77: 94570.22648 | AY77: 0 | AZ77: 0 | BA77: 0 | BB77: 160984 | BC77: 0 | BD77: 0 | BE77: 169595 | BF77: 10612791.08 | BG77: 308705.5954 | BH77: 354123.7851 | BI77: 662829.3805 | BJ77: 461669.7802 | BK77: 118041.2617 | BL77: 579711.0419 | BM77: 0 | BN77: 177667.5899 | BQ77: 0 | BR77: 82105.39918 | BS77: 295103.1542 | BT77: 377208.5534 | BU77: 77228.20238 | BV77: 0 | BW77: 140433.9059 | BX77: 0 | BY77: 58035.6457 | BZ77: 0 | CA77: 472165.0468 | CB77: 670634.5984 | CC77: 512002.2805 | CD77: 196735.4362 | CE77: 708737.7167 | CF77: 13866808.16 | CG77: 8474615.225 | CH77: 2138175.85 | CI77: 3176788.881 | CJ77: 77228.20238 | CK77: 3254017.083
A78: 576 | B78: Bullisa District | C78: 0 | D78: 0 | E78: 277093.0396 | F78: 61246.28477 | G78: 125193.6042 | H78: 612997.1215 | I78: 0 | J78: 0 | K78: 0 | L78: 2130528.356 | M78: 340590.5834 | N78: 1552212.42 | O78: 24164.28552 | P78: 24523.2 | Q78: 196306.2466 | R78: 81900.36881 | S78: 42010.00101 | T78: 0 | U78: 359242.2388 | V78: 4370.860562 | W78: 28120.48592 | X78: 9487.804852 | Y78: 37608.29078 | Z78: 8000 | AA78: 15451.51606 | AB78: 3972.623338 | AC78: 18020.26819 | AD78: 37444.4076 | AE78: 0 | AF78: 0 | AG78: 1107.221667 | AH78: 0 | AI78: 5980.566826 | AJ78: 0 | AK78: 5980.566826 | AL78: 3986.91091 | AM78: 11269.65951 | AN78: 116812.8 | AO78: 34440 | AP78: 8323.806685 | AQ78: 8497.421019 | AR78: 4520 | AS78: 13017.42102 | AT78: 34434.9702 | AU78: 0 | AV78: 0 | AW78: 15738.83489 | AX78: 50173.80509 | AY78: 22000 | AZ78: 0 | BA78: 0 | BB78: 0 | BC78: 0 | BD78: 0 | BE78: 112595 | BF78: 6295138.501 | BG78: 183697.9249 | BH78: 125910.6791 | BI78: 309608.6041 | BJ78: 509970.5775 | BK78: 47216.50468 | BL78: 557187.0822 | BM78: 0 | BN78: 108751.3216 | BQ78: 0 | BR78: 121681.7721 | BS78: 212474.2711 | BT78: 334156.0431 | BU78: 0 | BV78: 0 | BW78: 210651.8997 | BX78: 0 | BY78: 0 | BZ78: 0 | CA78: 393470.8723 | CB78: 604122.772 | CC78: 0 | CD78: 78694.17446 | CE78: 78694.17446 | CF78: 8287658.499 | CG78: 5039617.371 | CH78: 1255521.13 | CI78: 1992519.998 | CJ78: 0 | CK78: 1992519.998
A79: 577 | B79: Maracha District | C79: 0 | D79: 0 | E79: 397023.0893 | F79: 48763.91275 | G79: 125193.6042 | H79: 814676.2396 | I79: 0 | J79: 65256.40233 | K79: 49352.23562 | L79: 6093380.638 | M79: 1063333.067 | N79: 1843011.462 | O79: 25248.33346 | P79: 24523.2 | Q79: 585495.3584 | R79: 117455.0032 | S79: 0 | T79: 320681.9845 | U79: 509621.0388 | V79: 9902.571443 | W79: 28120.48592 | X79: 29903.7863 | Y79: 58024.27222 | Z79: 0 | AA79: 24550.69911 | AB79: 9337.362547 | AC79: 22135.8496 | AD79: 56023.91125 | AE79: 0 | AF79: 0 | AG79: 2508.50868 | AH79: 0 | AI79: 4207.840981 | AJ79: 22034.36885 | AK79: 26242.20983 | AL79: 9032.699524 | AM79: 26709.40128 | AN79: 121680 | AO79: 69174.67426 | AP79: 18858.32073 | AQ79: 12623.7911 | AR79: 10924 | AS79: 23547.7911 | AT79: 60276.34667 | AU79: 0 | AV79: 0 | AW79: 39347.08723 | AX79: 99623.4339 | AY79: 22000 | AZ79: 0 | BA79: 0 | BB79: 0 | BC79: 0 | BD79: 0 | BE79: 126845 | BF79: 12753188.36 | BG79: 371577.1241 | BH79: 314870.2157 | BI79: 686447.3398 | BJ79: 681564.2936 | BK79: 78694.17446 | BL79: 760258.4681 | BM79: 0 | BN79: 140287.6199 | BQ79: 0 | BR79: 154222.4286 | BS79: 251821.3583 | BT79: 406043.7869 | BU79: 160217.7037 | BV79: 0 | BW79: 210651.8997 | BX79: 0 | BY79: 0 | BZ79: 0 | CA79: 155184.912 | CB79: 365836.8117 | CC79: 0 | CD79: 192800.7274 | CE79: 192800.7274 | CF79: 15465080.82 | CG79: 10287243.78 | CH79: 2465944.583 | CI79: 2551674.754 | CJ79: 160217.7037 | CK79: 2711892.458
A80: 578 | B80: Bukedea Distrct | C80: 0 | D80: 0 | E80: 319305.1099 | F80: 103841.5012 | G80: 125193.6042 | H80: 802714.5023 | I80: 0 | J80: 0 | K80: 195752.2355 | L80: 7367816.876 | M80: 930439.5857 | N80: 908424.8504 | O80: 13771.26312 | P80: 24523.2 | Q80: 536440.206 | R80: 107208.5803 | S80: 0 | T80: 38085.96362 | U80: 940053.6905 | V80: 8378.324876 | W80: 28120.48592 | X80: 23608.25234 | Y80: 51728.73826 | Z80: 0 | AA80: 24366.28924 | AB80: 7537.798129 | AC80: 16013.41533 | AD80: 47917.5027 | AE80: 0 | AF80: 0 | AG80: 2122.388189 | AH80: 0 | AI80: 6732.78976 | AJ80: 31477.66979 | AK80: 38210.45955 | AL80: 7642.3474 | AM80: 28259.51387 | AN80: 111945.6 | AO80: 40080 | AP80: 15955.56655 | AQ80: 16621.21212 | AR80: 16072 | AS80: 32693.21212 | AT80: 53469.49239 | AU80: 0 | AV80: 0 | AW80: 81054.9997 | AX80: 134524.4921 | AY80: 0 | AZ80: 0 | BA80: 0 | BB80: 0 | BC80: 0 | BD80: 162257.146 | BE80: 98345 | BF80: 13193631.46 | BG80: 297603.5186 | BH80: 142436.4558 | BI80: 440039.9743 | BJ80: 363789.0026 | BK80: 103876.3103 | BL80: 467665.3129 | BM80: 0 | BN80: 186941.6187 | BQ80: 0 | BR80: 128809.4886 | BS80: 78694.17446 | BT80: 207503.663 | BU80: 124872.8047 | BV80: 0 | BW80: 175542.8612 | BX80: 0 | BY80: 0 | BZ80: 0 | CA80: 196735.4362 | CB80: 372278.2973 | CC80: 512002.2805 | CD80: 126774.0526 | CE80: 638776.3331 | CF80: 15631709.46 | CG80: 10578926.72 | CH80: 2614704.743 | CI80: 2313205.199 | CJ80: 124872.8047 | CK80: 2438078.004
A81: 579 | B81: Bududa District | C81: 0 | D81: 0 | E81: 432980.4371 | F81: 49015.13079 | G81: 161921.5435 | H81: 687990.2927 | I81: 0 | J81: 0 | K81: 0 | L81: 5100081.783 | M81: 758907.7258 | N81: 1807367.72 | O81: 52284.26112 | P81: 24523.2 | Q81: 438147.4125 | R81: 107783.0192 | S81: 132633.602 | T81: 9584.894571 | U81: 783756.2783 | V81: 12712.78038 | W81: 28120.48592 | X81: 28329.90281 | Y81: 56450.38873 | Z81: 0 | AA81: 20276.93282 | AB81: 9120.056655 | AC81: 16620.63226 | AD81: 46017.62173 | AE81: 0 | AF81: 0 | AG81: 3220.387765 | AH81: 0 | AI81: 5105.825903 | AJ81: 16066.20659 | AK81: 21172.0325 | AL81: 11596.05118 | AM81: 24890.27834 | AN81: 160617.6 | AO81: 142080 | AP81: 24210.04394 | AQ81: 16105.41586 | AR81: 16700 | AS81: 32805.41586 | AT81: 42456.52596 | AU81: 0 | AV81: 0 | AW81: 35412.37851 | AX81: 77868.90447 | AY81: 22000 | AZ81: 0 | BA81: 0 | BB81: 0 | BC81: 0 | BD81: 0 | BE81: 240845 | BF81: 11423463.81 | BG81: 246595.968 | BH81: 174307.5964 | BI81: 420903.5644 | BJ81: 366405.7927 | BK81: 64303.66746 | BL81: 430709.4602 | BM81: 17656.24992 | BN81: 231902.3279 | BQ81: 0 | BR81: 100442.2291 | BS81: 132065.4395 | BT81: 232507.6685 | BU81: 0 | BV81: 0 | BW81: 140433.9059 | BX81: 0 | BY81: 0 | BZ81: 0 | CA81: 144621.3075 | CB81: 285055.2134 | CC81: 0 | CD81: 219304.4816 | CE81: 219304.4816 | CF81: 13261502.77 | CG81: 8994539.126 | CH81: 2428924.679 | CI81: 1838038.966 | CJ81: 0 | CK81: 1838038.966
A82: 580 | B82: Lyantonde District | C82: 0 | D82: 0 | E82: 845550.6813 | F82: 54095.59999 | G82: 125193.6042 | H82: 640182.6337 | I82: 0 | J82: 0 | K82: 0 | L82: 2028164.357 | M82: 532943.3814 | N82: 1534152.722 | O82: 30599.40552 | P82: 24523.2 | Q82: 194248.6922 | R82: 79805.41466 | S82: 129256.3753 | T82: 16644.26967 | U82: 439852.3128 | V82: 5398.34197 | W82: 28121.06798 | X82: 0 | Y82: 28121.06798 | Z82: 18000 | AA82: 14824.05077 | AB82: 4739.984769 | AC82: 0 | AD82: 19564.03554 | AE82: 0 | AF82: 0 | AG82: 1367.502145 | AH82: 0 | AI82: 5122.864901 | AJ82: 0 | AK82: 5122.864901 | AL82: 4924.135234 | AM82: 16672.74575 | AN82: 111945.6 | AO82: 41073.52132 | AP82: 10280.52813 | AQ82: 10560.60606 | AR82: 9543 | AS82: 20103.60606 | AT82: 22954.67754 | AU82: 0 | AV82: 0 | AW82: 0 | AX82: 22954.67754 | AY82: 22000 | AZ82: 0 | BA82: 0 | BB82: 0 | BC82: 0 | BD82: 0 | BE82: 98345 | BF82: 7101086.277 | BG82: 171051.5941 | BH82: 0 | BI82: 171051.5941 | BJ82: 439179.3182 | BK82: 0 | BL82: 439179.3182 | BM82: 0 | BN82: 93292.18268 | BQ82: 0 | BR82: 152252.1541 | BS82: 0 | BT82: 152252.1541 | BU82: 0 | BV82: 0 | BW82: 210651.8997 | BX82: 0 | BY82: 0 | BZ82: 0 | CA82: 0 | CB82: 210651.8997 | CC82: 0 | CD82: 0 | CE82: 0 | CF82: 8167513.426 | CG82: 5126049.904 | CH82: 1975036.372 | CI82: 1066427.149 | CJ82: 0 | CK82: 1066427.149
A83: 581 | B83: Amudat District | C83: 0 | D83: 0 | E83: 262520.0169 | F83: 54594.53174 | G83: 125193.6042 | H83: 214316.4966 | I83: 17766.57825 | J83: 36606.46758 | K83: 0 | L83: 727255.744 | M83: 106691.7799 | N83: 409423.6668 | O83: 10214.53512 | P83: 24523.2 | Q83: 48901.97933 | R83: 62124.36574 | S83: 0 | T83: 201683.1673 | U83: 49572.86789 | V83: 5411.445306 | W83: 28120.48592 | X83: 29222.44112 | Y83: 57342.92704 | Z83: 0 | AA83: 11263.52907 | AB83: 1120.483506 | AC83: 29222.441 | AD83: 41606.45358 | AE83: 0 | AF83: 0 | AG83: 1370.821468 | AH83: 0 | AI83: 4631.920944 | AJ83: 43833.66167 | AK83: 48465.58262 | AL83: 4936.087533 | AM83: 6378.57007 | AN83: 97344 | AO83: 20629.34852 | AP83: 10305.48195 | AQ83: 5918.439716 | AR83: 3265 | AS83: 9183.439716 | AT83: 58701.92168 | AU83: 0 | AV83: 0 | AW83: 58444.88223 | AX83: 117146.8039 | AY83: 22000 | AZ83: 246233.1311 | BA83: 0 | BB83: 0 | BC83: 0 | BD83: 0 | BE83: 69845 | BF83: 3109588.094 | BG83: 285204.0111 | BH83: 263001.9685 | BI83: 548205.9796 | BJ83: 495528.9306 | BK83: 146112.2048 | BL83: 641641.1354 | BM83: 0 | BN83: 93118.23315 | BQ83: 0 | BR83: 100287.49 | BS83: 233779.5281 | BT83: 334067.0182 | BU83: 0 | BV83: 0 | BW83: 140433.9059 | BX83: 0 | BY83: 111844.809 | BZ83: 0 | CA83: 175334.6459 | CB83: 427613.3608 | CC83: 0 | CD83: 482170.2768 | CE83: 482170.2768 | CF83: 5636404.098 | CG83: 1784808.027 | CH83: 1324780.068 | CI83: 2526816.004 | CJ83: 0 | CK83: 2526816.004
A84: 582 | B84: Buikwe District | C84: 30000 | D84: 0 | E84: 703559.6862 | F84: 501539.4122 | G84: 655973.3523 | H84: 1742403.987 | I84: 0 | J84: 0 | K84: 217708.9516 | L84: 9325896.648 | M84: 1642832.926 | N84: 2759943.259 | O84: 85460.35799 | P84: 24523.2 | Q84: 655888.106 | R84: 170822.2313 | S84: 152622.349 | T84: 316327.5066 | U84: 2024078.008 | V84: 18069.4383 | W84: 28120.48592 | X84: 0 | Y84: 28120.48592 | Z84: 0 | AA84: 37702.01772 | AB84: 13676.68958 | AC84: 0 | AD84: 51378.7073 | AE84: 0 | AF84: 0 | AG84: 18410.18358 | AH84: 0 | AI84: 7059.116731 | AJ84: 0 | AK84: 7059.116731 | AL84: 16482.16402 | AM84: 42218.95453 | AN84: 141148.8 | AO84: 85226.45367 | AP84: 34411.18956 | AQ84: 25389.74855 | AR84: 34781 | AS84: 60170.74855 | AT84: 87874.16842 | AU84: 0 | AV84: 0 | AW84: 0 | AX84: 87874.16842 | AY84: 22000 | AZ84: 0 | BA84: 76800 | BB84: 0 | BC84: 0 | BD84: 167643.1509 | BE84: 183845 | BF84: 22050438.54 | BG84: 666244.9161 | BH84: 0 | BI84: 666244.9161 | BJ84: 502319.9073 | BK84: 0 | BL84: 502319.9073 | BM84: 310925.9994 | BN84: 209330.3414 | BQ84: 0 | BR84: 148932.365 | BS84: 0 | BT84: 148932.365 | BU84: 0 | BV84: 0 | BW84: 210651.8997 | BX84: 0 | BY84: 0 | BZ84: 0 | CA84: 0 | CB84: 210651.8997 | CC84: 0 | CD84: 0 | CE84: 0 | CF84: 24098843.97 | CG84: 16779736.48 | CH84: 5270702.061 | CI84: 2048405.429 | CJ84: 0 | CK84: 2048405.429
A85: 583 | B85: Buyende District | C85: 0 | D85: 0 | E85: 495794.7604 | F85: 90582.5945 | G85: 125193.6042 | H85: 753120.9721 | I85: 0 | J85: 0 | K85: 0 | L85: 6338994.991 | M85: 623128.1235 | N85: 1078920.103 | O85: 12489.91104 | P85: 24523.2 | Q85: 581181.5296 | R85: 112485.2462 | S85: 0 | T85: 90504.92 | U85: 1295746.646 | V85: 15630.05377 | W85: 28120.48592 | X85: 0 | Y85: 28120.48592 | Z85: 0 | AA85: 24409.59837 | AB85: 5969.121221 | AC85: 0 | AD85: 30378.71959 | AE85: 0 | AF85: 0 | AG85: 3959.388304 | AH85: 0 | AI85: 4605.331947 | AJ85: 0 | AK85: 4605.331947 | AL85: 14257.06243 | AM85: 22472.4781 | AN85: 111945.6 | AO85: 55007.60661 | AP85: 29765.65924 | AQ85: 16234.36493 | AR85: 23982 | AS85: 40216.36493 | AT85: 80811.61698 | AU85: 0 | AV85: 0 | AW85: 0 | AX85: 80811.61698 | AY85: 22000 | AZ85: 0 | BA85: 0 | BB85: 0 | BC85: 0 | BD85: 0 | BE85: 98345 | BF85: 12180181.97 | BG85: 444123.548 | BH85: 0 | BI85: 444123.548 | BJ85: 502319.9073 | BK85: 0 | BL85: 502319.9073 | BM85: 0 | BN85: 146898.8904 | BQ85: 0 | BR85: 98934.03649 | BS85: 0 | BT85: 98934.03649 | BU85: 0 | BV85: 0 | BW85: 421302.7169 | BX85: 0 | BY85: 0 | BZ85: 0 | CA85: 0 | CB85: 421302.7169 | CC85: 0 | CD85: 0 | CE85: 0 | CF85: 13793761.07 | CG85: 9166661.505 | CH85: 3013520.465 | CI85: 1613579.099 | CJ85: 0 | CK85: 1613579.099
A86: 584 | B86: Kyegegwa District | C86: 0 | D86: 0 | E86: 498147.7728 | F86: 54601.6319 | G86: 125193.6042 | H86: 776183.5986 | I86: 0 | J86: 0 | K86: 0 | L86: 3424270.792 | M86: 783913.3817 | N86: 1356712.824 | O86: 48945.43151 | P86: 24523.2 | Q86: 353936.4307 | R86: 76734.69872 | S86: 0 | T86: 11300.83999 | U86: 436683.6766 | V86: 8875.449935 | W86: 28121.06798 | X86: 0 | Y86: 28121.06798 | Z86: 0 | AA86: 18805.62975 | AB86: 6125.309831 | AC86: 0 | AD86: 24930.93958 | AE86: 0 | AF86: 0 | AG86: 11470.22139 | AH86: 0 | AI86: 4936.566917 | AJ86: 0 | AK86: 4936.566917 | AL86: 8095.803486 | AM86: 17751.22203 | AN86: 121680 | AO86: 75262.91985 | AP86: 16902.28467 | AQ86: 12881.68923 | AR86: 19713 | AS86: 32594.68923 | AT86: 43338.72784 | AU86: 0 | AV86: 0 | AW86: 0 | AX86: 43338.72784 | AY86: 22000 | AZ86: 0 | BA86: 0 | BB86: 0 | BC86: 0 | BD86: 0 | BE86: 126845 | BF86: 8513952.776 | BG86: 246910.1896 | BH86: 0 | BI86: 246910.1896 | BJ86: 365531.8507 | BK86: 0 | BL86: 365531.8507 | BM86: 0 | BN86: 130877.631 | BQ86: 0 | BR86: 65296.46409 | BS86: 0 | BT86: 65296.46409 | BU86: 0 | BV86: 0 | BW86: 351085.8056 | BX86: 0 | BY86: 0 | BZ86: 310000 | CA86: 0 | CB86: 661085.8056 | CC86: 0 | CD86: 0 | CE86: 0 | CF86: 9983654.716 | CG86: 6788267.832 | CH86: 1725684.944 | CI86: 1469701.941 | CJ86: 0 | CK86: 1469701.941
A87: 585 | B87: Lamwo District | C87: 0 | D87: 0 | E87: 388866.4903 | F87: 84950.1246 | G87: 250387.2084 | H87: 774617.0371 | I87: 28212.20159 | J87: 53995.34175 | K87: 0 | L87: 4049027.176 | M87: 373110.4442 | N87: 1334318.154 | O87: 14982.0144 | P87: 24523.2 | Q87: 416660.0906 | R87: 81741.49077 | S87: 0 | T87: 14342.9058 | U87: 231044.2204 | V87: 11615.22153 | W87: 28120.48592 | X87: 6820.613754 | Y87: 34941.09968 | Z87: 0 | AA87: 32014.23654 | AB87: 5867.259084 | AC87: 31430.50256 | AD87: 69311.99818 | AE87: 0 | AF87: 0 | AG87: 2942.355346 | AH87: 0 | AI87: 5505.774867 | AJ87: 21382.62448 | AK87: 26888.39935 | AL87: 10594.90523 | AM87: 19076.99817 | AN87: 136281.6 | AO87: 68400 | AP87: 22119.86798 | AQ87: 13655.38362 | AR87: 9919 | AS87: 23574.38362 | AT87: 102584.6528 | AU87: 0 | AV87: 0 | AW87: 253726.8386 | AX87: 356311.4914 | AY87: 23000 | AZ87: 1376614.528 | BA87: 0 | BB87: 0 | BC87: 238393.335 | BD87: 0 | BE87: 169595 | BF87: 10710439.28 | BG87: 438947.6235 | BH87: 199319.5852 | BI87: 638267.2087 | BJ87: 351026.5263 | BK87: 134775.3308 | BL87: 485801.8571 | BM87: 28249.99987 | BN87: 198795.6891 | BQ87: 0 | BR87: 105076.6013 | BS87: 179783.7226 | BT87: 284860.3238 | BU87: 0 | BV87: 0 | BW87: 140433.9059 | BX87: 0 | BY87: 0 | BZ87: 0 | CA87: 320423.4282 | CB87: 460857.3342 | CC87: 403776.7985 | CD87: 423862.4814 | CE87: 827639.2799 | CF87: 13634910.98 | CG87: 7126841.834 | CH87: 3583597.449 | CI87: 2924471.693 | CJ87: 0 | CK87: 2924471.693
A88: 586 | B88: Otuke District | C88: 0 | D88: 0 | E88: 225394.1457 | F88: 47550.73753 | G88: 125193.6042 | H88: 832100.0147 | I88: 16557.02918 | J88: 21848.38249 | K88: 0 | L88: 3064364.854 | M88: 663732.6882 | N88: 911958.8273 | O88: 28001.89683 | P88: 24523.2 | Q88: 274228.7101 | R88: 47988.783 | S88: 0 | T88: 17820.6267 | U88: 313977.4977 | V88: 5401.705152 | W88: 28120.48592 | X88: 0 | Y88: 28120.48592 | Z88: 0 | AA88: 17036.9466 | AB88: 4597.377778 | AC88: 27814.80176 | AD88: 49449.12613 | AE88: 0 | AF88: 0 | AG88: 1368.354102 | AH88: 0 | AI88: 5828.298839 | AJ88: 7869.417446 | AK88: 13697.71629 | AL88: 4927.202984 | AM88: 16531.76683 | AN88: 111945.6 | AO88: 66907.04264 | AP88: 10286.93293 | AQ88: 10302.70793 | AR88: 7785 | AS88: 18087.70793 | AT88: 35342.88152 | AU88: 0 | AV88: 0 | AW88: 106237.1355 | AX88: 141580.017 | AY88: 0 | AZ88: 0 | BA88: 0 | BB88: 0 | BC88: 0 | BD88: 0 | BE88: 98345 | BF88: 7181889.655 | BG88: 168284.8429 | BH88: 255855.6403 | BI88: 424140.4832 | BJ88: 441197.8282 | BK88: 129845.3879 | BL88: 571043.2161 | BM88: 0 | BN88: 110393.2004 | BQ88: 0 | BR88: 79135.14516 | BS88: 361993.2025 | BT88: 441128.3477 | BU88: 79012.09959 | BV88: 0 | BW88: 140433.9059 | BX88: 0 | BY88: 0 | BZ88: 0 | CA88: 327997.3192 | CB88: 468431.2251 | CC88: 403776.7985 | CD88: 173127.1838 | CE88: 576903.9823 | CF88: 9852942.21 | CG88: 5860165.685 | CH88: 1321723.97 | CI88: 2592040.455 | CJ88: 79012.09959 | CK88: 2671052.554
A89: 587 | B89: Zombo District | C89: 0 | D89: 0 | E89: 433094.7451 | F89: 135967.3947 | G89: 250387.2084 | H89: 700932.964 | I89: 44954.90716 | J89: 53770.7622 | K89: 327819.7989 | L89: 6214012.788 | M89: 880484.4927 | N89: 1468028.003 | O89: 40602.96936 | P89: 24523.2 | Q89: 571148.4099 | R89: 113911.9379 | S89: 0 | T89: 336749.6614 | U89: 392942.8225 | V89: 9392.965861 | W89: 28120.48592 | X89: 4759.188376 | Y89: 32879.6743 | Z89: 0 | AA89: 21050.97537 | AB89: 8210.088232 | AC89: 21534.76618 | AD89: 50795.82978 | AE89: 0 | AF89: 0 | AG89: 2379.415945 | AH89: 0 | AI89: 4265.342976 | AJ89: 53836.91573 | AK89: 58102.25871 | AL89: 8567.859243 | AM89: 24678.45214 | AN89: 131414.4 | AO89: 94035.8272 | AP89: 17887.83488 | AQ89: 16363.31399 | AR89: 14942 | AS89: 31305.31399 | AT89: 60958.01514 | AU89: 0 | AV89: 0 | AW89: 53836.91573 | AX89: 114794.9309 | AY89: 23000 | AZ89: 0 | BA89: 0 | BB89: 0 | BC89: 0 | BD89: 0 | BE89: 155345 | BF89: 12743911.83 | BG89: 404601.1136 | BH89: 313290.8519 | BI89: 717891.9655 | BJ89: 330808.0164 | BK89: 123412.6656 | BL89: 454220.682 | BM89: 177515.9997 | BN89: 148396.0478 | BQ89: 0 | BR89: 55961.96105 | BS89: 161510.7464 | BT89: 217472.7075 | BU89: 118219.1743 | BV89: 0 | BW89: 210651.8997 | BX89: 0 | BY89: 0 | BZ89: 0 | CA89: 183045.5127 | CB89: 393697.4124 | CC89: 0 | CD89: 161510.7464 | CE89: 161510.7464 | CF89: 15132836.56 | CG89: 10193550.82 | CH89: 2550361.004 | CI89: 2270705.561 | CJ89: 118219.1743 | CK89: 2388924.736
A90: 588 | B90: Alebtong District | C90: 0 | D90: 0 | E90: 374318.4035 | F90: 47898.38828 | G90: 125193.6042 | H90: 858127.5556 | I90: 15984.08488 | J90: 63620.17985 | K90: 228339.9861 | L90: 5145329.596 | M90: 941148.7177 | N90: 965017.8546 | O90: 28178.11752 | P90: 24523.2 | Q90: 541907.2456 | R90: 89152.70736 | S90: 0 | T90: 18647.1054 | U90: 364646.7418 | V90: 14478.45935 | W90: 28121.06798 | X90: 31639.04163 | Y90: 59760.10961 | Z90: 0 | AA90: 22877.72853 | AB90: 8461.34817 | AC90: 31639.04171 | AD90: 62978.1184 | AE90: 0 | AF90: 0 | AG90: 3667.66765 | AH90: 0 | AI90: 4089.054992 | AJ90: 15819.52082 | AK90: 19908.57581 | AL90: 13206.62755 | AM90: 25139.9495 | AN90: 126547.2 | AO90: 94046.42867 | AP90: 27572.57866 | AQ90: 14171.17988 | AR90: 12807 | AS90: 26978.17988 | AT90: 72552.52091 | AU90: 0 | AV90: 0 | AW90: 0 | AX90: 72552.52091 | AY90: 0 | AZ90: 0 | BA90: 0 | BB90: 0 | BC90: 0 | BD90: 0 | BE90: 141095 | BF90: 10519964.9 | BG90: 388032.2474 | BH90: 474585.6261 | BI90: 862617.8735 | BJ90: 379630.1779 | BK90: 142375.6874 | BL90: 522005.8653 | BM90: 0 | BN90: 160190.3303 | BQ90: 0 | BR90: 43520.94242 | BS90: 300570.8963 | BT90: 344091.8387 | BU90: 116795.5019 | BV90: 0 | BW90: 175542.8612 | BX90: 0 | BY90: 0 | BZ90: 0 | CA90: 585322.2718 | CB90: 760865.133 | CC90: 403776.7985 | CD90: 0 | CE90: 403776.7985 | CF90: 13690308.25 | CG90: 8583500.832 | CH90: 1936464.073 | CI90: 3053547.839 | CJ90: 116795.5019 | CK90: 3170343.341
A91: 589 | B91: Bulambuli District | C91: 0 | D91: 0 | E91: 278278.5909 | F91: 104364.5539 | G91: 250387.2084 | H91: 1029404.563 | I91: 0 | J91: 0 | K91: 0 | L91: 3642168.807 | M91: 705541.0772 | N91: 1590406.926 | O91: 27742.17408 | P91: 24523.2 | Q91: 339764.1173 | R91: 76456.46733 | S91: 0 | T91: 6844.285617 | U91: 956737.0576 | V91: 11818.3477 | W91: 28120.48592 | X91: 0 | Y91: 28120.48592 | Z91: 0 | AA91: 18755.9639 | AB91: 6417.314623 | AC91: 14811.24848 | AD91: 39984.527 | AE91: 0 | AF91: 0 | AG91: 2993.811049 | AH91: 0 | AI91: 4984.922913 | AJ91: 14515.02323 | AK91: 19499.94614 | AL91: 10780.18819 | AM91: 20942.9534 | AN91: 175219.2 | AO91: 174366.9176 | AP91: 22506.69867 | AQ91: 11463.24952 | AR91: 11426 | AS91: 22889.24952 | AT91: 33652.94101 | AU91: 0 | AV91: 0 | AW91: 50802.58168 | AX91: 84455.52269 | AY91: 0 | AZ91: 0 | BA91: 0 | BB91: 0 | BC91: 0 | BD91: 0 | BE91: 283595 | BF91: 9929791.876 | BG91: 214869.2657 | BH91: 159665.2578 | BI91: 374534.5236 | BJ91: 313838.997 | BK91: 87090.14093 | BL91: 400929.1379 | BM91: 28249.99987 | BN91: 262296.6183 | BQ91: 0 | BR91: 77162.97626 | BS91: 166922.7698 | BT91: 244085.7461 | BU91: 86407.99961 | BV91: 0 | BW91: 175542.8612 | BX91: 0 | BY91: 0 | BZ91: 0 | CA91: 159665.2578 | CB91: 335208.119 | CC91: 0 | CD91: 87090.14407 | CE91: 87090.14407 | CF91: 11748594.16 | CG91: 7728988.155 | CH91: 2200803.721 | CI91: 1732394.289 | CJ91: 86407.99961 | CK91: 1818802.288
A92: 590 | B92: Buvuma District | C92: 0 | D92: 0 | E92: 383656.4367 | F92: 41268.93492 | G92: 125193.6042 | H92: 769116.5918 | I92: 0 | J92: 0 | K92: 0 | L92: 575214.1029 | M92: 95539.1536 | N92: 742271.2394 | O92: 30171.6984 | P92: 24523.2 | Q92: 57675.83004 | R92: 36932.21159 | S92: 0 | T92: 14093.99934 | U92: 49315.52807 | V92: 7543.861143 | W92: 28120.48592 | X92: 0 | Y92: 28120.48592 | Z92: 0 | AA92: 31888.56526 | AB92: 1602.630953 | AC92: 0 | AD92: 33491.19621 | AE92: 0 | AF92: 0 | AG92: 1911.00274 | AH92: 0 | AI92: 5184.130896 | AJ92: 0 | AK92: 5184.130896 | AL92: 6881.185494 | AM92: 7755.009669 | AN92: 107078.4 | AO92: 31312.93235 | AP92: 14366.42531 | AQ92: 6047.388781 | AR92: 24024 | AS92: 30071.38878 | AT92: 88525.56837 | AU92: 0 | AV92: 0 | AW92: 0 | AX92: 88525.56837 | AY92: 23000 | AZ92: 482222.2214 | BA92: 0 | BB92: 0 | BC92: 0 | BD92: 0 | BE92: 84095 | BF92: 3896531.339 | BG92: 337605.8051 | BH92: 0 | BI92: 337605.8051 | BJ92: 387626.4794 | BK92: 0 | BL92: 387626.4794 | BM92: 0 | BN92: 130767.2448 | BQ92: 0 | BR92: 37594.93387 | BS92: 0 | BT92: 37594.93387 | BU92: 0 | BV92: 0 | BW92: 210651.8997 | BX92: 0 | BY92: 0 | BZ92: 0 | CA92: 0 | CB92: 210651.8997 | CC92: 0 | CD92: 0 | CE92: 0 | CF92: 5000777.702 | CG92: 2553202.99 | CH92: 1343328.349 | CI92: 1104246.363 | CJ92: 0 | CK92: 1104246.363
A93: 591 | B93: Gomba District | C93: 0 | D93: 0 | E93: 371378.7354 | F93: 52456.13747 | G93: 125193.6042 | H93: 726291.3619 | I93: 0 | J93: 0 | K93: 560243.8734 | L93: 4385875.432 | M93: 855302.5471 | N93: 909520.705 | O93: 14982.0144 | P93: 24523.2 | Q93: 396935.5979 | R93: 87170.14418 | S93: 0 | T93: 16076.80107 | U93: 528607.5735 | V93: 9607.400128 | W93: 28120.48592 | X93: 0 | Y93: 28120.48592 | Z93: 0 | AA93: 20801.60569 | AB93: 7076.023108 | AC93: 0 | AD93: 27877.6288 | AE93: 0 | AF93: 0 | AG93: 2433.736202 | AH93: 0 | AI93: 5660.555854 | AJ93: 0 | AK93: 5660.555854 | AL93: 8763.456953 | AM93: 20633.22624 | AN93: 107078.4 | AO93: 48471.16544 | AP93: 18296.20054 | AQ93: 16234.36493 | AR93: 17704 | AS93: 33938.36493 | AT93: 43542.12711 | AU93: 0 | AV93: 0 | AW93: 0 | AX93: 43542.12711 | AY93: 23000 | AZ93: 0 | BA93: 0 | BB93: 0 | BC93: 203140.0014 | BD93: 535346.4703 | BE93: 84095 | BF93: 10254561.95 | BG93: 234881.6746 | BH93: 0 | BI93: 234881.6746 | BJ93: 331453.0512 | BK93: 0 | BL93: 331453.0512 | BM93: 750745.875 | BN93: 121791.8128 | BQ93: 0 | BR93: 64307.12372 | BS93: 0 | BT93: 64307.12372 | BU93: 0 | BV93: 0 | BW93: 280868.811 | BX93: 272000 | BY93: 0 | BZ93: 0 | CA93: 0 | CB93: 552868.811 | CC93: 0 | CD93: 0 | CE93: 0 | CF93: 12310610.3 | CG93: 7793106.138 | CH93: 2461455.809 | CI93: 2056048.348 | CJ93: 0 | CK93: 2056048.348
A94: 592 | B94: Kiryandongo District | C94: 0 | D94: 0 | E94: 590762.0688 | F94: 223455.7757 | G94: 375580.8126 | H94: 748161.8712 | I94: 0 | J94: 0 | K94: 501971.1025 | L94: 5186918.985 | M94: 587153.7235 | N94: 1626851.574 | O94: 67516.47959 | P94: 24523.2 | Q94: 475980.2175 | R94: 115239.8034 | S94: 140698.3111 | T94: 32051.765 | U94: 522149.6673 | V94: 16780.93697 | W94: 28121.06798 | X94: 0 | Y94: 28121.06798 | Z94: 0 | AA94: 27922.28681 | AB94: 8244.042278 | AC94: 25757.68391 | AD94: 61924.013 | AE94: 0 | AF94: 0 | AG94: 4250.92879 | AH94: 0 | AI94: 5625.008857 | AJ94: 23608.25234 | AK94: 29233.2612 | AL94: 15306.84855 | AM94: 23754.9768 | AN94: 116812.8 | AO94: 43837.05515 | AP94: 31957.38535 | AQ94: 13913.28175 | AR94: 16951 | AS94: 30864.28175 | AT94: 95687.89169 | AU94: 0 | AV94: 0 | AW94: 118041.2617 | AX94: 213729.1534 | AY94: 23000 | AZ94: 0 | BA94: 0 | BB94: 0 | BC94: 206894.6681 | BD94: 0 | BE94: 112595 | BF94: 12178077.73 | BG94: 654692.4713 | BH94: 168353.6975 | BI94: 823046.1688 | BJ94: 495528.9306 | BK94: 132868.0311 | BL94: 628396.9617 | BM94: 0 | BN94: 109446.866 | BQ94: 0 | BR94: 50448.62073 | BS94: 231798.5345 | BT94: 282247.1552 | BU94: 0 | BV94: 0 | BW94: 175542.8612 | BX94: 0 | BY94: 0 | BZ94: 0 | CA94: 268569.0525 | CB94: 444111.9137 | CC94: 0 | CD94: 318887.6815 | CE94: 318887.6815 | CF94: 14784214.48 | CG94: 9348085.548 | CH94: 2829992.186 | CI94: 2606136.747 | CJ94: 0 | CK94: 2606136.747
A95: 593 | B95: Luuka District | C95: 0 | D95: 0 | E95: 447398.0061 | F95: 52248.96706 | G95: 125193.6042 | H95: 821983.9884 | I95: 0 | J95: 0 | K95: 0 | L95: 8011958.743 | M95: 855384.4768 | N95: 1012798.21 | O95: 12205.5504 | P95: 24523.2 | Q95: 544140.3909 | R95: 109099.0984 | S95: 0 | T95: 53459.98886 | U95: 1536473.53 | V95: 9240.396287 | W95: 28120.48592 | X95: 0 | Y95: 28120.48592 | Z95: 0 | AA95: 24699.24986 | AB95: 8732.980535 | AC95: 0 | AD95: 33432.23039 | AE95: 0 | AF95: 0 | AG95: 2340.767186 | AH95: 0 | AI95: 4838.286926 | AJ95: 0 | AK95: 4838.286926 | AL95: 8428.691844 | AM95: 29530.63325 | AN95: 107078.4 | AO95: 42296.39117 | AP95: 17597.28348 | AQ95: 15847.51773 | AR95: 19085 | AS95: 34932.51773 | AT95: 66295.53827 | AU95: 0 | AV95: 0 | AW95: 0 | AX95: 66295.53827 | AY95: 23000 | AZ95: 0 | BA95: 0 | BB95: 0 | BC95: 0 | BD95: 0 | BE95: 126845 | BF95: 14140844.38 | BG95: 450706.8418 | BH95: 0 | BI95: 450706.8418 | BJ95: 475207.877 | BK95: 0 | BL95: 475207.877 | BM95: 0 | BN95: 145713.4719 | BQ95: 0 | BR95: 194973.3368 | BS95: 0 | BT95: 194973.3368 | BU95: 0 | BV95: 0 | BW95: 351085.8056 | BX95: 0 | BY95: 58884.335 | BZ95: 0 | CA95: 0 | CB95: 409970.1406 | CC95: 0 | CD95: 0 | CE95: 0 | CF95: 15817416.04 | CG95: 11097971.17 | CH95: 3042873.204 | CI95: 1676571.668 | CJ95: 0 | CK95: 1676571.668
A96: 594 | B96: Namayingo District | C96: 0 | D96: 0 | E96: 506291.459 | F96: 67727.15846 | G96: 125193.6042 | H96: 766823.2752 | I96: 0 | J96: 77191.20158 | K96: 0 | L96: 4466568.78 | M96: 576616.5684 | N96: 1042006.282 | O96: 14763.51912 | P96: 24523.2 | Q96: 446449.9944 | R96: 89372.22394 | S96: 0 | T96: 25033.4668 | U96: 527264.9766 | V96: 10097.8288 | W96: 28120.48592 | X96: 0 | Y96: 28120.48592 | Z96: 0 | AA96: 29618.76275 | AB96: 6043.820121 | AC96: 0 | AD96: 35662.58287 | AE96: 0 | AF96: 0 | AG96: 2557.971061 | AH96: 0 | AI96: 5207.133894 | AJ96: 0 | AK96: 5207.133894 | AL96: 9210.804879 | AM96: 19108.18255 | AN96: 116812.8 | AO96: 50640 | AP96: 19230.16615 | AQ96: 15331.72147 | AR96: 11677 | AS96: 27008.72147 | AT96: 104852.624 | AU96: 0 | AV96: 0 | AW96: 0 | AX96: 104852.624 | AY96: 23000 | AZ96: 1143940.442 | BA96: 0 | BB96: 0 | BC96: 0 | BD96: 0 | BE96: 112595 | BF96: 10463870.45 | BG96: 483341.2551 | BH96: 0 | BI96: 483341.2551 | BJ96: 502319.9073 | BK96: 0 | BL96: 502319.9073 | BM96: 0 | BN96: 177475.4044 | BQ96: 0 | BR96: 63317.78336 | BS96: 0 | BT96: 63317.78336 | BU96: 0 | BV96: 0 | BW96: 351085.8056 | BX96: 272000 | BY96: 0 | BZ96: 0 | CA96: 0 | CB96: 623085.8056 | CC96: 0 | CD96: 0 | CE96: 0 | CF96: 12313410.61 | CG96: 7245903.029 | CH96: 3217967.424 | CI96: 1849540.156 | CJ96: 0 | CK96: 1849540.156
A97: 595 | B97: Ntoroko District | C97: 0 | D97: 0 | E97: 210190.0933 | F97: 193833.8337 | G97: 500774.4168 | H97: 726731.5086 | I97: 0 | J97: 0 | K97: 0 | L97: 1825724.307 | M97: 216319.9801 | N97: 811460.7246 | O97: 29021.63808 | P97: 24523.2 | Q97: 130656.114 | R97: 54895.5285 | S97: 0 | T97: 9903.427328 | U97: 165382.7496 | V97: 6193.598975 | W97: 28120.48592 | X97: 0 | Y97: 28120.48592 | Z97: 0 | AA97: 14726.32984 | AB97: 2886.093878 | AC97: 0 | AD97: 17612.42371 | AE97: 0 | AF97: 0 | AG97: 1568.955788 | AH97: 0 | AI97: 4435.060962 | AJ97: 0 | AK97: 4435.060962 | AL97: 5649.534451 | AM97: 12647.49221 | AN97: 121680 | AO97: 41329.37352 | AP97: 11795.00462 | AQ97: 9271.115409 | AR97: 6529 | AS97: 15800.11541 | AT97: 29444.63307 | AU97: 0 | AV97: 0 | AW97: 0 | AX97: 29444.63307 | AY97: 23000 | AZ97: 729655.5194 | BA97: 0 | BB97: 0 | BC97: 0 | BD97: 0 | BE97: 155345 | BF97: 6103694.72 | BG97: 210108.1878 | BH97: 0 | BI97: 210108.1878 | BJ97: 328999.546 | BK97: 0 | BL97: 328999.546 | BM97: 0 | BN97: 138876.0508 | BQ97: 0 | BR97: 119391.398 | BS97: 0 | BT97: 119391.398 | BU97: 0 | BV97: 0 | BW97: 210651.8997 | BX97: 272000 | BY97: 0 | BZ97: 0 | CA97: 0 | CB97: 482651.8997 | CC97: 0 | CD97: 0 | CE97: 0 | CF97: 7383721.802 | CG97: 4411580.775 | CH97: 1692113.944 | CI97: 1280027.082 | CJ97: 0 | CK97: 1280027.082
A98: 596 | B98: Serere District | C98: 0 | D98: 0 | E98: 490353.946 | F98: 95796.77657 | G98: 250387.2084 | H98: 886918.3333 | I98: 15856.76393 | J98: 98494.17658 | K98: 210916.0288 | L98: 7099477.951 | M98: 1406643.748 | N98: 1617986.848 | O98: 28264.51824 | P98: 24523.2 | Q98: 662254.4109 | R98: 96579.7656 | S98: 0 | T98: 35363.79839 | U98: 1083983.596 | V98: 4306.339982 | W98: 28121.06798 | X98: 61381.45608 | Y98: 89502.52406 | Z98: 18000 | AA98: 27273.86173 | AB98: 9588.622484 | AC98: 20300.73486 | AD98: 57163.21907 | AE98: 0 | AF98: 0 | AG98: 1090.877383 | AH98: 100000 | AI98: 5254.04689 | AJ98: 56516.58222 | AK98: 61770.62911 | AL98: 3928.058013 | AM98: 27379.48677 | AN98: 131414.4 | AO98: 48675.8272 | AP98: 8200.934579 | AQ98: 17008.05932 | AR98: 21220 | AS98: 38228.05932 | AT98: 98179.59997 | AU98: 0 | AV98: 0 | AW98: 27542.96106 | AX98: 125722.561 | AY98: 0 | AZ98: 0 | BA98: 165776.3333 | BB98: 0 | BC98: 0 | BD98: 0 | BE98: 155345 | BF98: 15140305.32 | BG98: 317290.718 | BH98: 357281.717 | BI98: 674572.435 | BJ98: 644723.759 | BK98: 34502.67385 | BL98: 679226.4329 | BM98: 395496 | BN98: 168228.3375 | BQ98: 0 | BR98: 99719.65481 | BS98: 175363.6723 | BT98: 275083.3271 | BU98: 196460.102 | BV98: 0 | BW98: 140433.9059 | BX98: 0 | BY98: 0 | BZ98: 0 | CA98: 141696.7305 | CB98: 282130.6365 | CC98: 403776.7985 | CD98: 140450.2148 | CE98: 544227.0133 | CF98: 18355729.6 | CG98: 11811877.24 | CH98: 3328428.084 | CI98: 3018964.182 | CJ98: 196460.102 | CK98: 3215424.284
A99: 597 | B99: Kyankwanzi District | C99: 0 | D99: 0 | E99: 438779.258 | F99: 97868.48075 | G99: 250387.2084 | H99: 835397.6955 | I99: 0 | J99: 0 | K99: 0 | L99: 5485345.045 | M99: 1029910.646 | N99: 1451045.512 | O99: 14023.2024 | P99: 24523.2 | Q99: 398423.0307 | R99: 83799.00304 | S99: 0 | T99: 43822.46532 | U99: 331151.5676 | V99: 8731.496009 | W99: 28120.48592 | X99: 0 | Y99: 28120.48592 | Z99: 0 | AA99: 24946.59136 | AB99: 7069.232299 | AC99: 0 | AD99: 32015.82365 | AE99: 0 | AF99: 0 | AG99: 2211.853118 | AH99: 0 | AI99: 5620.548857 | AJ99: 0 | AK99: 5620.548857 | AL99: 7964.49491 | AM99: 23685.57127 | AN99: 126547.2 | AO99: 59673.52132 | AP99: 16628.1408 | AQ99: 19200.19342 | AR99: 21471 | AS99: 40671.19342 | AT99: 62681.3593 | AU99: 0 | AV99: 0 | AW99: 0 | AX99: 62681.3593 | AY99: 23000 | AZ99: 0 | BA99: 0 | BB99: 0 | BC99: 0 | BD99: 0 | BE99: 141095 | BF99: 11063123 | BG99: 319464.7727 | BH99: 0 | BI99: 319464.7727 | BJ99: 502319.9073 | BK99: 0 | BL99: 502319.9073 | BM99: 0 | BN99: 168127.6028 | BQ99: 0 | BR99: 59360.4219 | BS99: 0 | BT99: 59360.4219 | BU99: 0 | BV99: 0 | BW99: 210651.8997 | BX99: 0 | BY99: 0 | BZ99: 0 | CA99: 0 | CB99: 210651.8997 | CC99: 0 | CD99: 0 | CE99: 0 | CF99: 12323047.61 | CG99: 9358274.71 | CH99: 1704848.294 | CI99: 1259924.604 | CJ99: 0 | CK99: 1259924.604
A100: 598 | B100: Kalungu District | C100: 0 | D100: 0 | E100: 367593.9042 | F100: 104286.2453 | G100: 250387.2084 | H100: 677868.1341 | I100: 0 | J100: 0 | K100: 159085.0239 | L100: 6419346.547 | M100: 1467639.688 | N100: 1333344.617 | O100: 12868.9782 | P100: 24523.2 | Q100: 507921.8418 | R100: 86614.11605 | S100: 0 | T100: 267123.9905 | U100: 1484319.127 | V100: 7692.910264 | W100: 28120.48592 | X100: 0 | Y100: 28120.48592 | Z100: 0 | AA100: 24115.32299 | AB100: 8739.771344 | AC100: 0 | AD100: 32855.09433 | AE100: 0 | AF100: 0 | AG100: 1948.759702 | AH100: 0 | AI100: 5012.301911 | AJ100: 0 | AK100: 5012.301911 | AL100: 7017.141688 | AM100: 29486.91326 | AN100: 111945.6 | AO100: 50227.04264 | AP100: 14650.2724 | AQ100: 15976.4668 | AR100: 17579 | AS100: 33555.4668 | AT100: 35643.545 | AU100: 0 | AV100: 0 | AW100: 0 | AX100: 35643.545 | AY100: 23000 | AZ100: 0 | BA100: 0 | BB100: 0 | BC100: 0 | BD100: 201979.1818 | BE100: 98345 | BF100: 13844402.34 | BG100: 256208.0527 | BH100: 0 | BI100: 256208.0527 | BJ100: 328999.546 | BK100: 0 | BL100: 328999.546 | BM100: 149647 | BN100: 112718.5302 | BQ100: 0 | BR100: 47785.13963 | BS100: 0 | BT100: 47785.13963 | BU100: 0 | BV100: 0 | BW100: 280868.811 | BX100: 0 | BY100: 0 | BZ100: 0 | CA100: 0 | CB100: 280868.811 | CC100: 0 | CD100: 0 | CE100: 0 | CF100: =BF100+CK100 -> 15020629.42 | CG100: 10555354 | CH100: 3289048.34 | CI100: 1176227.08 | CJ100: 0 | CK100: 1176227.08
A101: 599 | B101: Lwengo District | C101: 0 | D101: 0 | E101: 540657.4176 | F101: 89307.80354 | G101: 250387.2084 | H101: 746073.8037 | I101: 0 | J101: 0 | K101: 0 | L101: 7675309.714 | M101: 1169088.81 | N101: 1433213.837 | O101: 39131.10456 | P101: 24523.2 | Q101: 677563.4301 | R101: 111361.0067 | S101: 0 | T101: 73553.85487 | U101: 1688861.876 | V101: 11044.44396 | W101: 28120.48592 | X101: 0 | Y101: 28120.48592 | Z101: 16000 | AA101: 27381.32272 | AB101: 10838.13136 | AC101: 0 | AD101: 38219.45409 | AE101: 0 | AF101: 0 | AG101: 2797.766591 | AH101: 0 | AI101: 4591.433948 | AJ101: 0 | AK101: 4591.433948 | AL101: 10074.2665 | AM101: 33275.42227 | AN101: 121680 | AO101: 73535.26323 | AP101: 21032.88704 | AQ101: 21392.32753 | AR101: 25866 | AS101: 47258.32753 | AT101: 60655.4956 | AU101: 8200 | AV101: 0 | AW101: 0 | AX101: 68855.4956 | AY101: 23000 | AZ101: 0 | BA101: 0 | BB101: 0 | BC101: 0 | BD101: 0 | BE101: 126845 | BF101: 15145363.31 | BG101: 370447.3588 | BH101: 0 | BI101: 370447.3588 | BJ101: 455373.4951 | BK101: 0 | BL101: 455373.4951 | BM101: 0 | BN101: 141900.0262 | BQ101: 0 | BR101: 61438.03666 | BS101: 0 | BT101: 61438.03666 | BU101: 0 | BV101: 0 | BW101: 280868.811 | BX101: 272000 | BY101: 0 | BZ101: 0 | CA101: 0 | CB101: 552868.811 | CC101: 0 | CD101: 0 | CE101: 0 | CF101: 16727391.04 | CG101: 11586252.68 | CH101: 3559110.636 | CI101: 1582027.728 | CJ101: 0 | CK101: 1582027.728
A102: 600 | B102: Bukomansimbi District | C102: 0 | D102: 0 | E102: 328696.4443 | F102: 44790.83202 | G102: 125193.6042 | H102: 677868.1341 | I102: 0 | J102: 0 | K102: 0 | L102: 4187992.825 | M102: 1066210.983 | N102: 748417.5628 | O102: 14982.0144 | P102: 24523.2 | Q102: 392022.3596 | R102: 74240.67131 | S102: 0 | T102: 48968.23477 | U102: 934757.7516 | V102: 6134.623626 | W102: 28121.06798 | X102: 0 | Y102: 28121.06798 | Z102: 0 | AA102: 17258.70074 | AB102: 6274.707631 | AC102: 0 | AD102: 23533.40837 | AE102: 0 | AF102: 0 | AG102: 1554.016217 | AH102: 0 | AI102: 4426.211962 | AJ102: 0 | AK102: 4426.211962 | AL102: 5595.739675 | AM102: 21420.70434 | AN102: 136281.6 | AO102: 53040 | AP102: 11682.69278 | AQ102: 13913.28175 | AR102: 11928 | AS102: 25841.28175 | AT102: 28292.23455 | AU102: 0 | AV102: 0 | AW102: 0 | AX102: 28292.23455 | AY102: 23000 | AZ102: 0 | BA102: 0 | BB102: 0 | BC102: 0 | BD102: 0 | BE102: 84095 | BF102: 9121683.198 | BG102: 202164.8764 | BH102: 0 | BI102: 202164.8764 | BJ102: 329000.4494 | BK102: 0 | BL102: 329000.4494 | BM102: 0 | BN102: 87046.0812 | BQ102: 0 | BR102: 40958.69111 | BS102: 0 | BT102: 40958.69111 | BU102: 0 | BV102: 0 | BW102: 280868.811 | BX102: 0 | BY102: 0 | BZ102: 0 | CA102: 0 | CB102: 280868.811 | CC102: 0 | CD102: 0 | CE102: 0 | CF102: 10061722.11 | CG102: 7065564.924 | CH102: 2056118.275 | CI102: 940038.9092 | CJ102: 0 | CK102: 940038.9092
A103: 601 | B103: Mitooma District | C103: 0 | D103: 0 | E103: 444428.5017 | F103: 84128.54309 | G103: 250387.2084 | H103: 1130229.899 | I103: 0 | J103: 0 | K103: 315910.8982 | L103: 6244517.847 | M103: 1809050.309 | N103: 1028264.698 | O103: 14982.0144 | P103: 24523.2 | Q103: 437431.7317 | R103: 86269.57801 | S103: 0 | T103: 18164.96364 | U103: 1413580.058 | V103: 11351.23867 | W103: 28120.48592 | X103: 0 | Y103: 28120.48592 | Z103: 0 | AA103: 23829.20573 | AB103: 10138.67802 | AC103: 0 | AD103: 33967.88375 | AE103: 0 | AF103: 0 | AG103: 16708.33652 | AH103: 0 | AI103: 6578.339773 | AJ103: 0 | AK103: 6578.339773 | AL103: 10354.11143 | AM103: 30177.41379 | AN103: 141148.8 | AO103: 93409.37352 | AP103: 21617.14265 | AQ103: 18426.49903 | AR103: 22350 | AS103: 40776.49903 | AT103: 38434.85895 | AU103: 0 | AV103: 0 | AW103: 0 | AX103: 38434.85895 | AY103: 23000 | AZ103: 0 | BA103: 0 | BB103: 0 | BC103: 219658.6682 | BD103: 0 | BE103: 183845 | BF103: 14201017.6 | BG103: 255471.421 | BH103: 0 | BI103: 255471.421 | BJ103: 371636.9802 | BK103: 0 | BL103: 371636.9802 | BM103: 0 | BN103: 169266.7559 | BQ103: 0 | BR103: 73788.77771 | BS103: 0 | BT103: 73788.77771 | BU103: 0 | BV103: 0 | BW103: 210651.8997 | BX103: 0 | BY103: 0 | BZ103: 0 | CA103: 0 | CB103: 210651.8997 | CC103: 0 | CD103: 0 | CE103: 0 | CF103: 15281833.44 | CG103: 11142859.87 | CH103: 3058157.728 | CI103: 1080815.834 | CJ103: 0 | CK103: 1080815.834
A104: 602 | B104: Rubirizi District | C104: 0 | D104: 0 | E104: 324772.3272 | F104: 87650.44019 | G104: 250387.2084 | H104: 1134592.527 | I104: 0 | J104: 0 | K104: 0 | L104: 3043535.279 | M104: 546702.0557 | N104: 800237.1293 | O104: 14982.0144 | P104: 24523.2 | Q104: 239358.659 | R104: 57513.05182 | S104: 0 | T104: 17931.97672 | U104: 593207.5635 | V104: 9169.60332 | W104: 28120.48592 | X104: 0 | Y104: 28120.48592 | Z104: 20000 | AA104: 16296.72142 | AB104: 4807.89286 | AC104: 0 | AD104: 21104.61428 | AE104: 0 | AF104: 0 | AG104: 15002.94926 | AH104: 0 | AI104: 5184.279896 | AJ104: 0 | AK104: 5184.279896 | AL104: 8364.117546 | AM104: 15951.27521 | AN104: 141148.8 | AO104: 60642.30588 | AP104: 17462.46633 | AQ104: 11721.14765 | AR104: 12807 | AS104: 24528.14765 | AT104: 31972.43648 | AU104: 0 | AV104: 0 | AW104: 0 | AX104: 31972.43648 | AY104: 23000 | AZ104: 0 | BA104: 0 | BB104: 0 | BC104: 0 | BD104: 0 | BE104: 169595 | BF104: 7726639.915 | BG104: 192089.213 | BH104: 0 | BI104: 192089.213 | BJ104: 502319.907 | BK104: 0 | BL104: 502319.907 | BM104: 0 | BN104: 149680.4275 | BQ104: 0 | BR104: 75858.29368 | BS104: 0 | BT104: 75858.29368 | BU104: 0 | BV104: 0 | BW104: 210651.8997 | BX104: 272000 | BY104: 0 | BZ104: 0 | CA104: 0 | CB104: 482651.8997 | CC104: 0 | CD104: 0 | CE104: 0 | CF104: 9129239.656 | CG104: 6125703.215 | CH104: 1600936.7 | CI104: 1402599.741 | CJ104: 0 | CK104: 1402599.741
A105: 603 | B105: Ngora District | C105: 0 | D105: 0 | E105: 337092.9238 | F105: 68201.08922 | G105: 125193.6042 | H105: 1090126.916 | I105: 0 | J105: 0 | K105: 370592.7893 | L105: 3945679.688 | M105: 1167164.189 | N105: 1159945.666 | O105: 14260.2024 | P105: 24523.2 | Q105: 370376.9037 | R105: 61997.57321 | S105: 0 | T105: 473402.4129 | U105: 704146.3628 | V105: 6981.516167 | W105: 28120.48592 | X105: 8008.211936 | Y105: 36128.69786 | Z105: 0 | AA105: 20385.75929 | AB105: 6824.763171 | AC105: 15565.66951 | AD105: 42776.19198 | AE105: 0 | AF105: 0 | AG105: 1768.550119 | AH105: 0 | AI105: 5529.095865 | AJ105: 15253.73725 | AK105: 20782.83311 | AL105: 6368.238606 | AM105: 22222.80193 | AN105: 107078.4 | AO105: 34192.93235 | AP105: 13295.50328 | AQ105: 11850.09671 | AR105: 10547 | AS105: 22397.09671 | AT105: 47077.58266 | AU105: 0 | AV105: 0 | AW105: 38134.34311 | AX105: 85211.92577 | AY105: 0 | AZ105: 0 | BA105: 0 | BB105: 0 | BC105: 0 | BD105: 421631.6029 | BE105: 84095 | BF105: 10817634.81 | BG105: 245994.1881 | BH105: 236082.5234 | BI105: 482076.7115 | BJ105: 351026.5263 | BK105: 99149.29288 | BL105: 450175.8192 | BM105: 0 | BN105: 178036.6026 | BQ105: 0 | BR105: 70527.40948 | BS105: 152537.374 | BT105: 223064.7835 | BU105: 69292.53947 | BV105: 0 | BW105: 175542.8612 | BX105: 0 | BY105: 0 | BZ105: 0 | CA105: 99149.29288 | CB105: 274692.1541 | CC105: 403776.7985 | CD105: 114403.0309 | CE105: 518179.8294 | CF105: 13013153.25 | CG105: 8088659.655 | CH105: 2728975.156 | CI105: 2126225.9 | CJ105: 69292.53947 | CK105: 2195518.44
A106: 604 | B106: Napak District | C106: 0 | D106: 0 | E106: 384742.5493 | F106: 46033.85453 | G106: 125193.6042 | H106: 1063190.179 | I106: 16429.70822 | J106: 53097.02353 | K106: 310133.0589 | L106: 2300758.938 | M106: 234239.0105 | N106: 1176051.858 | O106: 33722.23824 | P106: 24523.2 | Q106: 163555.1573 | R106: 91595.03702 | S106: 0 | T106: 606819.9247 | U106: 187643.7246 | V106: 10256.24058 | W106: 28121.06798 | X106: 55085.92212 | Y106: 83206.9901 | Z106: 0 | AA106: 24990.9834 | AB106: 3178.09867 | AC106: 30519.67717 | AD106: 58688.75923 | AE106: 0 | AF106: 0 | AG106: 2598.099762 | AH106: 0 | AI106: 5541.732864 | AJ106: 62955.33957 | AK106: 68497.07244 | AL106: 9355.301291 | AM106: 12510.29078 | AN106: 116812.8 | AO106: 42444.66176 | AP106: 19531.84337 | AQ106: 8110.573823 | AR106: 5399 | AS106: 13509.57382 | AT106: 103827.0809 | AU106: 0 | AV106: 0 | AW106: 76333.34923 | AX106: 180160.4302 | AY106: 23000 | AZ106: 447669.0487 | BA106: 0 | BB106: 0 | BC106: 0 | BD106: 0 | BE106: 126845 | BF106: 8032815.178 | BG106: 458374.5583 | BH106: 157388.3489 | BI106: 615762.9072 | BJ106: 359347.341 | BK106: 254497.7472 | BL106: 613845.0881 | BM106: 0 | BN106: 167262.5576 | BQ106: 0 | BR106: 75509.48538 | BS106: 589888.384 | BT106: 665397.8694 | BU106: 0 | BV106: 0 | BW106: 140433.9059 | BX106: 0 | BY106: 0 | BZ106: 0 | CA106: 175922.4009 | CB106: 316356.3068 | CC106: 0 | CD106: 123392.6891 | CE106: 123392.6891 | CF106: 10534832.6 | CG106: 5511469.886 | CH106: 2521345.291 | CI106: 2502017.418 | CJ106: 0 | CK106: 2502017.418
A107: 605 | B107: Kibuku District | C107: 0 | D107: 0 | E107: 360742.2883 | F107: 43962.15035 | G107: 125193.6042 | H107: 848349.4528 | I107: 0 | J107: 0 | K107: 0 | L107: 5856232.981 | M107: 684186.8849 | N107: 1014359.763 | O107: 28001.89683 | P107: 24523.2 | Q107: 393405.7454 | R107: 78418.76374 | S107: 0 | T107: 28720.3712 | U107: 1057455.376 | V107: 9949.3604 | W107: 28120.48592 | X107: 0 | Y107: 28120.48592 | Z107: 0 | AA107: 18719.5433 | AB107: 5649.953192 | AC107: 16323.1573 | AD107: 40692.65379 | AE107: 0 | AF107: 0 | AG107: 14047.73873 | AH107: 0 | AI107: 5442.774873 | AJ107: 62955.33957 | AK107: 68398.11444 | AL107: 9075.378397 | AM107: 21874.98499 | AN107: 92476.8 | AO107: 31106.35366 | AP107: 18947.42498 | AQ107: 10302.70793 | AR107: 13937 | AS107: 24239.70793 | AT107: 52985.66195 | AU107: 0 | AV107: 0 | AW107: 15738.83489 | AX107: 68724.49685 | AY107: 0 | AZ107: 0 | BA107: 0 | BB107: 0 | BC107: 0 | BD107: 0 | BE107: 155345 | BF107: 11126550.98 | BG107: 288209.6086 | BH107: 188551.2428 | BI107: 476760.8514 | BJ107: 495528.9306 | BK107: 78694.17446 | BL107: 574223.105 | BM107: 0 | BN107: 166310.1765 | BQ107: 0 | BR107: 75346.32332 | BS107: 55085.92212 | BT107: 130432.2454 | BU107: 84859.14808 | BV107: 0 | BW107: 210651.8997 | BX107: 0 | BY107: 0 | BZ107: 0 | CA107: 383070.3591 | CB107: 593722.2588 | CC107: 0 | CD107: 15738.83489 | CE107: 15738.83489 | CF107: 13168597.6 | CG107: 8828669.583 | CH107: 2297881.395 | CI107: 1957187.472 | CJ107: 84859.14808 | CK107: 2042046.62
A108: 606 | B108: Nwoya District | C108: 0 | D108: 0 | E108: 245510.9772 | F108: 52041.79664 | G108: 125193.6042 | H108: 677868.1341 | I108: 14010.61008 | J108: 14597.67112 | K108: 0 | L108: 2880489.679 | M108: 581204.0697 | N108: 1525245.461 | O108: 14982.0144 | P108: 24523.2 | Q108: 259860.495 | R108: 36873.55944 | S108: 131170.9935 | T108: 24150.62769 | U108: 263838.5036 | V108: 5449.499312 | W108: 28120.48592 | X108: 7919.05301 | Y108: 36039.53893 | Z108: 0 | AA108: 23557.86959 | AB108: 4291.791367 | AC108: 27225.98534 | AD108: 55075.6463 | AE108: 0 | AF108: 0 | AG108: 1380.461267 | AH108: 0 | AI108: 5807.797841 | AJ108: 11017.18442 | AK108: 16824.98227 | AL108: 4970.798759 | AM108: 15803.79816 | AN108: 107078.4 | AO108: 24430.57647 | AP108: 10377.95147 | AQ108: 10173.75887 | AR108: 6655 | AS108: 16828.75887 | AT108: 56346.68581 | AU108: 0 | AV108: 7200 | AW108: 55872.86387 | AX108: 119419.5497 | AY108: 23000 | AZ108: 551872.4981 | BA108: 0 | BB108: 0 | BC108: 0 | BD108: 0 | BE108: 84095 | BF108: 7944208.856 | BG108: 207501.5434 | BH108: 81841.94144 | BI108: 289343.4848 | BJ108: 248001.1003 | BK108: 64686.61141 | BL108: 312687.7117 | BM108: 178151 | BN108: 124278.5459 | BQ108: 0 | BR108: 72152.4046 | BS108: 236082.5234 | BT108: 308234.928 | BU108: 0 | BV108: 0 | BW108: 140433.9059 | BX108: 0 | BY108: 0 | BZ108: 0 | CA108: 481608.3477 | CB108: 622042.2536 | CC108: 403776.7985 | CD108: 395044.7558 | CE108: 798821.5543 | CF108: 10577768.33 | CG108: 6020679.562 | CH108: 1923529.294 | CI108: 2633559.478 | CJ108: 0 | CK108: 2633559.478
A109: 607 | B109: Kole District | C109: 0 | D109: 0 | E109: 448403.2412 | F109: 38782.88991 | G109: 125193.6042 | H109: 933104.3949 | I109: 13183.02387 | J109: 71993.789 | K109: 289805.9361 | L109: 7881483.79 | M109: 1249834.942 | N109: 2452989.38 | O109: 11833.26312 | P109: 24523.2 | Q109: 525534.6518 | R109: 105530.7023 | S109: 0 | T109: 9924.426149 | U109: 629871.32 | V109: 9064.823406 | W109: 28120.48592 | X109: 38481.45131 | Y109: 66601.93724 | Z109: 0 | AA109: 22495.32131 | AB109: 9615.785721 | AC109: 22283.0537 | AD109: 54394.16074 | AE109: 0 | AF109: 0 | AG109: 2296.291254 | AH109: 0 | AI109: 9787.646491 | AJ109: 19384.02932 | AK109: 29171.67581 | AL109: 8268.541817 | AM109: 25873.81418 | AN109: 116812.8 | AO109: 82560 | AP109: 17262.9249 | AQ109: 12365.89297 | AR109: 11928 | AS109: 24293.89297 | AT109: 69200.80664 | AU109: 0 | AV109: 0 | AW109: 29076.04398 | AX109: 98276.85062 | AY109: 0 | AZ109: 0 | BA109: 0 | BB109: 0 | BC109: 0 | BD109: 0 | BE109: 98345 | BF109: 15445215.27 | BG109: 356107.3885 | BH109: 142685.1978 | BI109: 498792.5864 | BJ109: 432830.627 | BK109: 135690.5661 | BL109: 568521.1931 | BM109: 0 | BN109: 179903.3792 | BQ109: 0 | BR109: 50251.47426 | BS109: 210182.0648 | BT109: 260433.539 | BU109: 146476.7186 | BV109: 0 | BW109: 175542.8612 | BX109: 0 | BY109: 0 | BZ109: 0 | CA109: 380679.7119 | CB109: 556222.573 | CC109: 403776.7985 | CD109: 135690.5661 | CE109: 539467.3645 | CF109: 18195032.62 | CG109: 13183926.31 | CH109: 2261288.957 | CI109: 2603340.635 | CJ109: 146476.7186 | CK109: 2749817.354
A110: 608 | B110: Butambala District | C110: 0 | D110: 0 | E110: 243924.0677 | F110: 59085.59084 | G110: 125193.6042 | H110: 711964.3979 | I110: 0 | J110: 0 | K110: 463399.5967 | L110: 3805708.98 | M110: 2601121.663 | N110: 1443190.034 | O110: 28549.77216 | P110: 24523.2 | Q110: 264492.3296 | R110: 35490.93943 | S110: 131633.602 | T110: 25211.56814 | U110: 1307620.807 | V110: 5752.923931 | W110: 28121.06798 | X110: 0 | Y110: 28121.06798 | Z110: 0 | AA110: 19559.29905 | AB110: 8033.527195 | AC110: 0 | AD110: 27592.82625 | AE110: 0 | AF110: 0 | AG110: 1457.324463 | AH110: 0 | AI110: 4397.875965 | AJ110: 0 | AK110: 4397.875965 | AL110: 5247.569639 | AM110: 26028.71014 | AN110: 111945.6 | AO110: 28949.9875 | AP110: 10955.78914 | AQ110: 13268.53643 | AR110: 13812 | AS110: 27080.53643 | AT110: 20880.80734 | AU110: 0 | AV110: 0 | AW110: 0 | AX110: 20880.80734 | AY110: 23000 | AZ110: 0 | BA110: 0 | BB110: 0 | BC110: 229198.6682 | BD110: 0 | BE110: 98345 | BF110: 11920064.84 | BG110: 139777.8753 | BH110: 0 | BI110: 139777.8753 | BJ110: 328999.546 | BK110: 0 | BL110: 328999.546 | BM110: 267227 | BN110: 83069.19666 | BQ110: 0 | BR110: 100688.4671 | BS110: 0 | BT110: 100688.4671 | BU110: 0 | BV110: 0 | BW110: 210651.8997 | BX110: 272000 | BY110: 0 | BZ110: 0 | CA110: 0 | CB110: 482651.8997 | CC110: 0 | CD110: 0 | CE110: 0 | CF110: 13322478.83 | CG110: 9413941.849 | CH110: 2506122.992 | CI110: 1402413.985 | CJ110: 0 | CK110: 1402413.985
A111: 609 | B111: Sheema District | C111: 0 | D111: 0 | E111: 579415.7579 | F111: 208694.8711 | G111: 375580.8126 | H111: 1270401.489 | I111: 0 | J111: 0 | K111: 303975.5982 | L111: 8021083.385 | M111: 3164435.157 | N111: 1929327.115 | O111: 27328.36224 | P111: 24523.2 | Q111: 514988.4399 | R111: 102701.8786 | S111: 131633.994 | T111: 17706.98934 | U111: 1631441.398 | V111: 11571.60565 | W111: 28120.48592 | X111: 0 | Y111: 28120.48592 | Z111: 0 | AA111: 31082.25011 | AB111: 13676.68958 | AC111: 0 | AD111: 44758.93969 | AE111: 0 | AF111: 0 | AG111: 15611.42189 | AH111: 0 | AI111: 5125.729901 | AJ111: 0 | AK111: 5125.729901 | AL111: 10555.12071 | AM111: 41016.26672 | AN111: 141148.8 | AO111: 94200 | AP111: 22036.80651 | AQ111: 21650.22566 | AR111: 21345 | AS111: 42995.22566 | AT111: 40587.1323 | AU111: 0 | AV111: 0 | AW111: 0 | AX111: 40587.1323 | AY111: 0 | AZ111: 0 | BA111: 0 | BB111: 0 | BC111: 476941.3366 | BD111: 0 | BE111: 169595 | BF111: 19447502.32 | BG111: 335746.8454 | BH111: 0 | BI111: 335746.8454 | BJ111: 356129.1629 | BK111: 0 | BL111: 356129.1629 | BM111: 132774.9184 | BN111: 171032.2332 | BQ111: 0 | BR111: 314016.855 | BS111: 0 | BT111: 314016.855 | BU111: 79237.1922 | BV111: 0 | BW111: 280868.811 | BX111: 0 | BY111: 0 | BZ111: 0 | CA111: 0 | CB111: 280868.811 | CC111: 0 | CD111: 0 | CE111: 0 | CF111: 21117308.34 | CG111: 15427398.92 | CH111: 4020103.401 | CI111: 1590568.826 | CJ111: 79237.1922 | CK111: 1669806.018
A112: 610 | B112: Buhweju District | C112: 0 | D112: 0 | E112: 401389.1941 | F112: 33603.62946 | G112: 125193.6042 | H112: 780156.9253 | I112: 0 | J112: 0 | K112: 0 | L112: 2753595.515 | M112: 463814.3637 | N112: 566483.6292 | O112: 42364.62936 | P112: 24523.2 | Q112: 203115.0621 | R112: 49296.90351 | S112: 0 | T112: 17706.98934 | U112: 238232.7845 | V112: 6937.866953 | W112: 28120.48592 | X112: 0 | Y112: 28120.48592 | Z112: 0 | AA112: 13545.57852 | AB112: 3972.623338 | AC112: 0 | AD112: 17518.20186 | AE112: 0 | AF112: 0 | AG112: 10979.22818 | AH112: 0 | AI112: 5923.822831 | AJ112: 0 | AK112: 5923.822831 | AL112: 6328.423671 | AM112: 14360.17553 | AN112: 121680 | AO112: 48074.11029 | AP112: 13212.37832 | AQ112: 11721.14765 | AR112: 11426 | AS112: 23147.14765 | AT112: 23762.30569 | AU112: 0 | AV112: 0 | AW112: 0 | AX112: 23762.30569 | AY112: 23000 | AZ112: 0 | BA112: 0 | BB112: 0 | BC112: 0 | BD112: 0 | BE112: 126845 | BF112: 6169365.577 | BG112: 150997.7192 | BH112: 0 | BI112: 150997.7192 | BJ112: 328999.5199 | BK112: 0 | BL112: 328999.5199 | BM112: 0 | BN112: 110861.4711 | BQ112: 0 | BR112: 96734.62009 | BS112: 0 | BT112: 96734.62009 | BU112: 0 | BV112: 0 | BW112: 210651.8997 | BX112: 0 | BY112: 0 | BZ112: 0 | CA112: 0 | CB112: 210651.8997 | CC112: 0 | CD112: 0 | CE112: 0 | CF112: 7067610.806 | CG112: 5004656.867 | CH112: 1164708.71 | CI112: 898245.2299 | CJ112: 0 | CK112: 898245.2299
A113: 611 | B113: Agago District | C113: 0 | D113: 0 | E113: 500084.1715 | F113: 186600.7418 | G113: 375580.8126 | H113: 848349.4528 | I113: 62212.20159 | J113: 93232.59841 | K113: 242790.9848 | L113: 6337519.854 | M113: 777173.0555 | N113: 1885558.728 | O113: 14127.06312 | P113: 24523.2 | Q113: 655368.9999 | R113: 123336.9339 | S113: 0 | T113: 550849.0661 | U113: 482281.4134 | V113: 17683.90449 | W113: 28120.48592 | X113: 14164.9514 | Y113: 42285.43733 | Z113: 0 | AA113: 33617.56801 | AB113: 9045.357754 | AC113: 35524.6167 | AD113: 78187.54247 | AE113: 0 | AF113: 0 | AG113: 4479.667546 | AH113: 0 | AI113: 6419.518787 | AJ113: 6295.533957 | AK113: 12715.05274 | AL113: 16130.49667 | AM113: 25335.38597 | AN113: 160617.6 | AO113: 140880 | AP113: 33676.98428 | AQ113: 18813.34623 | AR113: 15570 | AS113: 34383.34623 | AT113: 130733.5588 | AU113: 0 | AV113: 0 | AW113: 94433.00936 | AX113: 225166.5682 | AY113: 23000 | AZ113: 1879081.279 | BA113: 0 | BB113: 0 | BC113: 0 | BD113: 0 | BE113: 240845 | BF113: 16094057.54 | BG113: 633324.2388 | BH113: 215389.8902 | BI113: 848714.1291 | BJ113: 495529.0256 | BK113: 102302.4268 | BL113: 597831.4524 | BM113: 28249.99987 | BN113: 254095.8875 | BQ113: 0 | BR113: 80316.57428 | BS113: 535120.3864 | BT113: 615436.9606 | BU113: 0 | BV113: 0 | BW113: 140433.9059 | BX113: 0 | BY113: 0 | BZ113: 0 | CA113: 647088.0317 | CB113: 787521.9376 | CC113: 403776.7985 | CD113: 125911.9886 | CE113: 529688.7871 | CF113: 19755596.7 | CG113: 10907085.75 | CH113: 5186971.792 | CI113: 3661539.154 | CJ113: 0 | CK113: 3661539.154
A114: 612 | B114: Kween District | C114: 0 | D114: 0 | E114: 273200.7008 | F114: 35468.16322 | G114: 141612.1486 | H114: 1145510.544 | I114: 0 | J114: 0 | K114: 0 | L114: 2545640.365 | M114: 491474.6139 | N114: 1231102.658 | O114: 34067.80152 | P114: 24523.2 | Q114: 207284.8883 | R114: 50528.40368 | S114: 0 | T114: 14362.17708 | U114: 728779.4699 | V114: 7917.658235 | W114: 28121.06798 | X114: 0 | Y114: 28121.06798 | Z114: 0 | AA114: 14747.65431 | AB114: 4400.444313 | AC114: 13846.44825 | AD114: 32994.54688 | AE114: 0 | AF114: 0 | AG114: 2005.692614 | AH114: 0 | AI114: 5280.294887 | AJ114: 32126.13575 | AK114: 37406.43064 | AL114: 7222.147115 | AM114: 15158.95599 | AN114: 141148.8 | AO114: 83760 | AP114: 15078.27935 | AQ114: 9271.115409 | AR114: 10673 | AS114: 19944.11541 | AT114: 39998.40514 | AU114: 8200 | AV114: 0 | AW114: 7869.417446 | AX114: 56067.82258 | AY114: 23000 | AZ114: 0 | BA114: 0 | BB114: 0 | BC114: 0 | BD114: 0 | BE114: 183845 | BF114: 7577225.652 | BG114: 161573.1557 | BH114: 94433.00936 | BI114: 256006.1651 | BJ114: 449193.2525 | BK114: 102302.4268 | BL114: 551495.6793 | BM114: 0 | BN114: 181264.452 | BQ114: 0 | BR114: 90697.99612 | BS114: 141649.514 | BT114: 232347.5102 | BU114: 0 | BV114: 0 | BW114: 140433.9059 | BX114: 0 | BY114: 276339.569 | BZ114: 0 | CA114: 103360.0246 | CB114: 520133.4995 | CC114: 0 | CD114: 196735.4362 | CE114: 196735.4362 | CF114: 9515208.394 | CG114: 5938925.132 | CH114: 1638300.52 | CI114: 1937982.742 | CJ114: 0 | CK114: 1937982.742
A115: 751 | B115: Arua Municipal Council | C115: 0 | D115: 0 | E115: 0 | F115: 249196.494 | G115: 587634.8084 | H115: 0 | I115: 0 | J115: 0 | K115: 13629.57749 | L115: 2177069.804 | M115: 1380935.788 | N115: 433425.9687 | O115: 13771.26312 | P115: 0 | Q115: 146579.8286 | R115: 42342.63076 | S115: 0 | T115: 0 | U115: 434468.0128 | V115: 2599.947254 | W115: 5212.432197 | X115: 11568.04365 | Y115: 16780.47584 | AA115: 9986.935273 | AB115: 4291.791367 | AC115: 5896.417856 | AD115: 20175.1445 | AE115: 10698.54443 | AF115: 0 | AG115: 658.6158241 | AH115: 0 | AJ115: 5458.227941 | AK115: 5458.227941 | AL115: 2371.559999 | AM115: 0 | AN115: 34070.4 | AO115: 45120 | AP115: 4951.303758 | AQ115: 6563.185042 | AR115: 6906 | AS115: 13469.18504 | AU115: 0 | AV115: 0 | AW115: 0 | AX115: 0 | AZ115: 0 | BA115: 0 | BB115: 0 | BC115: 0 | BD115: 0 | BE115: 0 | BF115: 5635407.581 | BG115: 160132.0628 | BH115: 92528.99751 | BI115: 252661.0603 | BK115: 0 | BL115: 0 | BM115: 0 | BN115: 0 | BO115: 471442.211 | BP115: 3208363.984 | BQ115: 3679806.195 | BR115: 98415.32979 | BS115: 41341.19761 | BT115: 139756.5274 | BU115: 0 | BV115: 0 | BW115: 210651.8997 | BX115: 0 | BY115: 0 | BZ115: 0 | CA115: 43791.73421 | CB115: 254443.6339 | CC115: 0 | CD115: 94236.27392 | CE115: 94236.27392 | CF115: 10056311.27 | CG115: 4640537.61 | CH115: 994869.9708 | CI115: 741097.4955 | CJ115: 3679806.195 | CK115: 4420903.691
A116: 752 | B116: Entebbe Municipal Council | C116: 0 | D116: 0 | E116: 0 | F116: 386991.3187 | G116: 774420.3524 | H116: 0 | I116: 0 | J116: 0 | K116: 20867.21123 | L116: 1522796.697 | M116: 1261434.327 | N116: 1215125.337 | O116: 10912.80425 | P116: 0 | Q116: 79357.68057 | R116: 49862.81921 | S116: 0 | T116: 0 | U116: 390727.6453 | V116: 3157.307379 | W116: 5212.432197 | X116: 0 | Y116: 5212.432197 | AA116: 10925.75342 | AB116: 4217.092467 | AC116: 0 | AD116: 15142.84589 | AE116: 4788.834504 | AF116: 0 | AG116: 799.8056879 | AH116: 0 | AJ116: 0 | AK116: 0 | AL116: 2879.95992 | AM116: 0 | AN116: 34070.4 | AO116: 59760 | AP116: 6012.732708 | AQ116: 6434.235977 | AR116: 6529 | AS116: 12963.23598 | AU116: 0 | AV116: 0 | AW116: 0 | AX116: 0 | AZ116: 0 | BA116: 116000 | BB116: 0 | BC116: 0 | BD116: 0 | BE116: 0 | BF116: 5973283.746 | BG116: 233226.2484 | BH116: 0 | BI116: 233226.2484 | BK116: 0 | BL116: 0 | BM116: 0 | BN116: 0 | BO116: 471442.211 | BP116: 3331710.719 | BQ116: 3803152.93 | BR116: 69253.82555 | BS116: 0 | BT116: 69253.82555 | BU116: 0 | BV116: 0 | BW116: 210651.8997 | BX116: 0 | BY116: 0 | BZ116: 0 | CA116: 0 | CB116: 210651.8997 | CC116: 0 | CD116: 0 | CE116: 0 | CF116: 10289568.65 | CG116: 4839627.128 | CH116: 1133656.618 | CI116: 513131.9737 | CJ116: 3803152.93 | CK116: 4316284.904
A117: 753 | B117: Fort-Portal Municipal Council | C117: 0 | D117: 0 | E117: 0 | F117: 524985.5533 | G117: 643703.7968 | H117: 0 | I117: 0 | J117: 0 | K117: 139585.8224 | L117: 1567139.766 | M117: 1569200.275 | N117: 537720.0611 | O117: 13246.27512 | P117: 0 | Q117: 101078.7726 | R117: 40199.22877 | S117: 0 | T117: 0 | U117: 829688.1338 | V117: 2742.118294 | W117: 5212.432197 | X117: 0 | Y117: 5212.432197 | AA117: 11015.91402 | AB117: 4183.138421 | AC117: 0 | AD117: 15199.05244 | AE117: 88379.96972 | AF117: 0 | AG117: 694.6304383 | AH117: 0 | AJ117: 0 | AK117: 0 | AL117: 2501.242304 | AM117: 0 | AN117: 38937.6 | AO117: 71160 | AP117: 5222.052331 | AQ117: 6434.235977 | AR117: 5274 | AS117: 11708.23598 | AU117: 0 | AV117: 0 | AW117: 0 | AX117: 0 | AZ117: 0 | BA117: 74400 | BB117: 0 | BC117: 0 | BD117: 0 | BE117: 0 | BF117: 6282705.018 | BG117: 133938.2257 | BH117: 0 | BI117: 133938.2257 | BK117: 0 | BL117: 0 | BM117: 51909.37477 | BN117: 0 | BO117: 471442.211 | BP117: 2053104.456 | BQ117: 2524546.667 | BR117: 70260.32199 | BS117: 0 | BT117: 70260.32199 | BU117: 0 | BV117: 0 | BW117: 210651.8997 | BX117: 0 | BY117: 0 | BZ117: 0 | CA117: 0 | CB117: 210651.8997 | CC117: 0 | CD117: 0 | CE117: 0 | CF117: 9274011.507 | CG117: 4509533.596 | CH117: 1773171.422 | CI117: 466759.8222 | CJ117: 2524546.667 | CK117: 2991306.489
A118: 754 | B118: Gulu Municipal Council | C118: 0 | D118: 0 | E118: 0 | F118: 455214.7775 | G118: 654580.1627 | H118: 0 | I118: 0 | J118: 0 | K118: 168293.7221 | L118: 4138051.195 | M118: 1758478.648 | N118: 530165.8423 | O118: 10912.80425 | P118: 0 | Q118: 266533.4653 | R118: 53636.25857 | S118: 0 | T118: 0 | U118: 1041044.582 | V118: 6167.126288 | W118: 5212.432197 | X118: 0 | Y118: 5212.432197 | AA118: 15693.86419 | AB118: 8318.741178 | AC118: 9038.539605 | AD118: 33051.14498 | AE118: 39658.89883 | AF118: 0 | AG118: 1562.249756 | AH118: 0 | AJ118: 39347.08723 | AK118: 39347.08723 | AL118: 5625.387205 | AM118: 0 | AN118: 43804.8 | AO118: 95237.64412 | AP118: 11744.5904 | AQ118: 8497.421019 | AR118: 8538 | AS118: 17035.42102 | AU118: 0 | AV118: 0 | AW118: 39347.08723 | AX118: 39347.08723 | AZ118: 0 | BA118: 103200 | BB118: 0 | BC118: 0 | BD118: 0 | BE118: 0 | BF118: 9517905.328 | BG118: 374245.1554 | BH118: 136030.0213 | BI118: 510275.1766 | BK118: 0 | BL118: 0 | BM118: 52968.74976 | BN118: 0 | BO118: 471442.211 | BP118: 9943842.701 | BQ118: 10415284.91 | BR118: 58368.00591 | BS118: 92134.22346 | BT118: 150502.2294 | BU118: 0 | BV118: 0 | BW118: 140433.9059 | BX118: 0 | BY118: 0 | BZ118: 0 | CA118: 136030.0213 | CB118: 276463.9272 | CC118: 0 | CD118: 0 | CE118: 0 | CF118: 20923400.32 | CG118: 7304287.175 | CH118: 2213618.153 | CI118: 990210.0829 | CJ118: 10415284.91 | CK118: 11405494.99
A119: 755 | B119: Jinja Municipal Council | C119: 30000 | D119: 0 | E119: 0 | F119: 780171.867 | G119: 928666.0673 | H119: 0 | I119: 0 | J119: 0 | K119: 411274.2446 | L119: 2581217.373 | M119: 2072096.812 | N119: 1244201.963 | O119: 10912.80425 | P119: 0 | Q119: 138560.4746 | R119: 55935.76207 | S119: 0 | T119: 0 | U119: 368486.6754 | V119: 3906.396064 | W119: 5212.432197 | X119: 0 | Y119: 5212.432197 | AA119: 14826.96528 | AB119: 6193.217922 | AC119: 0 | AD119: 21020.1832 | AE119: 30825.39594 | AF119: 0 | AG119: 989.5640228 | AH119: 0 | AJ119: 0 | AK119: 0 | AL119: 3563.246383 | AM119: 0 | AN119: 38937.6 | AO119: 68640 | AP119: 7439.286888 | AQ119: 7078.981302 | AR119: 4646 | AS119: 11724.9813 | AU119: 0 | AV119: 0 | AW119: 0 | AX119: 0 | AZ119: 0 | BA119: 0 | BB119: 0 | BC119: 0 | BD119: 0 | BE119: 0 | BF119: 8813783.129 | BG119: 270554.8991 | BH119: 0 | BI119: 270554.8991 | BK119: 0 | BL119: 0 | BM119: 28249.99987 | BN119: 0 | BO119: 471442.211 | BP119: 3959372.423 | BQ119: 4430814.634 | BR119: 63317.78336 | BS119: 0 | BT119: 63317.78336 | BU119: 0 | BV119: 0 | BW119: 210651.8997 | BX119: 0 | BY119: 0 | BZ119: 0 | CA119: 0 | CB119: 210651.8997 | CC119: 0 | CD119: 0 | CE119: 0 | CF119: 13817372.35 | CG119: 7287306.864 | CH119: 1526476.265 | CI119: 572774.5821 | CJ119: 4430814.634 | CK119: 5003589.216
A120: 757 | B120: Kabale Municipal Council | C120: 0 | D120: 0 | E120: 0 | F120: 221732.6552 | G120: 652837.3964 | H120: 0 | I120: 0 | J120: 0 | K120: 665686.343 | L120: 2189371.983 | M120: 2135103.472 | N120: 427734.2652 | O120: 19570.46208 | P120: 0 | Q120: 103560.9186 | R120: 43481.73101 | S120: 0 | T120: 0 | U120: 315178.8587 | V120: 2692.47256 | W120: 5212.432197 | X120: 0 | Y120: 5212.432197 | AA120: 12327.37262 | AB120: 5914.794748 | AC120: 0 | AD120: 18242.16737 | AE120: 11396.448 | AF120: 0 | AG120: 682.0542347 | AH120: 0 | AJ120: 0 | AK120: 0 | AL120: 2455.957602 | AM120: 0 | AN120: 38937.6 | AO120: 72638.82206 | AP120: 5127.507679 | AQ120: 7465.828498 | AR120: 7785 | AS120: 15250.8285 | AU120: 0 | AV120: 0 | AW120: 0 | AX120: 0 | AZ120: 0 | BA120: 0 | BB120: 0 | BC120: 211266.6681 | BD120: 0 | BE120: 0 | BF120: 7158161.044 | BG120: 140063.0545 | BH120: 0 | BI120: 140063.0545 | BK120: 0 | BL120: 0 | BM120: 0 | BN120: 0 | BO120: 471442.211 | BP120: 1901076.683 | BQ120: 2372518.894 | BR120: 59360.4219 | BS120: 0 | BT120: 59360.4219 | BU120: 0 | BV120: 0 | BW120: 210651.8997 | BX120: 0 | BY120: 0 | BZ120: 0 | CA120: 0 | CB120: 210651.8997 | CC120: 0 | CD120: 0 | CE120: 0 | CF120: 9940755.314 | CG120: 6129241.522 | CH120: 1028919.522 | CI120: 410075.3761 | CJ120: 2372518.894 | CK120: 2782594.27
A121: 758 | B121: Lira Municipal Council | C121: 0 | D121: 0 | E121: 0 | F121: 453759.5324 | G121: 635379.2972 | H121: 0 | I121: 0 | J121: 0 | K121: 151566.8215 | L121: 2656325.805 | M121: 1264810.014 | N121: 319816.1095 | O121: 10912.80425 | P121: 0 | Q121: 180580.2115 | R121: 36217.5145 | S121: 0 | T121: 0 | U121: 828498.1027 | V121: 4915.432892 | W121: 5212.432197 | X121: 0 | Y121: 5212.432197 | AA121: 11296.20628 | AB121: 5133.851698 | AC121: 9038.539605 | AD121: 25468.59758 | AE121: 9397.905969 | AF121: 0 | AG121: 1245.17214 | AH121: 0 | AJ121: 4519.146749 | AK121: 4519.146749 | AL121: 4483.646355 | AM121: 0 | AN121: 43804.8 | AO121: 123758.8221 | AP121: 9360.882733 | AQ121: 6950.032237 | AR121: 6153 | AS121: 13103.03224 | AU121: 0 | AV121: 0 | AW121: 9038.546893 | AX121: 9038.546893 | AZ121: 0 | BA121: 0 | BB121: 0 | BC121: 0 | BD121: 0 | BE121: 0 | BF121: 6792174.63 | BG121: 274377.612 | BH121: 153655.6458 | BI121: 428033.2578 | BK121: 0 | BL121: 0 | BM121: 35312.49984 | BN121: 0 | BO121: 471442.211 | BP121: 6150314.605 | BQ121: 6621756.816 | BR121: 13847.74787 | BS121: 90385.47286 | BT121: 104233.2207 | BU121: 0 | BV121: 0 | BW121: 140433.9059 | BX121: 0 | BY121: 0 | BZ121: 0 | CA121: 90385.47286 | CB121: 230819.3788 | CC121: 0 | CD121: 94904.15531 | CE121: 94904.15531 | CF121: 14307233.96 | CG121: 5082615.652 | CH121: 1709558.979 | CI121: 893302.5124 | CJ121: 6621756.816 | CK121: 7515059.328
A122: 759 | B122: Masaka Municipal Council | C122: 0 | D122: 0 | E122: 0 | F122: 293129.2195 | G122: 557744.4246 | H122: 0 | I122: 0 | J122: 0 | K122: 376966.4465 | L122: 1130326.202 | M122: 1628768.878 | N122: 266266.6906 | O122: 10912.80425 | P122: 0 | Q122: 72419.81151 | R122: 50114.57567 | S122: 0 | T122: 0 | U122: 694258.6488 | V122: 3569.091888 | W122: 5212.432197 | X122: 0 | Y122: 5212.432197 | AA122: 9846.48166 | AB122: 3626.292073 | AC122: 0 | AD122: 13472.77373 | AE122: 0 | AF122: 0 | AG122: 904.1184939 | AH122: 0 | AJ122: 0 | AK122: 0 | AL122: 3255.572028 | AM122: 0 | AN122: 38937.6 | AO122: 64717.05515 | AP122: 6796.929458 | AQ122: 6176.337847 | AR122: 7534 | AS122: 13710.33785 | AU122: 0 | AV122: 0 | AW122: 0 | AX122: 0 | AZ122: 0 | BA122: 0 | BB122: 0 | BC122: 0 | BD122: 0 | BE122: 0 | BF122: 5231483.612 | BG122: 207636.8063 | BH122: 0 | BI122: 207636.8063 | BK122: 0 | BL122: 0 | BM122: 0 | BN122: 0 | BO122: 471442.211 | BP122: 3782288.375 | BQ122: 4253730.586 | BR122: 33637.57241 | BS122: 0 | BT122: 33637.57241 | BU122: 0 | BV122: 0 | BW122: 210651.8997 | BX122: 0 | BY122: 0 | BZ122: 0 | CA122: 0 | CB122: 210651.8997 | CC122: 0 | CD122: 0 | CE122: 0 | CF122: 9937140.476 | CG122: 4009923.045 | CH122: 1221560.566 | CI122: 451926.2784 | CJ122: 4253730.586 | CK122: 4705656.864
A123: 760 | B123: Mbale Municipal Council | C123: 0 | D123: 0 | E123: 0 | F123: 339311.3587 | G123: 683244.6691 | H123: 0 | I123: 0 | J123: 0 | K123: 331867.1851 | L123: 3112685.374 | M123: 2573468.869 | N123: 912755.1848 | O123: 10912.80425 | P123: 0 | Q123: 221190.1908 | R123: 50740.88212 | S123: 0 | T123: 0 | U123: 1790216.65 | V123: 4130.859675 | W123: 5212.432197 | X123: 0 | Y123: 5212.432197 | AA123: 15790.60336 | AB123: 6804.390743 | AC123: 4325.356981 | AD123: 26920.35109 | AE123: 86603.48792 | AF123: 0 | AG123: 1046.424902 | AH123: 0 | AJ123: 0 | AK123: 0 | AL123: 3767.992429 | AM123: 0 | AN123: 39730.4 | AO123: 79826.45367 | AP123: 7866.752298 | AQ123: 8239.522888 | AR123: 9543 | AS123: 17782.52289 | AU123: 0 | AV123: 0 | AW123: 0 | AX123: 0 | AZ123: 0 | BA123: 0 | BB123: 0 | BC123: 0 | BD123: 0 | BE123: 0 | BF123: 10299280.84 | BG123: 231112.1083 | BH123: 12116.73563 | BI123: 243228.8439 | BK123: 0 | BL123: 0 | BM123: 0 | BN123: 0 | BO123: 471442.211 | BP123: 3581956.403 | BQ123: 4053398.614 | BR123: 69253.82555 | BS123: 0 | BT123: 69253.82555 | BU123: 0 | BV123: 0 | BW123: 140433.9059 | BX123: 0 | BY123: 0 | BZ123: 0 | CA123: 62088.12977 | CB123: 202522.0357 | CC123: 0 | CD123: 137737.6266 | CE123: 137737.6266 | CF123: 15005421.79 | CG123: 7664664.486 | CH123: 2634616.359 | CI123: 652742.3317 | CJ123: 4053398.614 | CK123: 4706140.946
A124: 761 | B124: Mbarara Municipal Council | C124: 0 | D124: 0 | E124: 0 | F124: 872277.8738 | G124: 638684.0373 | H124: 0 | I124: 0 | J124: 0 | K124: 414150.7139 | L124: 5258823.252 | M124: 5323270.305 | N124: 632060.7598 | O124: 10912.80425 | P124: 0 | Q124: 137593.3549 | R124: 57682.29139 | S124: 0 | T124: 0 | U124: 670285.9468 | V124: 3766.450616 | W124: 5212.432197 | X124: 0 | Y124: 5212.432197 | AA124: 13831.31759 | AB124: 5996.284457 | AC124: 0 | AD124: 19827.60205 | AE124: 0 | AF124: 0 | AG124: 954.1131933 | AH124: 0 | AJ124: 0 | AK124: 0 | AL124: 3435.594167 | AM124: 0 | AN124: 38937.6 | AO124: 60114.69926 | AP124: 7172.776703 | AQ124: 7336.879433 | AR124: 7031 | AS124: 14367.87943 | AU124: 0 | AV124: 0 | AW124: 0 | AX124: 0 | AZ124: 0 | BA124: 0 | BB124: 0 | BC124: 0 | BD124: 0 | BE124: 0 | BF124: 14169530.49 | BG124: 227031.3152 | BH124: 0 | BI124: 227031.3152 | BK124: 0 | BL124: 0 | BM124: 0 | BN124: 0 | BO124: 471442.211 | BP124: 3343670.556 | BQ124: 3815112.767 | BR124: 38584.27423 | BS124: 0 | BT124: 38584.27423 | BU124: 0 | BV124: 0 | BW124: 210651.8997 | BX124: 0 | BY124: 0 | BZ124: 0 | CA124: 0 | CB124: 210651.8997 | CC124: 0 | CD124: 0 | CE124: 0 | CF124: 18460910.74 | CG124: 12316839.47 | CH124: 1852691.015 | CI124: 476267.4891 | CJ124: 3815112.767 | CK124: 4291380.256
A125: 762 | B125: Moroto Municipal Council | C125: 0 | D125: 0 | E125: 0 | F125: 78666.09219 | G125: 252990.9063 | H125: 0 | I125: 17957.55968 | J125: 0 | K125: 664466.9327 | L125: 309893.9393 | M125: 206622.1186 | N125: 308723.9099 | O125: 10912.80425 | P125: 0 | Q125: 23488.5194 | R125: 25937.291 | S125: 0 | T125: 0 | U125: 195940.7171 | V125: 1301.505587 | W125: 5212.432197 | X125: 0 | Y125: 5212.432197 | AA125: 4906.30121 | AB125: 1460.023962 | AC125: 9038.539605 | AD125: 15404.86478 | AE125: 7391.433218 | AF125: 0 | AG125: 329.6959866 | AH125: 0 | AJ125: 12431.30615 | AK125: 12431.30615 | AL125: 1187.177388 | AM125: 0 | AN125: 37010.4 | AO125: 32040 | AP125: 2478.569323 | AQ125: 5144.745326 | AR125: 1256 | AS125: 6400.745326 | AU125: 0 | AV125: 0 | AW125: 31477.66979 | AX125: 31477.66979 | AZ125: 0 | BA125: 0 | BB125: 0 | BC125: 0 | BD125: 0 | BE125: 0 | BF125: 2248266.59 | BG125: 29475.74935 | BH125: 23608.25234 | BI125: 53084.00169 | BK125: 39347.08723 | BL125: 39347.08723 | BM125: 0 | BN125: 0 | BO125: 471442.211 | BP125: 547229.046 | BQ125: 1018671.257 | BR125: 14983.59084 | BS125: 178635.776 | BT125: 193619.3669 | BU125: 0 | BV125: 0 | BW125: 70216.99459 | BX125: 0 | BY125: 0 | BZ125: 0 | CA125: 125910.6791 | CB125: 196127.6737 | CC125: 0 | CD125: 31477.66979 | CE125: 31477.66979 | CF125: 3780593.646 | CG125: 1790621.011 | CH125: 457645.5792 | CI125: 513655.7993 | CJ125: 1018671.257 | CK125: 1532327.056
A126: 763 | B126: Soroti Municipal Council | C126: 0 | D126: 0 | E126: 0 | F126: 239619.0686 | G126: 691879.052 | H126: 0 | I126: 0 | J126: 0 | K126: 267956.7046 | L126: 2252889.395 | M126: 1312316.891 | N126: 703695.0209 | O126: 12506.42016 | P126: 0 | Q126: 122239.3983 | R126: 42908.76122 | S126: 0 | T126: 0 | U126: 1066972.021 | V126: 3251.730465 | W126: 5212.432197 | X126: 0 | Y126: 5212.432197 | AA126: 11494.9538 | AB126: 4875.800952 | AC126: 5896.417856 | AD126: 22267.17261 | AE126: 0 | AF126: 0 | AG126: 823.7248418 | AH126: 0 | AJ126: 9162.5154 | AK126: 9162.5154 | AL126: 2966.088596 | AM126: 0 | AN126: 38937.6 | AO126: 71472.34338 | AP126: 6192.550733 | AQ126: 6821.083172 | AR126: 7031 | AS126: 13852.08317 | AU126: 0 | AV126: 0 | AW126: 29066.16629 | AX126: 29066.16629 | AZ126: 0 | BA126: 74400 | BB126: 0 | BC126: 0 | BD126: 0 | BE126: 0 | BF126: 6990587.14 | BG126: 149015.4422 | BH126: 76002.20414 | BI126: 225017.6464 | BK126: 0 | BL126: 0 | BM126: 0 | BN126: 0 | BO126: 471442.211 | BP126: 3053170.925 | BQ126: 3524613.136 | BR126: 97942.75556 | BS126: 58132.33179 | BT126: 156075.0874 | BU126: 0 | BV126: 0 | BW126: 210651.8997 | BX126: 0 | BY126: 0 | BZ126: 0 | CA126: 58428.92542 | CB126: 269080.8251 | CC126: 0 | CD126: 58132.33179 | CE126: 58132.33179 | CF126: 11223506.17 | CG126: 5280181.083 | CH126: 1710406.057 | CI126: 708305.8906 | CJ126: 3524613.136 | CK126: 4232919.027
A127: 764 | B127: Tororo Municipal Council | C127: 0 | D127: 0 | E127: 0 | F127: 170290.4668 | G127: 436199.7949 | H127: 0 | I127: 0 | J127: 0 | K127: 39107.14879 | L127: 1699372.818 | M127: 1867896.682 | N127: 430682.1732 | O127: 10912.80425 | P127: 0 | Q127: 122692.6949 | R127: 44357.77846 | S127: 0 | T127: 0 | U127: 132027.0759 | V127: 2169.677111 | W127: 5212.432197 | X127: 7869.417446 | Y127: 13081.84964 | AA127: 9235.188817 | AB127: 4169.556803 | AC127: 4325.356981 | AD127: 17730.1026 | AE127: 11359.43796 | AF127: 0 | AG127: 549.6202573 | AH127: 0 | AJ127: 0 | AK127: 0 | AL127: 1979.086091 | AM127: 0 | AN127: 41822.593 | AO127: 54000 | AP127: 4131.903221 | AQ127: 6434.235977 | AR127: 5901 | AS127: 12335.23598 | AU127: 0 | AV127: 0 | AW127: 0 | AX127: 0 | AZ127: 0 | BA127: 0 | BB127: 0 | BC127: 0 | BD127: 0 | BE127: 0 | BF127: 5112698.944 | BG127: 115698.6007 | BH127: 125378.9001 | BI127: 241077.5008 | BK127: 0 | BL127: 0 | BM127: 0 | BN127: 0 | BO127: 471442.211 | BP127: 2393168.489 | BQ127: 2864610.7 | BR127: 84559.23318 | BS127: 39347.08723 | BT127: 123906.3204 | BU127: 0 | BV127: 0 | BW127: 105325.9498 | BX127: 0 | BY127: 0 | BZ127: 0 | CA127: 39347.08723 | CB127: 144673.0371 | CC127: 0 | CD127: 0 | CE127: 0 | CF127: 8486966.502 | CG127: 4525994.015 | CH127: 586704.9289 | CI127: 509656.8583 | CJ127: 2864610.7 | CK127: 3374267.558
A128: 770 | B128: Kasese Municipal Council | C128: 0 | D128: 0 | E128: 0 | F128: 351032.3415 | G128: 642824.332 | H128: 0 | I128: 0 | J128: 0 | K128: 150270.1584 | L128: 2356327.749 | M128: 1148445.414 | N128: 2033575.693 | O128: 13196.10312 | P128: 0 | Q128: 145609.6503 | R128: 32987.28991 | S128: 0 | T128: 0 | U128: 623671.8823 | V128: 4864.792461 | W128: 5212.432197 | X128: 0 | Y128: 5212.432197 | AA128: 12994.59533 | AB128: 5106.688462 | AC128: 0 | AD128: 18101.28379 | AE128: 0 | AF128: 0 | AG128: 1232.343961 | AH128: 0 | AJ128: 0 | AK128: 0 | AL128: 4437.454332 | AM128: 0 | AN128: 38937.6 | AO128: 93240 | AP128: 9264.443792 | AQ128: 1665.699549 | AR128: 12216.92521 | AS128: 13882.62476 | AU128: 0 | AV128: 0 | AW128: 0 | AX128: 0 | AZ128: 0 | BA128: 0 | BB128: 0 | BC128: 123916.0008 | BD128: 0 | BE128: 0 | BF128: 7811029.589 | BG128: 293372.8573 | BH128: 0 | BI128: 293372.8573 | BK128: 0 | BL128: 0 | BM128: 0 | BN128: 0 | BO128: 0 | BP128: 0 | BQ128: 0 | BR128: 23425.02955 | BS128: 0 | BT128: 23425.02955 | BU128: 0 | BV128: 0 | BW128: 280868.811 | BX128: 0 | BY128: 0 | BZ128: 0 | CA128: 0 | CB128: 280868.811 | CC128: 0 | CD128: 0 | CE128: 0 | CF128: 8408696.287 | CG128: 6383577.049 | CH128: 1427452.54 | CI128: 597666.6979 | CJ128: 0 | CK128: 597666.6979
A129: 771 | B129: Hoima Municipal Council | C129: 30000 | D129: 0 | E129: 0 | F129: 306070.4131 | G129: 396942.0335 | H129: 0 | I129: 0 | J129: 0 | K129: 482958.7079 | L129: 1863603.209 | M129: 1427076.505 | N129: 299568.8946 | O129: 10912.80425 | P129: 0 | Q129: 141115.2701 | R129: 17534.32115 | S129: 0 | T129: 0 | U129: 1357830.152 | V129: 4664.25198 | W129: 5212.432197 | X129: 0 | Y129: 5212.432197 | AA129: 10902.43116 | AB129: 3992.995765 | AC129: 0 | AD129: 14895.42692 | AE129: 0 | AF129: 0 | AG129: 1181.543263 | AH129: 0 | AJ129: 0 | AK129: 0 | AL129: 4254.529935 | AM129: 0 | AN129: 43804.8 | AO129: 106920 | AP129: 8882.53726 | AQ129: 8755.319149 | AR129: 9292 | AS129: 18047.31915 | AU129: 0 | AV129: 0 | AW129: 0 | AX129: 0 | AZ129: 0 | BA129: 0 | BB129: 0 | BC129: 0 | BD129: 0 | BE129: 0 | BF129: 6541475.152 | BG129: 233707.7987 | BH129: 0 | BI129: 233707.7987 | BK129: 0 | BL129: 0 | BM129: 0 | BN129: 0 | BO129: 471442.211 | BP129: 4335039.206 | BQ129: 4806481.417 | BR129: 20870.53763 | BS129: 0 | BT129: 20870.53763 | BU129: 0 | BV129: 0 | BW129: 210651.8997 | BX129: 0 | BY129: 0 | BZ129: 0 | CA129: 0 | CB129: 210651.8997 | CC129: 0 | CD129: 0 | CE129: 0 | CF129: 11813186.81 | CG129: 4524866.955 | CH129: 2016608.197 | CI129: 465230.236 | CJ129: 4806481.417 | CK129: 5271711.653
A130: 772 | B130: Mukono Municipal Council | C130: 30000 | D130: 0 | E130: 0 | F130: 393322.595 | G130: 661960.1813 | H130: 0 | I130: 0 | J130: 0 | K130: 0 | L130: 3206506.806 | M130: 1790346.769 | N130: 731880.5405 | O130: 28264.51824 | P130: 0 | Q130: 179423.7737 | R130: 23584.15349 | S130: 0 | T130: 0 | U130: 551942.3831 | V130: 4237.604249 | W130: 5212.432197 | X130: 0 | Y130: 5212.432197 | AA130: 13358.68631 | AB130: 5785.769374 | AC130: 0 | AD130: 19144.45568 | AE130: 0 | AF130: 0 | AG130: 1073.465322 | AH130: 0 | AJ130: 0 | AK130: 0 | AL130: 3865.360236 | AM130: 0 | AN130: 34070.4 | AO130: 102720 | AP130: 8070.035196 | AQ130: 9013.217279 | AR130: 10547 | AS130: 19560.21728 | AU130: 0 | AV130: 0 | AW130: 0 | AX130: 0 | AZ130: 0 | BA130: 0 | BB130: 0 | BC130: 0 | BD130: 0 | BE130: 0 | BF130: 7795185.69 | BG130: 280873.8529 | BH130: 0 | BI130: 280873.8529 | BK130: 0 | BL130: 0 | BM130: 0 | BN130: 0 | BO130: 0 | BP130: 0 | BQ130: 0 | BR130: 24038.40548 | BS130: 0 | BT130: 24038.40548 | BU130: 0 | BV130: 0 | BW130: 280868.811 | BX130: 0 | BY130: 0 | BZ130: 0 | CA130: 0 | CB130: 280868.811 | CC130: 0 | CD130: 0 | CE130: 0 | CF130: 8380966.76 | CG130: 6453029.215 | CH130: 1342156.475 | CI130: 585781.0694 | CJ130: 0 | CK130: 585781.0694
A131: 773 | B131: Iganga Municipal Council | C131: 0 | D131: 0 | E131: 0 | F131: 195539.4077 | G131: 383605.1018 | H131: 0 | I131: 0 | J131: 0 | K131: 0 | L131: 1318442.119 | M131: 485898.6967 | N131: 269182.3037 | O131: 10912.80425 | P131: 0 | Q131: 53905.86173 | R131: 21652.87049 | S131: 0 | T131: 0 | U131: 1006226.676 | V131: 2483.984701 | W131: 5212.432197 | X131: 0 | Y131: 5212.432197 | AA131: 9568.733048 | AB131: 1928.589791 | AC131: 0 | AD131: 11497.32284 | AE131: 0 | AF131: 0 | AG131: 629.2403159 | AH131: 0 | AJ131: 0 | AK131: 0 | AL131: 2265.783949 | AM131: 0 | AN131: 34070.4 | AO131: 96506.45367 | AP131: 4730.46627 | AQ131: 5402.643456 | AR131: 7157 | AS131: 12559.64346 | AU131: 0 | AV131: 0 | AW131: 0 | AX131: 0 | AZ131: 0 | BA131: 0 | BB131: 0 | BC131: 0 | BD131: 0 | BE131: 0 | BF131: 3915321.569 | BG131: 131410.6982 | BH131: 0 | BI131: 131410.6982 | BK131: 0 | BL131: 0 | BM131: 0 | BN131: 0 | BO131: 0 | BP131: 0 | BQ131: 0 | BR131: 37647.1486 | BS131: 0 | BT131: 37647.1486 | BU131: 0 | BV131: 0 | BW131: 280868.811 | BX131: 0 | BY131: 0 | BZ131: 0 | CA131: 0 | CB131: 280868.811 | CC131: 0 | CD131: 0 | CE131: 0 | CF131: 4365248.227 | CG131: 2502111.426 | CH131: 1413210.143 | CI131: 449926.6579 | CJ131: 0 | CK131: 449926.6579
A132: 774 | B132: Masindi Municipal Council | C132: 0 | D132: 0 | E132: 0 | F132: 352499.4317 | G132: 520556.7559 | H132: 0 | I132: 0 | J132: 0 | K132: 365728.1474 | L132: 2555403.364 | M132: 1164964.139 | N132: 307432.0042 | O132: 13196.10312 | P132: 0 | Q132: 146823.6435 | R132: 20160.81946 | S132: 0 | T132: 0 | U132: 949859.0498 | V132: 4540.209142 | W132: 5212.432197 | X132: 0 | Y132: 5212.432197 | AA132: 10857.6211 | AB132: 4441.189168 | AC132: 5896.417856 | AD132: 21195.22812 | AE132: 0 | AF132: 0 | AG132: 1150.120866 | AH132: 0 | AJ132: 11804.12617 | AK132: 11804.12617 | AL132: 4141.383397 | AM132: 0 | AN132: 43804.8 | AO132: 68474.11029 | AP132: 8646.311789 | AQ132: 8239.522888 | AR132: 7408 | AS132: 15647.52289 | AU132: 0 | AV132: 0 | AW132: 0 | AX132: 0 | AZ132: 0 | BA132: 0 | BB132: 0 | BC132: 0 | BD132: 0 | BE132: 0 | BF132: 6581239.703 | BG132: 246906.1867 | BH132: 63072.19412 | BI132: 309978.3809 | BK132: 0 | BL132: 0 | BM132: 0 | BN132: 0 | BO132: 0 | BP132: 0 | BQ132: 0 | BR132: 38584.55762 | BS132: 94433.00936 | BT132: 133017.567 | BU132: 0 | BV132: 0 | BW132: 280868.811 | BX132: 0 | BY132: 0 | BZ132: 0 | CA132: 40920.97072 | CB132: 321789.7817 | CC132: 0 | CD132: 78694.17446 | CE132: 78694.17446 | CF132: 7424719.607 | CG132: 4971085.314 | CH132: 1610154.389 | CI132: 843479.9041 | CJ132: 0 | CK132: 843479.9041
A133: 775 | B133: Ntungamo Municipal Council | C133: 0 | D133: 0 | E133: 0 | F133: 491836.3522 | G133: 380796.1959 | H133: 0 | I133: 0 | J133: 0 | K133: 0 | L133: 450913.8265 | M133: 223260.9811 | N133: 407826.1886 | O133: 10912.80425 | P133: 0 | Q133: 27443.52783 | R133: 28927.27309 | S133: 0 | T133: 0 | U133: 217755.6618 | V133: 1907.758048 | W133: 5212.432197 | X133: 0 | Y133: =SUM(W133:X133) -> 5212.432197 | AA133: 5086.58836 | AB133: 1052.575414 | AC133: 0 | AD133: =SUM(AA133:AC133) -> 6139.163774 | AE133: 0 | AF133: 0 | AG133: 483.2712039 | AH133: 0 | AJ133: 0 | AK133: =SUM(AI133:AJ133) -> 0 | AL133: 1740.174793 | AM133: 0 | AN133: 38937.6 | AO133: 55440 | AP133: 3633.108164 | AQ133: 5402.643456 | AR133: 1883 | AS133: =SUM(AQ133:AR133) -> 7285.643456 | AU133: 0 | AV133: 0 | AW133: 0 | AX133: =SUM(AT133:AW133) -> 0 | AZ133: 0 | BA133: 0 | BB133: 0 | BC133: 0 | BD133: 0 | BE133: 0 | BF133: =SUM(C133:V133,Y133,Z133,AD133,AE133:AH133,AK133,AL133:AP133,AS133,AX133,AY133:BE133) -> 2360451.963 | BG133: 41544.82926 | BH133: 0 | BI133: =SUM(BG133:BH133) -> 41544.82926 | BK133: 0 | BL133: =SUM(BJ133:BK133) -> 0 | BM133: 0 | BN133: 0 | BO133: 0 | BP133: 0 | BQ133: =SUM(BO133:BP133) -> 0 | BR133: 39390.40256 | BS133: 0 | BT133: =SUM(BR133:BS133) -> 39390.40256 | BU133: 0 | BV133: 0 | BW133: 140433.9059 | BX133: 0 | BY133: 0 | BZ133: 0 | CA133: 0 | CB133: =SUM(BW133:CA133) -> 140433.9059 | CC133: 0 | CD133: 0 | CE133: =SUM(CC133:CD133) -> 0 | CF133: 2581821.101 | CG133: =SUM(G133,H133,K133:P133,AN133,BE133) -> 1512647.596 | CH133: =SUM(C133:F133,I133:J133,Q133:V133,Y133,Z133,AD133,AE133:AH133,AK133,AL133:AM133,AO133:AP133,AS133,AX133,AY133:BD133) -> 847804.3666 | CI133: =SUM(BI133,BL133,BM133,BN133,BT133,BV133,CB133,CE133) -> 221369.1377 | CJ133: =BQ133+BU133 -> 0 | CK133: =SUM(CI133:CJ133) -> 221369.1377
A134: 776 | B134: Busia Municipal Council | C134: 0 | D134: 0 | E134: 0 | F134: 160966.2829 | G134: 349821.9989 | H134: 0 | I134: 0 | J134: 0 | K134: 88672.5356 | L134: 1127780.658 | M134: 292468.6813 | N134: 338605.6752 | O134: 10912.80425 | P134: 0 | Q134: 78310.86753 | R134: 27431.26919 | S134: 0 | T134: 0 | U134: 508895.5891 | V134: 2320.736615 | W134: 5212.432197 | X134: 0 | Y134: 5212.432197 | AA134: 6933.948617 | AB134: 1962.543837 | AC134: 4325.356981 | AD134: 13221.84943 | AE134: 0 | AF134: 0 | AG134: 587.8864874 | AH134: 0 | AJ134: 0 | AK134: 0 | AL134: 2116.87607 | AM134: 0 | AN134: 34070.4 | AO134: 51840 | AP134: 4419.578862 | AQ134: 5402.643456 | AR134: 4646 | AS134: 10048.64346 | AU134: 0 | AV134: 0 | AW134: 0 | AX134: 0 | AZ134: 0 | BA134: 0 | BB134: 0 | BC134: 0 | BD134: 0 | BE134: 0 | BF134: 3107704.765 | BG134: 116944.572 | BH134: 211942.492 | BI134: 328887.064 | BK134: 0 | BL134: 0 | BM134: 0 | BN134: 0 | BO134: 0 | BP134: 0 | BQ134: 0 | BR134: 30156.08366 | BS134: 0 | BT134: 30156.08366 | BU134: 0 | BV134: 0 | BW134: 351085.8056 | BX134: 0 | BY134: 0 | BZ134: 0 | CA134: 0 | CB134: 351085.8056 | CC134: 0 | CD134: 0 | CE134: 0 | CF134: 3817833.718 | CG134: 2242332.753 | CH134: 865372.0118 | CI134: 710128.9533 | CJ134: 0 | CK134: 710128.9533
A135: 777 | B135: Bushenyi - Ishaka Municipal Council | C135: 0 | D135: 0 | E135: 0 | F135: 363380.1718 | G135: 424931.7661 | H135: 0 | I135: 0 | J135: 0 | K135: 393463.7904 | L135: 1720376.805 | M135: 1464822.34 | N135: 445617.8504 | O135: 10912.80425 | P135: 13500 | Q135: 85812.55066 | R135: 8661.465381 | S135: 0 | T135: 0 | U135: 259194.4724 | V135: 2810.944995 | W135: 5212.432197 | X135: 0 | Y135: 5212.432197 | AA135: 8884.041178 | AB135: 3809.643919 | AC135: 0 | AD135: 12693.6851 | AE135: 0 | AF135: 0 | AG135: 712.0655438 | AH135: 0 | AJ135: 0 | AK135: 0 | AL135: 2564.023059 | AM135: 0 | AN135: 38937.6 | AO135: 80036.46618 | AP135: 5353.124953 | AQ135: 7723.726628 | AR135: 3265 | AS135: 10988.72663 | AU135: 0 | AV135: 0 | AW135: 0 | AX135: 0 | AZ135: 0 | BA135: 0 | BB135: 0 | BC135: 0 | BD135: 0 | BE135: 0 | BF135: 5349983.086 | BG135: 119801.7777 | BH135: 0 | BI135: 119801.7777 | BK135: 0 | BL135: 0 | BM135: 0 | BN135: 0 | BO135: 0 | BP135: 0 | BQ135: 0 | BR135: 59175.3586 | BS135: 0 | BT135: 59175.3586 | BU135: 0 | BV135: 0 | BW135: 140433.9059 | BX135: 0 | BY135: 0 | BZ135: 0 | CA135: 0 | CB135: 140433.9059 | CC135: 0 | CD135: 0 | CE135: 0 | CF135: 5669394.128 | CG135: 4512562.957 | CH135: 837420.1289 | CI135: 319411.0423 | CJ135: 0 | CK135: 319411.0423
A136: 778 | B136: Rukungiri Municipal Council | C136: 0 | D136: 0 | E136: 0 | F136: 173364.1549 | G136: 435004.9862 | H136: 0 | I136: 0 | J136: 0 | K136: 0 | L136: 1236435.104 | M136: 1169245.846 | N136: 502086.6169 | O136: 10912.80425 | P136: 0 | Q136: 58929.74985 | R136: 9512.242734 | S136: 0 | T136: 0 | U136: 284628.0601 | V136: 2587.243171 | W136: 5212.432197 | X136: 0 | Y136: 5212.432197 | AA136: 8532.654766 | AB136: 3470.103463 | AC136: 0 | AD136: 12002.75823 | AE136: 0 | AF136: 0 | AG136: 655.3976397 | AH136: 0 | AJ136: 0 | AK136: 0 | AL136: 2359.971882 | AM136: 0 | AN136: 38937.6 | AO136: 72557.64412 | AP136: 4927.110278 | AQ136: 6434.235977 | AR136: 4395 | AS136: 10829.23598 | AU136: 0 | AV136: 0 | AW136: 0 | AX136: 0 | AZ136: 0 | BA136: 0 | BB136: 0 | BC136: 0 | BD136: 0 | BE136: 0 | BF136: 4030188.958 | BG136: 59427.50737 | BH136: 0 | BI136: 59427.50737 | BK136: 0 | BL136: 0 | BM136: 0 | BN136: 0 | BO136: 0 | BP136: 0 | BQ136: 0 | BR136: 18903.72899 | BS136: 0 | BT136: 18903.72899 | BU136: 0 | BV136: 0 | BW136: 210651.8997 | BX136: 0 | BY136: 0 | BZ136: 0 | CA136: 0 | CB136: 210651.8997 | CC136: 0 | CD136: 0 | CE136: 0 | CF136: 4319172.094 | CG136: 3392622.957 | CH136: 637566.0011 | CI136: 288983.1361 | CJ136: 0 | CK136: 288983.1361
B137: Total | C137: =SUM(C4:C136) -> 1337144 | D137: =SUM(D4:D136) -> 200000 | E137: 61950106.68 | F137: 20622147 | G137: 35106274.01 | H137: 143477362 | I137: 600000 | J137: 2994158.802 | K137: 42626726.86 | L137: 825739204.7 | M137: 203546227.8 | N137: 250607295.5 | O137: 4537867.302 | P137: 2737075.2 | Q137: 66245052.51 | R137: 15838899.32 | S137: 5943067 | T137: 17194707.12 | U137: 140799558.6 | V137: 1575310.526 | W137: 3236052.684 | X137: =SUM(X4:X136) -> 1297162.448 | Y137: 4533215.133 | Z137: 2503910 | AA137: 3820955.119 | AB137: 1380360.98 | AC137: 1477420.847 | AD137: 6678736.946 | AE137: 330000 | AF137: 5591518.637 | AG137: 799055.8332 | AH137: 200000 | AI137: 784999.8472 | AJ137: 2068215.153 | AK137: 2853215 | AL137: 1436930.624 | AM137: 4028423.693 | AN137: 16267932.99 | AO137: 11267640 | AP137: 3000000 | AQ137: 2177868.15 | AR137: 2510315.925 | AS137: 4688184.075 | AT137: 10019928.17 | AU137: 41000 | AV137: 108000 | AW137: 4080746.528 | AX137: 14249674.7 | AY137: 2000000 | AZ137: 30443920 | BA137: 2500766.667 | BB137: 3879633.258 | BC137: 10961903.81 | BD137: 15186572.27 | BE137: 20791545 | BF137: 2007870964 | BG137: =SUM(BG4:BG136) -> 57476600.18 | BH137: =SUM(BH4:BH136) -> 12531606.13 | BI137: 70008206.31 | BJ137: 52942995.3 | BK137: 7429438.697 | BL137: 60372434 | BM137: 8858000 | BN137: 22957501.14 | BO137: 6600190.954 | BP137: 51584308.57 | BQ137: 58184499.53 | BR137: 15174694.47 | BS137: 14908904.49 | BT137: 30083598.97 | BU137: =SUM(BU4:BU136) -> 4505634.144 | BV137: =SUM(BV4:BV136) -> 3200000 | BW137: 27068725.81 | BX137: 5440000 | BY137: 1770182.674 | BZ137: 2768490.418 | CA137: 17151439.65 | CB137: 54198838.55 | CC137: 13140248.6 | CD137: 12926108.4 | CE137: 26066357 | CF137: =SUM(CF4:CF136) -> 2346306033 | CG137: 1545437511 | CH137: 462433452.2 | CI137: =SUM(CI4:CI136) -> 275744936 | CJ137: =SUM(CJ4:CJ136) -> 62690133.67 | CK137: 338435069.6

Sheet ThisVsPublication
C2: This sheet compares the dataset on the Approved_budget sheet with the relevant publication
C3: The relevant publication is the 14/15 Approved Budget book vol 2
C4: http://budget.go.ug/budget/content/approved-budget-estimates-326
C5: The comparison between the data and publication yields: | H5: =IF(SUM(H13:H17)=0,"IDENTICAL","VARIANCE") -> IDENTICAL
C8: NOTE - this dataset is available in flat format, with additional fields on the dataportal:
C9: http://budget.go.ug/budget/sites/default/files/14_15_ApprovedBudget_LG.xlsx
C12: Row Labels | D12: Dataset Approved Budget | G12: Table 4a in book (pg i) | H12: Variance
C13: GoUDevelopment | D13: ='Approved LG IPFs'!CI137 -> 275744936 | G13: 275744936 | H13: =ROUND(D13,0)-G13 -> 0
C14: NonWageRecurrent | D14: ='Approved LG IPFs'!CH137 -> 462433452.2 | G14: 462433452 | H14: =ROUND(D14,0)-G14 -> 0
C15: WageRecurrent | D15: ='Approved LG IPFs'!CG137 -> 1545437511 | G15: 1545437511 | H15: =ROUND(D15,0)-G15 -> 0
C16: Donor | D16: ='Approved LG IPFs'!CJ137 -> 62690133.67 | G16: 62690134 | H16: =ROUND(D16,0)-G16 -> 0
C17: Grand Total | D17: ='Approved LG IPFs'!CF137 -> 2346306033 | G17: 2346306033 | H17: =SUM(H12:H16) -> 0
G21: *Note - grand total is hard coded from the book.

Sheet Metadata
B2: Content | C2: Intellectual Property | D2: Instantiation
B3: IPFs for LG 2014/15. Also available in flat format. | C3: Published with permission of the Ministry of Finance, Planning and Economic Development | D3: 2018-01-22
B4: Local budget breakdown to subgrant level | C4: Data provided by Ministry of Finance, Planning and Economic Development | D4: Published tables
B5: Excel file | C5: Created on behalf of the Overseas Development Institute by S.Cresswell (simon.cresswell@outlook.com) | D5: 14_15_ApprovedBudget_Vol2
B6: Source: OTIMS | C6: For public use and analysis | D6: English
B10: NOTE - this dataset is available in flat format, with additional fields on the dataportal:
B11: http://budget.go.ug/budget/sites/default/files/14_15_ApprovedBudget_LG.xlsx
